Workbook

Sheet Титульный лист
A2: Кыргыз Республикасынын Улуттук статистика комитети
A3: Национальный статистический комитет Кыргызской Республики
A19: СООДАНЫН ЖАНА КЫЗМАТ КӨРСӨТҮҮНYН
A20: НЕГИЗГИ КӨРСӨТКҮЧТӨРҮ
A24: Февраль 2026
A25: № 2
A34: ОСНОВНЫЕ ПОКАЗАТЕЛИ ТОРГОВЛИ И УСЛУГ
A39: Бишкек 2026

Sheet Контакты
A1: Сооданын жана кызмат көрсөтүүнүн негизги көрсөткүчтөрү
A2: Ушул басылмага байланыштуу суроолор боюнча төмөнкү дарекке кайрылыңыздар:
A3: Бишкек ш., Фрунзе көчөсү, 374;
A4: телефон: 996 (312) 32-46-50; 66-41-66
A5: факс: 66-01-38;
A6: Интернет: www.stat.gov.kg
A7: e-mail: nsc_mail@stat.kg;
A8: Кыргыз Республикасынын Улуттук статистика комитети
A9: Соода жана кызмат көрсөтүү, МКТ жана туризм статистикасы башкармалыгы
A10: 2026-жылдын январь-февралында Кыргыз Республикасындагы сооданын жана кызмат көрсөтүүнүн негизги көрсөткүчтөрү тез берилген маалыматтардын негизинде керектөө рыногунун жана кызмат көрсөтүү чөйрөсүнүн өнүгүшүн мүнөздөөчү статистикалык маалыматтарды камтыйт. Аймактар жана экономикалык ишмердиктердин түрлөрү боюнча таблицаларда толук маалыматтар келтирилди. Мурда жарыяланган маалыматтарга караганда айрым көрсөткүчтөргө былтыркы жыл боюнча такталган маалыматтар келтирилди.
A11: Статистикалык маалыматтарды жалпыга маалымдоо каражаттарында жана илимий эмгектерде пайдаланган учурда маалымат тармактарына, кагазда, магнитик жана башка алып жүрүүчүлөргө таратканда, пайдалануучулар расмий статистиканын маалыматтарын жана тиешелүү метамаалыматтарды пайдаланууда алардын булагына шилтеме берүүгө милдеттүү («Расмий статистика жөнүнө» Кыргыз Республикасынын Мыйзамынын 30-беренеси).
A12: Ай сайын чыгырылат.
A13: Басылма электрондук алып жүрүүчүлөрдө да бар.
A14: Бул басылманын маалыматтарын жаңылоонун акыркы күнү: 2026-ж. 24-март
A15: Шарттуу белгилер
A16: - кубулуш болгон эмес;
A17: ... маалымат жок;
A18: 0,0 анча чоң эмес өлчөм.
A19: Основные показатели торговли и услуг
A20: Для информации, связанной с этой публикацией, обращайтесь по адресу:
A21: г. Бишкек, ул. Фрунзе, 374,
A22: телефон: 996 (312) 32-46-50; 66-41-66, факс: 66-01-38;
A23: Интернет: www.stat.gov.kg
A24: e-mail: nsc_mail@stat.kg;
A25: Национальный статистический комитет Кыргызской Республики
A26: Управление статистики торговли и услуг, ИКТ и туризма
A27: Основные показатели торговли и услуг содержит информацию о данных, характеризующих потребительский рынок и услуги Кыргызской Республики в январе -феврале 2026г. на основе оперативных данных. В таблицах приведены подробные статистические данные по видам экономической деятельности и по территории. По ряду показателей за предыдущий год приводятся уточненные данные, отличные от ранее опубликованных.
A28: При использовании статистических данных в средствах массовой информации и научных трудах, распространении в информационных сетях, на бумажных, магнитных и иных носителях пользователи при использовании данных официальной статистики и соответствующих метаданных обязаны ссылаться на их источник (ст. 30 Закона Кыргызской Республики «Об официальной статистике»).
A29: Выпускается ежемесячно.
A30: Публикация имеется также на электронных носителях.
A31: Последний день обновления данных настоящей публикации: 24 марта 2026г.
A32: Условные знаки:
A33: - явление отсутствует
A34: ... данных не имеется;
A35: 0,0 незначительная величина

Sheet Содержание
B1: Мазмуну
B2: Содержание
C3: Стр.
B4: Сооданын жана кызмат көрсөтүүнүн негизги көрсөткүчтөрү
B5: Основные показатели торговли и услуг
A6: Таблица 1. | B6: Рыноктук кызмат көрсөтүүлөрдүн экономикалык ишмердиктин түрлөрү боюнча көлөмү | C6: 6
B7: Объем рыночных услуг по видам экономической деятельности
A8: Таблица 2. | B8: Рыноктук кызмат көрсөтүүлөрдүн аймактар боюнча көлөмү | C8: 7
B9: Объем рыночных услуг по территории
A10: Таблица 3. | B10: Дүң жана чекене соода сооданын,автоунааларды жана мотоциклдерди оңдоонун жүгүртүүсү | C10: 8
B11: Оборот оптовой и розничной торговли, ремонта автомобилей и мотоциклов
A12: Таблица 4. | B12: Аймактар боюнча дүң жана чекене сооданын, автоунааларды жана мотоциклдерди оңдоонун жүгүртүүсү | C12: 9
B13: Оборот оптовой и розничной торговли, ремонта автомобилей и мотоциклов по территории
A14: Таблица 5. | B14: Мотор майларын чекене сатуунун аймактар боюнча жүгүртүлүшү | C14: 10
B15: Оборот розничной торговли моторным топливом по территории
A16: Таблица 6. | B16: Автоунааларды жана мотоциклдерди сатууну кошпогондогу чекене сооданын жүгүртүлүшү | C16: 11
B17: Оборот розничной торговли, кроме торговли автомобилями и мотоциклами
A18: Таблица 7. | B18: Автоунааларды жана мотоциклдерди сатууну кошпогондогу чекене сооданын аймактар боюнча жүгүртүлүшү | C18: 12
B19: Оборот розничной торговли, кроме торговли автомобилями и мотоциклами, по территории
A20: Таблица 8. | B20: Тамактануу ишканаларынын жүгүртүүсүн кошкондогу чекене сооданын жүгүртүлүшү | C20: 13
B21: Оборот розничной торговли, включая оборот предприятий питания
A22: Таблица 9. | B22: Тамактануу ишканаларынын жүгүртүүсүн кошкондогу азык-түлүк жана азык-түлүк эмес товарлардын чекене сооданын жүгүртүлүшү | C22: 13
B23: Оборот розничной торговли, включая оборот предприятий питания, продовольственными и непродовольственными товарами
A24: Таблица 10. | B24: Тамактануу ишканаларынын жүгүртүүсүн кошкондогу сатуунун каналдары боюнча чекене сооданын жүгүртүлүшү | C24: 14
B25: Оборот розничной торговли, включая оборот предприятий питания, по каналам реализации
A26: Таблица 11. | B26: Мейманканалардын жана ресторандардын кызмат көрсөтүүлөрүнүн көлөмү | C26: 15
B27: Объем услуг, предоставленных гостиницами и ресторанами
A28: Таблица 12. | B28: Мейманканалардын жана ресторандардын кызмат көрсөтүүлөрүнүн аймактар боюнча көлөмү | C28: 16
B29: Объем услуг, предоставленных гостиницами и ресторанами, по территории
A30: Таблица 13. | B30: Транспорттун бардык түрү менен жүктөрдүн ташылышы | C30: 17
B31: Перевозки грузов всеми видами транспорта
A32: Таблица 14. | B32: Аймактар боюнча транспорттун бардык түрү менен жүктөрдүн ташылышы | C32: 18
B33: Перевозки грузов всеми видами транспорта по территории
A34: Таблица 15. | B34: Транспорттун бардык түрү менен жүк ташуунун жүгүртүлүшүнүн көлөмү | C34: 19
B35: Объем грузооборота, выполненного всеми видами транспорта,
A36: Таблица 16. | B36: Транспорттун бардык түрү менен жүргүнчүлөрдүн ташылышы | C36: 20
B37: Перевозки пассажиров всеми видами транспорта
A38: Таблица 17. | B38: Аймактар боюнча транспорттун бардык түрү менен жүргүнчүлөрдүн ташылышы | C38: 21
B39: Перевозки пассажиров всеми видами транспорта по территории
A40: Таблица 18. | B40: Аймактар боюнча жүргүнчүлөрдүн автобустар, микроавтобустар менен ташылышы | C40: 22
B41: Перевозки пассажиров автобусами и микроавтобусами по территории
A42: Таблица 19. | B42: Транспорттун бардык түрү менен жүргүнчүлөрдү ташуунун жүгүртүү көлөмү | C42: 23
B43: Объем пассажирооборота, выполненного всеми видами транспорта
A44: Таблица 20. | B44: Дүң жана чекене сооданын, автоунааларды жана мотоциклдерди оңдоонун жүгүртүлүшү | C44: 24-26
B45: Оборот оптовой и розничной торговли, ремонта автомобилей и мотоциклов
A46: Таблица 21. | B46: Экономикалык ишмердиктин түрлөрү боюнча дүң жана чекене сооданын, автоунааларды жана мотоциклдерди оңдоонун аймактар боюнча жүгүртүлүшү | C46: 27-28
B47: Оборот оптовой и розничной торговли, ремонта автомобилей и мотоциклов по видам экономической деятельности в разрезе территории
A48: Таблица 22. | B48: Мейманканалардын жана ресторандардын кызмат көрсөтүүлөрүнүн көлөмү | C48: 29
B49: Объем предоставленных услуг гостиницами и ресторанами
A50: Таблица 23. | B50: Тамактануу ишканаларынын жүгүртүүсүн кошкондогу сатуунун бардык каналдары боюнча чекене сооданын жүгүртүлүшү | C50: 30-31
B51: Оборот розничной торговли, включая оборот предприятий питания по всем каналам реализации
A52: Таблица 24. | B52: Буюм-терим, аралаш жана азык-түлүк базарлардын жүгүртүүсү | C52: 32
B53: Оборот вещевых, смешанных и продовольственных рынков
A54: Таблица 25. | B54: Тамактануу ишканаларын кошкондогу, сатуучу уюмдардын чекене соода жүгүртүүсү | C54: 33
B55: Оборот розничной торговли торгующих организаций, включая общественное питание
A56: Таблица 26. | B56: Сооданын, мейманканалардын жана ресторандардын жүгүртүлүшүн кошпогондо, рыноктук кызмат көрсөтүүлөрдүн экономикалык ишмердигинин түрлөрү боюнча көлөмү | C56: 34
B57: Объем оказанных рыночных услуг, исключая оборот торговли, гостиниц и ресторанов по видам экономической деятельности
A58: Таблица 27. | B58: Сооданын, мейманканалардын жана ресторандардын жүгүртүлүшүн кошпогондогу, рыноктук кызмат көрсөтүүлөрдүн аймактар боюнча көлөмү | C58: 35
B59: Объем оказанных рыночных услуг, исключая оборот торговли, гостиниц и ресторанов по территории
A60: Таблица 28. | B60: Рыноктук транспорт ишмердигинин кызмат көрсөтүүлөрдүн көлөмү | C60: 35
B61: Объем оказанных рыночных транспортных услуг
A62: Таблица 29. | B62: Маалымат жана байланыш боюнча рыноктук кызмат көрсөтүүлөрдүн көлөмү | C62: 36
B63: Объем оказанных рыночных услуг информации и связи
A64: Таблица 30. | B64: Финансылык ортомчулук жана камсыздандыруу боюнча рыноктук кызмат көрсөтүүлөрдүн көлөмү | C64: 36
B65: Объем оказанных рыночных услуг финансового посредничества и страхования
A66: Таблица 31. | B66: Кыймылсыз мүлк боюнча рыноктук кызмат көрсөтүүлөрдүн көлөмү | C66: 37
B67: Объем оказанных рыночных услуг операций с недвижимым имуществом
A68: Таблица 32. | B68: Кесиптик, илимий жана техникалык ишмердик боюнча рыноктук кызмат көрсөтүүлөрдүн көлөмү | C68: 37
B69: Объем оказанных рыночных услуг профессиональной, научной и технической деятельности
A70: Таблица 33. | B70: Административдик жана көмөкчү ишмердик боюнча рыноктук кызмат көрсөтүүлөрдүн көлөмү | C70: 38
B71: Объем оказанных рыночных услуг административной и вспомогательной деятельности
A72: Таблица 34. | B72: Билим берүү боюнча рыноктук кызмат көрсөтүүлөрдүн көлөмү | C72: 38
B73: Объем оказанных рыночных услуг в образовании
A74: Таблица 35. | B74: Саламаттыкты сактоо жана калкты социалдык жактан тейлөө боюнча рыноктук кызмат көрсөтүүлөрдүн көлөмү | C74: 39
B75: Объем оказанных рыночных услуг здравоохранения и социального обслуживания населения
A76: Таблица 36. | B76: Искусство, көңүл ачуу жана эс алуу боюнча рыноктук кызмат көрсөтүүлөрдүн көлөмү | C76: 39
B77: Объем оказанных рыночных услуг искусства, развлечений и отдыха
A78: Таблица 37. | B78: Башка тейлөө ишмердиктери боюнча рыноктук кызмат көрсөтүүлөрдүн көлөмү | C78: 40
B79: Объем оказанных рыночных услуг прочей обслуживающей деятельности
A80: Таблица 38. | B80: (КНСти, акцизди жана ушул сыяктуу милдеттүү төлөмдөрдү эсепке албаганда) почта жана чабарман ишмердиги, байланыш, радиоберүү жана телекөрсөтүү кызмат көрсөтүүлөрүнөн түшкөн пайда (жүгүртүү) | C80: 40
B81: Выручка (оборот) от услуг почтовой и курьерской деятельности, услуг связи, радиовещания и телевидения (без учета НДС, акциза и аналогичных обязательных платежей)

Sheet таб1
G1: Обратно в содержание
A2: 1-таблица: 2026-жылдын январь-февралында рыноктук кызмат көрсөтүүлөрдүн экономикалык
A3: ишмердиктин түрлөрү боюнча көлөмү
A4: Объем рыночных услуг по видам экономической деятельности в январе - феврале 2026г.
B6: Млн. сом | D6: Пайыз менен
B7: бардыгы | C7: анын ичинде калкка | D7: В процентах
D8: мурунку жылдын тийиштүү мезгилине карата | F8: жыйынтыкка карата
B9: всего | C9: в т.ч. населению | D9: соответствующему периоду предыдущего года | F9: к итогу
D10: бардыгы | E10: анын ичинде элге | F10: бардыгы | G10: анын ичинде элге
D11: всего | E11: в т.ч. населению | F11: всего | G11: в т.ч. населению
A13: Бардыгы | B13: 437,049.7 | C13: 198,388.6 | D13: 110.2 | E13: 113.5 | F13: 100.0 | G13: 100.0 | H13: Объем услуг - всего
A14: анын ичинде: | H14: в том числе:
A15: дүң жана чекене соода, автоунааларды жана мотоциклдерди оңдоо | B15: 303,397.2 | C15: 131,489.2 | D15: 111.4 | E15: 114.7 | F15: 69.4 | G15: 66.3 | H15: оптовой и розничной торговли, ремонта автомобилей и мотоциклов
A16: транспорт ишмердиги жана жүктөрдү сактоо | B16: 15,836.5 | C16: 10,818.9 | D16: 103.7 | E16: 132.6 | F16: 3.6 | G16: 5.5 | H16: транспортной деятельности и хранения грузов
A17: мейманканалардын жана ресторандардын ишмердиги | B17: 7,614.3 | C17: 7,614.3 | D17: 113.2 | E17: 113.2 | F17: 1.7 | G17: 3.8 | H17: деятельности гостиниц и ресторанов
A18: маалымат жана байланыш | B18: 11,317.8 | C18: 7,115.8 | D18: 103.3 | E18: 103.2 | F18: 2.6 | G18: 3.6 | H18: информации и связи
A19: финансылык ортомчулук жана камсыздандыруу | B19: 73,956.1 | C19: 25,900.3 | D19: 101.2 | E19: 101.1 | F19: 16.9 | G19: 13.1 | H19: финансового посредничества и страхования
A20: кыймылсыз мүлк операциялары | B20: 5,560.9 | C20: 3,140.0 | D20: 97.5 | E20: 97.6 | F20: 1.3 | G20: 1.6 | H20: операций с недвижимым имуществом
A21: кесиптик, илимий жана техникалык ишмердик | B21: 5,881.7 | C21: 2,486.9 | D21: 103.3 | E21: 102.8 | F21: 1.3 | G21: 1.3 | H21: профессиональной, научной и технической деятельности
A22: администрациялык жана көмөкчү ишмердик | B22: 3,130.0 | C22: 1,403.3 | D22: 101.1 | E22: 101.1 | F22: 0.7 | G22: 0.7 | H22: административной и вспомогательной деятельности
A23: билим берүү | B23: 3,362.3 | C23: 2,718.3 | D23: 129.2 | E23: 104.3 | F23: 0.8 | G23: 1.4 | H23: образования
A24: саламаттыкты сактоо жана калкты социалдык жактан тейлөө | B24: 3,339.7 | C24: 2,840.9 | D24: 141.5 | E24: 130.1 | F24: 0.8 | G24: 1.4 | H24: здравоохранения и социального обслуживания населения
A25: искусство, көңүл ачуу жана эс алуу | B25: 943.1 | C25: 713.4 | D25: 100.1 | E25: 101.2 | F25: 0.2 | G25: 0.4 | H25: искусства, развлечения и отдыха
A26: башка тейлөө ишмердиги | B26: 2,710.1 | C26: 2,147.3 | D26: 100.0 | E26: 100.3 | F26: 0.6 | G26: 1.1 | H26: прочей обслуживающей деятельности

Sheet таб2
F1: Обратно в содержание | JY1: Обратно в содержание | KA1: Обратно в содержание | KC1: Обратно в содержание | KE1: Обратно в содержание | KG1: Обратно в содержание | KI1: Обратно в содержание | KK1: Обратно в содержание | KM1: Обратно в содержание | KO1: Обратно в содержание | KQ1: Обратно в содержание | KS1: Обратно в содержание | KU1: Обратно в содержание | KW1: Обратно в содержание | KY1: Обратно в содержание | LA1: Обратно в содержание | LC1: Обратно в содержание | LE1: Обратно в содержание | LG1: Обратно в содержание | LI1: Обратно в содержание | LK1: Обратно в содержание | LM1: Обратно в содержание | LO1: Обратно в содержание | LQ1: Обратно в содержание | LS1: Обратно в содержание | LU1: Обратно в содержание | LW1: Обратно в содержание | LY1: Обратно в содержание | MA1: Обратно в содержание | MC1: Обратно в содержание | ME1: Обратно в содержание | MG1: Обратно в содержание | MI1: Обратно в содержание | MK1: Обратно в содержание | MM1: Обратно в содержание | MO1: Обратно в содержание | MQ1: Обратно в содержание | MS1: Обратно в содержание | MU1: Обратно в содержание | MW1: Обратно в содержание | MY1: Обратно в содержание | NA1: Обратно в содержание | NC1: Обратно в содержание | NE1: Обратно в содержание | NG1: Обратно в содержание | NI1: Обратно в содержание | NK1: Обратно в содержание | NM1: Обратно в содержание | NO1: Обратно в содержание | NQ1: Обратно в содержание | NS1: Обратно в содержание | NU1: Обратно в содержание | NW1: Обратно в содержание | NY1: Обратно в содержание | OA1: Обратно в содержание | OC1: Обратно в содержание | OE1: Обратно в содержание | OG1: Обратно в содержание | OI1: Обратно в содержание | OK1: Обратно в содержание | OM1: Обратно в содержание | OO1: Обратно в содержание | OQ1: Обратно в содержание | OS1: Обратно в содержание | OU1: Обратно в содержание | OW1: Обратно в содержание | OY1: Обратно в содержание | PA1: Обратно в содержание | PC1: Обратно в содержание | PE1: Обратно в содержание | PG1: Обратно в содержание | PI1: Обратно в содержание | PK1: Обратно в содержание | PM1: Обратно в содержание | PO1: Обратно в содержание | PQ1: Обратно в содержание | PS1: Обратно в содержание | PU1: Обратно в содержание | PW1: Обратно в содержание | PY1: Обратно в содержание | QA1: Обратно в содержание | QC1: Обратно в содержание | QE1: Обратно в содержание | QG1: Обратно в содержание | QI1: Обратно в содержание | QK1: Обратно в содержание | QM1: Обратно в содержание | QO1: Обратно в содержание | QQ1: Обратно в содержание | QS1: Обратно в содержание | QU1: Обратно в содержание | QW1: Обратно в содержание | QY1: Обратно в содержание | RA1: Обратно в содержание | RC1: Обратно в содержание | RE1: Обратно в содержание | RG1: Обратно в содержание | RI1: Обратно в содержание | RK1: Обратно в содержание | RM1: Обратно в содержание | RO1: Обратно в содержание | RQ1: Обратно в содержание | RS1: Обратно в содержание | RU1: Обратно в содержание | RW1: Обратно в содержание | RY1: Обратно в содержание | SA1: Обратно в содержание | SC1: Обратно в содержание | SE1: Обратно в содержание | SG1: Обратно в содержание | SI1: Обратно в содержание | SK1: Обратно в содержание | SM1: Обратно в содержание | SO1: Обратно в содержание | SQ1: Обратно в содержание | SS1: Обратно в содержание | SU1: Обратно в содержание | SW1: Обратно в содержание | SY1: Обратно в содержание | TA1: Обратно в содержание | TC1: Обратно в содержание | TE1: Обратно в содержание | TG1: Обратно в содержание | TI1: Обратно в содержание | TK1: Обратно в содержание | TM1: Обратно в содержание | TO1: Обратно в содержание | TQ1: Обратно в содержание | TS1: Обратно в содержание | TU1: Обратно в содержание | TW1: Обратно в содержание | TY1: Обратно в содержание | UA1: Обратно в содержание | UC1: Обратно в содержание | UE1: Обратно в содержание | UG1: Обратно в содержание | UI1: Обратно в содержание | UK1: Обратно в содержание | UM1: Обратно в содержание | UO1: Обратно в содержание | UQ1: Обратно в содержание | US1: Обратно в содержание | UU1: Обратно в содержание | UW1: Обратно в содержание | UY1: Обратно в содержание | VA1: Обратно в содержание | VC1: Обратно в содержание | VE1: Обратно в содержание | VG1: Обратно в содержание | VI1: Обратно в содержание | VK1: Обратно в содержание | VM1: Обратно в содержание | VO1: Обратно в содержание | VQ1: Обратно в содержание | VS1: Обратно в содержание | VU1: Обратно в содержание | VW1: Обратно в содержание | VY1: Обратно в содержание | WA1: Обратно в содержание | WC1: Обратно в содержание | WE1: Обратно в содержание | WG1: Обратно в содержание | WI1: Обратно в содержание | WK1: Обратно в содержание | WM1: Обратно в содержание | WO1: Обратно в содержание | WQ1: Обратно в содержание | WS1: Обратно в содержание | WU1: Обратно в содержание | WW1: Обратно в содержание | WY1: Обратно в содержание | XA1: Обратно в содержание | XC1: Обратно в содержание | XE1: Обратно в содержание | XG1: Обратно в содержание | XI1: Обратно в содержание | XK1: Обратно в содержание | XM1: Обратно в содержание | XO1: Обратно в содержание | XQ1: Обратно в содержание | XS1: Обратно в содержание | XU1: Обратно в содержание | XW1: Обратно в содержание | XY1: Обратно в содержание | YA1: Обратно в содержание | YC1: Обратно в содержание | YE1: Обратно в содержание | YG1: Обратно в содержание | YI1: Обратно в содержание | YK1: Обратно в содержание | YM1: Обратно в содержание | YO1: Обратно в содержание | YQ1: Обратно в содержание | YS1: Обратно в содержание | YU1: Обратно в содержание | YW1: Обратно в содержание | YY1: Обратно в содержание | ZA1: Обратно в содержание | ZC1: Обратно в содержание | ZE1: Обратно в содержание | ZG1: Обратно в содержание | ZI1: Обратно в содержание | ZK1: Обратно в содержание | ZM1: Обратно в содержание | ZO1: Обратно в содержание | ZQ1: Обратно в содержание | ZS1: Обратно в содержание | ZU1: Обратно в содержание | ZW1: Обратно в содержание | ZY1: Обратно в содержание | AAA1: Обратно в содержание | AAC1: Обратно в содержание | AAE1: Обратно в содержание | AAG1: Обратно в содержание | AAI1: Обратно в содержание | AAK1: Обратно в содержание | AAM1: Обратно в содержание | AAO1: Обратно в содержание | AAQ1: Обратно в содержание | AAS1: Обратно в содержание | AAU1: Обратно в содержание | AAW1: Обратно в содержание | AAY1: Обратно в содержание | ABA1: Обратно в содержание | ABC1: Обратно в содержание | ABE1: Обратно в содержание | ABG1: Обратно в содержание | ABI1: Обратно в содержание | ABK1: Обратно в содержание | ABM1: Обратно в содержание | ABO1: Обратно в содержание | ABQ1: Обратно в содержание | ABS1: Обратно в содержание | ABU1: Обратно в содержание | ABW1: Обратно в содержание | ABY1: Обратно в содержание | ACA1: Обратно в содержание | ACC1: Обратно в содержание | ACE1: Обратно в содержание | ACG1: Обратно в содержание | ACI1: Обратно в содержание | ACK1: Обратно в содержание | ACM1: Обратно в содержание | ACO1: Обратно в содержание | ACQ1: Обратно в содержание | ACS1: Обратно в содержание | ACU1: Обратно в содержание | ACW1: Обратно в содержание | ACY1: Обратно в содержание | ADA1: Обратно в содержание | ADC1: Обратно в содержание | ADE1: Обратно в содержание | ADG1: Обратно в содержание | ADI1: Обратно в содержание | ADK1: Обратно в содержание | ADM1: Обратно в содержание | ADO1: Обратно в содержание | ADQ1: Обратно в содержание | ADS1: Обратно в содержание | ADU1: Обратно в содержание | ADW1: Обратно в содержание | ADY1: Обратно в содержание | AEA1: Обратно в содержание | AEC1: Обратно в содержание | AEE1: Обратно в содержание | AEG1: Обратно в содержание | AEI1: Обратно в содержание | AEK1: Обратно в содержание | AEM1: Обратно в содержание | AEO1: Обратно в содержание | AEQ1: Обратно в содержание | AES1: Обратно в содержание | AEU1: Обратно в содержание | AEW1: Обратно в содержание | AEY1: Обратно в содержание | AFA1: Обратно в содержание | AFC1: Обратно в содержание | AFE1: Обратно в содержание | AFG1: Обратно в содержание | AFI1: Обратно в содержание | AFK1: Обратно в содержание | AFM1: Обратно в содержание | AFO1: Обратно в содержание | AFQ1: Обратно в содержание | AFS1: Обратно в содержание | AFU1: Обратно в содержание | AFW1: Обратно в содержание | AFY1: Обратно в содержание | AGA1: Обратно в содержание | AGC1: Обратно в содержание | AGE1: Обратно в содержание | AGG1: Обратно в содержание | AGI1: Обратно в содержание | AGK1: Обратно в содержание | AGM1: Обратно в содержание | AGO1: Обратно в содержание | AGQ1: Обратно в содержание | AGS1: Обратно в содержание | AGU1: Обратно в содержание | AGW1: Обратно в содержание | AGY1: Обратно в содержание | AHA1: Обратно в содержание | AHC1: Обратно в содержание | AHE1: Обратно в содержание | AHG1: Обратно в содержание | AHI1: Обратно в содержание | AHK1: Обратно в содержание | AHM1: Обратно в содержание | AHO1: Обратно в содержание | AHQ1: Обратно в содержание | AHS1: Обратно в содержание | AHU1: Обратно в содержание | AHW1: Обратно в содержание | AHY1: Обратно в содержание | AIA1: Обратно в содержание | AIC1: Обратно в содержание | AIE1: Обратно в содержание | AIG1: Обратно в содержание | AII1: Обратно в содержание | AIK1: Обратно в содержание | AIM1: Обратно в содержание | AIO1: Обратно в содержание | AIQ1: Обратно в содержание | AIS1: Обратно в содержание | AIU1: Обратно в содержание | AIW1: Обратно в содержание | AIY1: Обратно в содержание | AJA1: Обратно в содержание | AJC1: Обратно в содержание | AJE1: Обратно в содержание | AJG1: Обратно в содержание | AJI1: Обратно в содержание | AJK1: Обратно в содержание | AJM1: Обратно в содержание | AJO1: Обратно в содержание | AJQ1: Обратно в содержание | AJS1: Обратно в содержание | AJU1: Обратно в содержание | AJW1: Обратно в содержание | AJY1: Обратно в содержание | AKA1: Обратно в содержание | AKC1: Обратно в содержание | AKE1: Обратно в содержание | AKG1: Обратно в содержание | AKI1: Обратно в содержание | AKK1: Обратно в содержание | AKM1: Обратно в содержание | AKO1: Обратно в содержание | AKQ1: Обратно в содержание | AKS1: Обратно в содержание | AKU1: Обратно в содержание | AKW1: Обратно в содержание | AKY1: Обратно в содержание | ALA1: Обратно в содержание | ALC1: Обратно в содержание | ALE1: Обратно в содержание | ALG1: Обратно в содержание | ALI1: Обратно в содержание | ALK1: Обратно в содержание | ALM1: Обратно в содержание | ALO1: Обратно в содержание | ALQ1: Обратно в содержание | ALS1: Обратно в содержание | ALU1: Обратно в содержание | ALW1: Обратно в содержание | ALY1: Обратно в содержание | AMA1: Обратно в содержание | AMC1: Обратно в содержание | AME1: Обратно в содержание | AMG1: Обратно в содержание | AMI1: Обратно в содержание | AMK1: Обратно в содержание | AMM1: Обратно в содержание | AMO1: Обратно в содержание | AMQ1: Обратно в содержание | AMS1: Обратно в содержание | AMU1: Обратно в содержание | AMW1: Обратно в содержание | AMY1: Обратно в содержание | ANA1: Обратно в содержание | ANC1: Обратно в содержание | ANE1: Обратно в содержание | ANG1: Обратно в содержание | ANI1: Обратно в содержание | ANK1: Обратно в содержание | ANM1: Обратно в содержание | ANO1: Обратно в содержание | ANQ1: Обратно в содержание | ANS1: Обратно в содержание | ANU1: Обратно в содержание | ANW1: Обратно в содержание | ANY1: Обратно в содержание | AOA1: Обратно в содержание | AOC1: Обратно в содержание | AOE1: Обратно в содержание | AOG1: Обратно в содержание | AOI1: Обратно в содержание | AOK1: Обратно в содержание | AOM1: Обратно в содержание | AOO1: Обратно в содержание | AOQ1: Обратно в содержание | AOS1: Обратно в содержание | AOU1: Обратно в содержание | AOW1: Обратно в содержание | AOY1: Обратно в содержание | APA1: Обратно в содержание | APC1: Обратно в содержание | APE1: Обратно в содержание | APG1: Обратно в содержание | API1: Обратно в содержание | APK1: Обратно в содержание | APM1: Обратно в содержание | APO1: Обратно в содержание | APQ1: Обратно в содержание | APS1: Обратно в содержание | APU1: Обратно в содержание | APW1: Обратно в содержание | APY1: Обратно в содержание | AQA1: Обратно в содержание | AQC1: Обратно в содержание | AQE1: Обратно в содержание | AQG1: Обратно в содержание | AQI1: Обратно в содержание | AQK1: Обратно в содержание | AQM1: Обратно в содержание | AQO1: Обратно в содержание | AQQ1: Обратно в содержание | AQS1: Обратно в содержание | AQU1: Обратно в содержание | AQW1: Обратно в содержание | AQY1: Обратно в содержание | ARA1: Обратно в содержание | ARC1: Обратно в содержание | ARE1: Обратно в содержание | ARG1: Обратно в содержание | ARI1: Обратно в содержание | ARK1: Обратно в содержание | ARM1: Обратно в содержание | ARO1: Обратно в содержание | ARQ1: Обратно в содержание | ARS1: Обратно в содержание | ARU1: Обратно в содержание | ARW1: Обратно в содержание | ARY1: Обратно в содержание | ASA1: Обратно в содержание | ASC1: Обратно в содержание | ASE1: Обратно в содержание | ASG1: Обратно в содержание | ASI1: Обратно в содержание | ASK1: Обратно в содержание | ASM1: Обратно в содержание | ASO1: Обратно в содержание | ASQ1: Обратно в содержание | ASS1: Обратно в содержание | ASU1: Обратно в содержание | ASW1: Обратно в содержание | ASY1: Обратно в содержание | ATA1: Обратно в содержание | ATC1: Обратно в содержание | ATE1: Обратно в содержание | ATG1: Обратно в содержание | ATI1: Обратно в содержание | ATK1: Обратно в содержание | ATM1: Обратно в содержание | ATO1: Обратно в содержание | ATQ1: Обратно в содержание | ATS1: Обратно в содержание | ATU1: Обратно в содержание | ATW1: Обратно в содержание | ATY1: Обратно в содержание | AUA1: Обратно в содержание | AUC1: Обратно в содержание | AUE1: Обратно в содержание | AUG1: Обратно в содержание | AUI1: Обратно в содержание | AUK1: Обратно в содержание | AUM1: Обратно в содержание | AUO1: Обратно в содержание | AUQ1: Обратно в содержание | AUS1: Обратно в содержание | AUU1: Обратно в содержание | AUW1: Обратно в содержание | AUY1: Обратно в содержание | AVA1: Обратно в содержание | AVC1: Обратно в содержание | AVE1: Обратно в содержание | AVG1: Обратно в содержание | AVI1: Обратно в содержание | AVK1: Обратно в содержание | AVM1: Обратно в содержание | AVO1: Обратно в содержание | AVQ1: Обратно в содержание | AVS1: Обратно в содержание | AVU1: Обратно в содержание | AVW1: Обратно в содержание | AVY1: Обратно в содержание | AWA1: Обратно в содержание | AWC1: Обратно в содержание | AWE1: Обратно в содержание | AWG1: Обратно в содержание | AWI1: Обратно в содержание | AWK1: Обратно в содержание | AWM1: Обратно в содержание | AWO1: Обратно в содержание | AWQ1: Обратно в содержание | AWS1: Обратно в содержание | AWU1: Обратно в содержание | AWW1: Обратно в содержание | AWY1: Обратно в содержание | AXA1: Обратно в содержание | AXC1: Обратно в содержание | AXE1: Обратно в содержание | AXG1: Обратно в содержание | AXI1: Обратно в содержание | AXK1: Обратно в содержание | AXM1: Обратно в содержание | AXO1: Обратно в содержание | AXQ1: Обратно в содержание | AXS1: Обратно в содержание | AXU1: Обратно в содержание | AXW1: Обратно в содержание | AXY1: Обратно в содержание | AYA1: Обратно в содержание | AYC1: Обратно в содержание | AYE1: Обратно в содержание | AYG1: Обратно в содержание | AYI1: Обратно в содержание | AYK1: Обратно в содержание | AYM1: Обратно в содержание | AYO1: Обратно в содержание | AYQ1: Обратно в содержание | AYS1: Обратно в содержание | AYU1: Обратно в содержание | AYW1: Обратно в содержание | AYY1: Обратно в содержание | AZA1: Обратно в содержание | AZC1: Обратно в содержание | AZE1: Обратно в содержание | AZG1: Обратно в содержание | AZI1: Обратно в содержание | AZK1: Обратно в содержание | AZM1: Обратно в содержание | AZO1: Обратно в содержание | AZQ1: Обратно в содержание | AZS1: Обратно в содержание | AZU1: Обратно в содержание | AZW1: Обратно в содержание | AZY1: Обратно в содержание | BAA1: Обратно в содержание | BAC1: Обратно в содержание | BAE1: Обратно в содержание | BAG1: Обратно в содержание | BAI1: Обратно в содержание | BAK1: Обратно в содержание | BAM1: Обратно в содержание | BAO1: Обратно в содержание | BAQ1: Обратно в содержание | BAS1: Обратно в содержание | BAU1: Обратно в содержание | BAW1: Обратно в содержание | BAY1: Обратно в содержание | BBA1: Обратно в содержание | BBC1: Обратно в содержание | BBE1: Обратно в содержание | BBG1: Обратно в содержание | BBI1: Обратно в содержание | BBK1: Обратно в содержание | BBM1: Обратно в содержание | BBO1: Обратно в содержание | BBQ1: Обратно в содержание | BBS1: Обратно в содержание | BBU1: Обратно в содержание | BBW1: Обратно в содержание | BBY1: Обратно в содержание | BCA1: Обратно в содержание | BCC1: Обратно в содержание | BCE1: Обратно в содержание | BCG1: Обратно в содержание | BCI1: Обратно в содержание | BCK1: Обратно в содержание | BCM1: Обратно в содержание | BCO1: Обратно в содержание | BCQ1: Обратно в содержание | BCS1: Обратно в содержание | BCU1: Обратно в содержание | BCW1: Обратно в содержание | BCY1: Обратно в содержание | BDA1: Обратно в содержание | BDC1: Обратно в содержание | BDE1: Обратно в содержание | BDG1: Обратно в содержание | BDI1: Обратно в содержание | BDK1: Обратно в содержание | BDM1: Обратно в содержание | BDO1: Обратно в содержание | BDQ1: Обратно в содержание | BDS1: Обратно в содержание | BDU1: Обратно в содержание | BDW1: Обратно в содержание | BDY1: Обратно в содержание | BEA1: Обратно в содержание | BEC1: Обратно в содержание | BEE1: Обратно в содержание | BEG1: Обратно в содержание | BEI1: Обратно в содержание | BEK1: Обратно в содержание | BEM1: Обратно в содержание | BEO1: Обратно в содержание | BEQ1: Обратно в содержание | BES1: Обратно в содержание | BEU1: Обратно в содержание | BEW1: Обратно в содержание | BEY1: Обратно в содержание | BFA1: Обратно в содержание | BFC1: Обратно в содержание | BFE1: Обратно в содержание | BFG1: Обратно в содержание | BFI1: Обратно в содержание | BFK1: Обратно в содержание | BFM1: Обратно в содержание | BFO1: Обратно в содержание | BFQ1: Обратно в содержание | BFS1: Обратно в содержание | BFU1: Обратно в содержание | BFW1: Обратно в содержание | BFY1: Обратно в содержание | BGA1: Обратно в содержание | BGC1: Обратно в содержание | BGE1: Обратно в содержание | BGG1: Обратно в содержание | BGI1: Обратно в содержание | BGK1: Обратно в содержание | BGM1: Обратно в содержание | BGO1: Обратно в содержание | BGQ1: Обратно в содержание | BGS1: Обратно в содержание | BGU1: Обратно в содержание | BGW1: Обратно в содержание | BGY1: Обратно в содержание | BHA1: Обратно в содержание | BHC1: Обратно в содержание | BHE1: Обратно в содержание | BHG1: Обратно в содержание | BHI1: Обратно в содержание | BHK1: Обратно в содержание | BHM1: Обратно в содержание | BHO1: Обратно в содержание | BHQ1: Обратно в содержание | BHS1: Обратно в содержание | BHU1: Обратно в содержание | BHW1: Обратно в содержание | BHY1: Обратно в содержание | BIA1: Обратно в содержание | BIC1: Обратно в содержание | BIE1: Обратно в содержание | BIG1: Обратно в содержание | BII1: Обратно в содержание | BIK1: Обратно в содержание | BIM1: Обратно в содержание | BIO1: Обратно в содержание | BIQ1: Обратно в содержание | BIS1: Обратно в содержание | BIU1: Обратно в содержание | BIW1: Обратно в содержание | BIY1: Обратно в содержание | BJA1: Обратно в содержание | BJC1: Обратно в содержание | BJE1: Обратно в содержание | BJG1: Обратно в содержание | BJI1: Обратно в содержание | BJK1: Обратно в содержание | BJM1: Обратно в содержание | BJO1: Обратно в содержание | BJQ1: Обратно в содержание | BJS1: Обратно в содержание | BJU1: Обратно в содержание | BJW1: Обратно в содержание | BJY1: Обратно в содержание | BKA1: Обратно в содержание | BKC1: Обратно в содержание | BKE1: Обратно в содержание | BKG1: Обратно в содержание | BKI1: Обратно в содержание | BKK1: Обратно в содержание | BKM1: Обратно в содержание | BKO1: Обратно в содержание | BKQ1: Обратно в содержание | BKS1: Обратно в содержание | BKU1: Обратно в содержание | BKW1: Обратно в содержание | BKY1: Обратно в содержание | BLA1: Обратно в содержание | BLC1: Обратно в содержание | BLE1: Обратно в содержание | BLG1: Обратно в содержание | BLI1: Обратно в содержание | BLK1: Обратно в содержание | BLM1: Обратно в содержание | BLO1: Обратно в содержание | BLQ1: Обратно в содержание | BLS1: Обратно в содержание | BLU1: Обратно в содержание | BLW1: Обратно в содержание | BLY1: Обратно в содержание | BMA1: Обратно в содержание | BMC1: Обратно в содержание | BME1: Обратно в содержание | BMG1: Обратно в содержание | BMI1: Обратно в содержание | BMK1: Обратно в содержание | BMM1: Обратно в содержание | BMO1: Обратно в содержание | BMQ1: Обратно в содержание | BMS1: Обратно в содержание | BMU1: Обратно в содержание | BMW1: Обратно в содержание | BMY1: Обратно в содержание | BNA1: Обратно в содержание | BNC1: Обратно в содержание | BNE1: Обратно в содержание | BNG1: Обратно в содержание | BNI1: Обратно в содержание | BNK1: Обратно в содержание | BNM1: Обратно в содержание | BNO1: Обратно в содержание | BNQ1: Обратно в содержание | BNS1: Обратно в содержание | BNU1: Обратно в содержание | BNW1: Обратно в содержание | BNY1: Обратно в содержание | BOA1: Обратно в содержание | BOC1: Обратно в содержание | BOE1: Обратно в содержание | BOG1: Обратно в содержание | BOI1: Обратно в содержание | BOK1: Обратно в содержание | BOM1: Обратно в содержание | BOO1: Обратно в содержание | BOQ1: Обратно в содержание | BOS1: Обратно в содержание | BOU1: Обратно в содержание | BOW1: Обратно в содержание | BOY1: Обратно в содержание | BPA1: Обратно в содержание | BPC1: Обратно в содержание | BPE1: Обратно в содержание | BPG1: Обратно в содержание | BPI1: Обратно в содержание | BPK1: Обратно в содержание | BPM1: Обратно в содержание | BPO1: Обратно в содержание | BPQ1: Обратно в содержание | BPS1: Обратно в содержание | BPU1: Обратно в содержание | BPW1: Обратно в содержание | BPY1: Обратно в содержание | BQA1: Обратно в содержание | BQC1: Обратно в содержание | BQE1: Обратно в содержание | BQG1: Обратно в содержание | BQI1: Обратно в содержание | BQK1: Обратно в содержание | BQM1: Обратно в содержание | BQO1: Обратно в содержание | BQQ1: Обратно в содержание | BQS1: Обратно в содержание | BQU1: Обратно в содержание | BQW1: Обратно в содержание | BQY1: Обратно в содержание | BRA1: Обратно в содержание | BRC1: Обратно в содержание | BRE1: Обратно в содержание | BRG1: Обратно в содержание | BRI1: Обратно в содержание | BRK1: Обратно в содержание | BRM1: Обратно в содержание | BRO1: Обратно в содержание | BRQ1: Обратно в содержание | BRS1: Обратно в содержание | BRU1: Обратно в содержание | BRW1: Обратно в содержание | BRY1: Обратно в содержание | BSA1: Обратно в содержание | BSC1: Обратно в содержание | BSE1: Обратно в содержание | BSG1: Обратно в содержание | BSI1: Обратно в содержание | BSK1: Обратно в содержание | BSM1: Обратно в содержание | BSO1: Обратно в содержание | BSQ1: Обратно в содержание | BSS1: Обратно в содержание | BSU1: Обратно в содержание | BSW1: Обратно в содержание | BSY1: Обратно в содержание | BTA1: Обратно в содержание | BTC1: Обратно в содержание | BTE1: Обратно в содержание | BTG1: Обратно в содержание | BTI1: Обратно в содержание | BTK1: Обратно в содержание | BTM1: Обратно в содержание | BTO1: Обратно в содержание | BTQ1: Обратно в содержание | BTS1: Обратно в содержание | BTU1: Обратно в содержание | BTW1: Обратно в содержание | BTY1: Обратно в содержание | BUA1: Обратно в содержание | BUC1: Обратно в содержание | BUE1: Обратно в содержание | BUG1: Обратно в содержание | BUI1: Обратно в содержание | BUK1: Обратно в содержание | BUM1: Обратно в содержание | BUO1: Обратно в содержание | BUQ1: Обратно в содержание | BUS1: Обратно в содержание | BUU1: Обратно в содержание | BUW1: Обратно в содержание | BUY1: Обратно в содержание | BVA1: Обратно в содержание | BVC1: Обратно в содержание | BVE1: Обратно в содержание | BVG1: Обратно в содержание | BVI1: Обратно в содержание | BVK1: Обратно в содержание | BVM1: Обратно в содержание | BVO1: Обратно в содержание | BVQ1: Обратно в содержание | BVS1: Обратно в содержание | BVU1: Обратно в содержание | BVW1: Обратно в содержание | BVY1: Обратно в содержание | BWA1: Обратно в содержание | BWC1: Обратно в содержание | BWE1: Обратно в содержание | BWG1: Обратно в содержание | BWI1: Обратно в содержание | BWK1: Обратно в содержание | BWM1: Обратно в содержание | BWO1: Обратно в содержание | BWQ1: Обратно в содержание | BWS1: Обратно в содержание | BWU1: Обратно в содержание | BWW1: Обратно в содержание | BWY1: Обратно в содержание | BXA1: Обратно в содержание | BXC1: Обратно в содержание | BXE1: Обратно в содержание | BXG1: Обратно в содержание | BXI1: Обратно в содержание | BXK1: Обратно в содержание | BXM1: Обратно в содержание | BXO1: Обратно в содержание | BXQ1: Обратно в содержание | BXS1: Обратно в содержание | BXU1: Обратно в содержание | BXW1: Обратно в содержание | BXY1: Обратно в содержание | BYA1: Обратно в содержание | BYC1: Обратно в содержание | BYE1: Обратно в содержание | BYG1: Обратно в содержание | BYI1: Обратно в содержание | BYK1: Обратно в содержание | BYM1: Обратно в содержание | BYO1: Обратно в содержание | BYQ1: Обратно в содержание | BYS1: Обратно в содержание | BYU1: Обратно в содержание | BYW1: Обратно в содержание | BYY1: Обратно в содержание | BZA1: Обратно в содержание | BZC1: Обратно в содержание | BZE1: Обратно в содержание | BZG1: Обратно в содержание | BZI1: Обратно в содержание | BZK1: Обратно в содержание | BZM1: Обратно в содержание | BZO1: Обратно в содержание | BZQ1: Обратно в содержание | BZS1: Обратно в содержание | BZU1: Обратно в содержание | BZW1: Обратно в содержание | BZY1: Обратно в содержание | CAA1: Обратно в содержание | CAC1: Обратно в содержание | CAE1: Обратно в содержание | CAG1: Обратно в содержание | CAI1: Обратно в содержание | CAK1: Обратно в содержание | CAM1: Обратно в содержание | CAO1: Обратно в содержание | CAQ1: Обратно в содержание | CAS1: Обратно в содержание | CAU1: Обратно в содержание | CAW1: Обратно в содержание | CAY1: Обратно в содержание | CBA1: Обратно в содержание | CBC1: Обратно в содержание | CBE1: Обратно в содержание | CBG1: Обратно в содержание | CBI1: Обратно в содержание | CBK1: Обратно в содержание | CBM1: Обратно в содержание | CBO1: Обратно в содержание | CBQ1: Обратно в содержание | CBS1: Обратно в содержание | CBU1: Обратно в содержание | CBW1: Обратно в содержание | CBY1: Обратно в содержание | CCA1: Обратно в содержание | CCC1: Обратно в содержание | CCE1: Обратно в содержание | CCG1: Обратно в содержание | CCI1: Обратно в содержание | CCK1: Обратно в содержание | CCM1: Обратно в содержание | CCO1: Обратно в содержание | CCQ1: Обратно в содержание | CCS1: Обратно в содержание | CCU1: Обратно в содержание | CCW1: Обратно в содержание | CCY1: Обратно в содержание | CDA1: Обратно в содержание | CDC1: Обратно в содержание | CDE1: Обратно в содержание | CDG1: Обратно в содержание | CDI1: Обратно в содержание | CDK1: Обратно в содержание | CDM1: Обратно в содержание | CDO1: Обратно в содержание | CDQ1: Обратно в содержание | CDS1: Обратно в содержание | CDU1: Обратно в содержание | CDW1: Обратно в содержание | CDY1: Обратно в содержание | CEA1: Обратно в содержание | CEC1: Обратно в содержание | CEE1: Обратно в содержание | CEG1: Обратно в содержание | CEI1: Обратно в содержание | CEK1: Обратно в содержание | CEM1: Обратно в содержание | CEO1: Обратно в содержание | CEQ1: Обратно в содержание | CES1: Обратно в содержание | CEU1: Обратно в содержание | CEW1: Обратно в содержание | CEY1: Обратно в содержание | CFA1: Обратно в содержание | CFC1: Обратно в содержание | CFE1: Обратно в содержание | CFG1: Обратно в содержание | CFI1: Обратно в содержание | CFK1: Обратно в содержание | CFM1: Обратно в содержание | CFO1: Обратно в содержание | CFQ1: Обратно в содержание | CFS1: Обратно в содержание | CFU1: Обратно в содержание | CFW1: Обратно в содержание | CFY1: Обратно в содержание | CGA1: Обратно в содержание | CGC1: Обратно в содержание | CGE1: Обратно в содержание | CGG1: Обратно в содержание | CGI1: Обратно в содержание | CGK1: Обратно в содержание | CGM1: Обратно в содержание | CGO1: Обратно в содержание | CGQ1: Обратно в содержание | CGS1: Обратно в содержание | CGU1: Обратно в содержание | CGW1: Обратно в содержание | CGY1: Обратно в содержание | CHA1: Обратно в содержание | CHC1: Обратно в содержание | CHE1: Обратно в содержание | CHG1: Обратно в содержание | CHI1: Обратно в содержание | CHK1: Обратно в содержание | CHM1: Обратно в содержание | CHO1: Обратно в содержание | CHQ1: Обратно в содержание | CHS1: Обратно в содержание | CHU1: Обратно в содержание | CHW1: Обратно в содержание | CHY1: Обратно в содержание | CIA1: Обратно в содержание | CIC1: Обратно в содержание | CIE1: Обратно в содержание | CIG1: Обратно в содержание | CII1: Обратно в содержание | CIK1: Обратно в содержание | CIM1: Обратно в содержание | CIO1: Обратно в содержание | CIQ1: Обратно в содержание | CIS1: Обратно в содержание | CIU1: Обратно в содержание | CIW1: Обратно в содержание | CIY1: Обратно в содержание | CJA1: Обратно в содержание | CJC1: Обратно в содержание | CJE1: Обратно в содержание | CJG1: Обратно в содержание | CJI1: Обратно в содержание | CJK1: Обратно в содержание | CJM1: Обратно в содержание | CJO1: Обратно в содержание | CJQ1: Обратно в содержание | CJS1: Обратно в содержание | CJU1: Обратно в содержание | CJW1: Обратно в содержание | CJY1: Обратно в содержание | CKA1: Обратно в содержание | CKC1: Обратно в содержание | CKE1: Обратно в содержание | CKG1: Обратно в содержание | CKI1: Обратно в содержание | CKK1: Обратно в содержание | CKM1: Обратно в содержание | CKO1: Обратно в содержание | CKQ1: Обратно в содержание | CKS1: Обратно в содержание | CKU1: Обратно в содержание | CKW1: Обратно в содержание | CKY1: Обратно в содержание | CLA1: Обратно в содержание | CLC1: Обратно в содержание | CLE1: Обратно в содержание | CLG1: Обратно в содержание | CLI1: Обратно в содержание | CLK1: Обратно в содержание | CLM1: Обратно в содержание | CLO1: Обратно в содержание | CLQ1: Обратно в содержание | CLS1: Обратно в содержание | CLU1: Обратно в содержание | CLW1: Обратно в содержание | CLY1: Обратно в содержание | CMA1: Обратно в содержание | CMC1: Обратно в содержание | CME1: Обратно в содержание | CMG1: Обратно в содержание | CMI1: Обратно в содержание | CMK1: Обратно в содержание | CMM1: Обратно в содержание | CMO1: Обратно в содержание | CMQ1: Обратно в содержание | CMS1: Обратно в содержание | CMU1: Обратно в содержание | CMW1: Обратно в содержание | CMY1: Обратно в содержание | CNA1: Обратно в содержание | CNC1: Обратно в содержание | CNE1: Обратно в содержание | CNG1: Обратно в содержание | CNI1: Обратно в содержание | CNK1: Обратно в содержание | CNM1: Обратно в содержание | CNO1: Обратно в содержание | CNQ1: Обратно в содержание | CNS1: Обратно в содержание | CNU1: Обратно в содержание | CNW1: Обратно в содержание | CNY1: Обратно в содержание | COA1: Обратно в содержание | COC1: Обратно в содержание | COE1: Обратно в содержание | COG1: Обратно в содержание | COI1: Обратно в содержание | COK1: Обратно в содержание | COM1: Обратно в содержание | COO1: Обратно в содержание | COQ1: Обратно в содержание | COS1: Обратно в содержание | COU1: Обратно в содержание | COW1: Обратно в содержание | COY1: Обратно в содержание | CPA1: Обратно в содержание | CPC1: Обратно в содержание | CPE1: Обратно в содержание | CPG1: Обратно в содержание | CPI1: Обратно в содержание | CPK1: Обратно в содержание | CPM1: Обратно в содержание | CPO1: Обратно в содержание | CPQ1: Обратно в содержание | CPS1: Обратно в содержание | CPU1: Обратно в содержание | CPW1: Обратно в содержание | CPY1: Обратно в содержание | CQA1: Обратно в содержание | CQC1: Обратно в содержание | CQE1: Обратно в содержание | CQG1: Обратно в содержание | CQI1: Обратно в содержание | CQK1: Обратно в содержание | CQM1: Обратно в содержание | CQO1: Обратно в содержание | CQQ1: Обратно в содержание | CQS1: Обратно в содержание | CQU1: Обратно в содержание | CQW1: Обратно в содержание | CQY1: Обратно в содержание | CRA1: Обратно в содержание | CRC1: Обратно в содержание | CRE1: Обратно в содержание | CRG1: Обратно в содержание | CRI1: Обратно в содержание | CRK1: Обратно в содержание | CRM1: Обратно в содержание | CRO1: Обратно в содержание | CRQ1: Обратно в содержание | CRS1: Обратно в содержание | CRU1: Обратно в содержание | CRW1: Обратно в содержание | CRY1: Обратно в содержание | CSA1: Обратно в содержание | CSC1: Обратно в содержание | CSE1: Обратно в содержание | CSG1: Обратно в содержание | CSI1: Обратно в содержание | CSK1: Обратно в содержание | CSM1: Обратно в содержание | CSO1: Обратно в содержание | CSQ1: Обратно в содержание | CSS1: Обратно в содержание | CSU1: Обратно в содержание | CSW1: Обратно в содержание | CSY1: Обратно в содержание | CTA1: Обратно в содержание | CTC1: Обратно в содержание | CTE1: Обратно в содержание | CTG1: Обратно в содержание | CTI1: Обратно в содержание | CTK1: Обратно в содержание | CTM1: Обратно в содержание | CTO1: Обратно в содержание | CTQ1: Обратно в содержание | CTS1: Обратно в содержание | CTU1: Обратно в содержание | CTW1: Обратно в содержание | CTY1: Обратно в содержание | CUA1: Обратно в содержание | CUC1: Обратно в содержание | CUE1: Обратно в содержание | CUG1: Обратно в содержание | CUI1: Обратно в содержание | CUK1: Обратно в содержание | CUM1: Обратно в содержание | CUO1: Обратно в содержание | CUQ1: Обратно в содержание | CUS1: Обратно в содержание | CUU1: Обратно в содержание | CUW1: Обратно в содержание | CUY1: Обратно в содержание | CVA1: Обратно в содержание | CVC1: Обратно в содержание | CVE1: Обратно в содержание | CVG1: Обратно в содержание | CVI1: Обратно в содержание | CVK1: Обратно в содержание | CVM1: Обратно в содержание | CVO1: Обратно в содержание | CVQ1: Обратно в содержание | CVS1: Обратно в содержание | CVU1: Обратно в содержание | CVW1: Обратно в содержание | CVY1: Обратно в содержание | CWA1: Обратно в содержание | CWC1: Обратно в содержание | CWE1: Обратно в содержание | CWG1: Обратно в содержание | CWI1: Обратно в содержание | CWK1: Обратно в содержание | CWM1: Обратно в содержание | CWO1: Обратно в содержание | CWQ1: Обратно в содержание | CWS1: Обратно в содержание | CWU1: Обратно в содержание | CWW1: Обратно в содержание | CWY1: Обратно в содержание | CXA1: Обратно в содержание | CXC1: Обратно в содержание | CXE1: Обратно в содержание | CXG1: Обратно в содержание | CXI1: Обратно в содержание | CXK1: Обратно в содержание | CXM1: Обратно в содержание | CXO1: Обратно в содержание | CXQ1: Обратно в содержание | CXS1: Обратно в содержание | CXU1: Обратно в содержание | CXW1: Обратно в содержание | CXY1: Обратно в содержание | CYA1: Обратно в содержание | CYC1: Обратно в содержание | CYE1: Обратно в содержание | CYG1: Обратно в содержание | CYI1: Обратно в содержание | CYK1: Обратно в содержание | CYM1: Обратно в содержание | CYO1: Обратно в содержание | CYQ1: Обратно в содержание | CYS1: Обратно в содержание | CYU1: Обратно в содержание | CYW1: Обратно в содержание | CYY1: Обратно в содержание | CZA1: Обратно в содержание | CZC1: Обратно в содержание | CZE1: Обратно в содержание | CZG1: Обратно в содержание | CZI1: Обратно в содержание | CZK1: Обратно в содержание | CZM1: Обратно в содержание | CZO1: Обратно в содержание | CZQ1: Обратно в содержание | CZS1: Обратно в содержание | CZU1: Обратно в содержание | CZW1: Обратно в содержание | CZY1: Обратно в содержание | DAA1: Обратно в содержание | DAC1: Обратно в содержание | DAE1: Обратно в содержание | DAG1: Обратно в содержание | DAI1: Обратно в содержание | DAK1: Обратно в содержание | DAM1: Обратно в содержание | DAO1: Обратно в содержание | DAQ1: Обратно в содержание | DAS1: Обратно в содержание | DAU1: Обратно в содержание | DAW1: Обратно в содержание | DAY1: Обратно в содержание | DBA1: Обратно в содержание | DBC1: Обратно в содержание | DBE1: Обратно в содержание | DBG1: Обратно в содержание | DBI1: Обратно в содержание | DBK1: Обратно в содержание | DBM1: Обратно в содержание | DBO1: Обратно в содержание | DBQ1: Обратно в содержание | DBS1: Обратно в содержание | DBU1: Обратно в содержание | DBW1: Обратно в содержание | DBY1: Обратно в содержание | DCA1: Обратно в содержание | DCC1: Обратно в содержание | DCE1: Обратно в содержание | DCG1: Обратно в содержание | DCI1: Обратно в содержание | DCK1: Обратно в содержание | DCM1: Обратно в содержание | DCO1: Обратно в содержание | DCQ1: Обратно в содержание | DCS1: Обратно в содержание | DCU1: Обратно в содержание | DCW1: Обратно в содержание | DCY1: Обратно в содержание | DDA1: Обратно в содержание | DDC1: Обратно в содержание | DDE1: Обратно в содержание | DDG1: Обратно в содержание | DDI1: Обратно в содержание | DDK1: Обратно в содержание | DDM1: Обратно в содержание | DDO1: Обратно в содержание | DDQ1: Обратно в содержание | DDS1: Обратно в содержание | DDU1: Обратно в содержание | DDW1: Обратно в содержание | DDY1: Обратно в содержание | DEA1: Обратно в содержание | DEC1: Обратно в содержание | DEE1: Обратно в содержание | DEG1: Обратно в содержание | DEI1: Обратно в содержание | DEK1: Обратно в содержание | DEM1: Обратно в содержание | DEO1: Обратно в содержание | DEQ1: Обратно в содержание | DES1: Обратно в содержание | DEU1: Обратно в содержание | DEW1: Обратно в содержание | DEY1: Обратно в содержание | DFA1: Обратно в содержание | DFC1: Обратно в содержание | DFE1: Обратно в содержание | DFG1: Обратно в содержание | DFI1: Обратно в содержание | DFK1: Обратно в содержание | DFM1: Обратно в содержание | DFO1: Обратно в содержание | DFQ1: Обратно в содержание | DFS1: Обратно в содержание | DFU1: Обратно в содержание | DFW1: Обратно в содержание | DFY1: Обратно в содержание | DGA1: Обратно в содержание | DGC1: Обратно в содержание | DGE1: Обратно в содержание | DGG1: Обратно в содержание | DGI1: Обратно в содержание | DGK1: Обратно в содержание | DGM1: Обратно в содержание | DGO1: Обратно в содержание | DGQ1: Обратно в содержание | DGS1: Обратно в содержание | DGU1: Обратно в содержание | DGW1: Обратно в содержание | DGY1: Обратно в содержание | DHA1: Обратно в содержание | DHC1: Обратно в содержание | DHE1: Обратно в содержание | DHG1: Обратно в содержание | DHI1: Обратно в содержание | DHK1: Обратно в содержание | DHM1: Обратно в содержание | DHO1: Обратно в содержание | DHQ1: Обратно в содержание | DHS1: Обратно в содержание | DHU1: Обратно в содержание | DHW1: Обратно в содержание | DHY1: Обратно в содержание | DIA1: Обратно в содержание | DIC1: Обратно в содержание | DIE1: Обратно в содержание | DIG1: Обратно в содержание | DII1: Обратно в содержание | DIK1: Обратно в содержание | DIM1: Обратно в содержание | DIO1: Обратно в содержание | DIQ1: Обратно в содержание | DIS1: Обратно в содержание | DIU1: Обратно в содержание | DIW1: Обратно в содержание | DIY1: Обратно в содержание | DJA1: Обратно в содержание | DJC1: Обратно в содержание | DJE1: Обратно в содержание | DJG1: Обратно в содержание | DJI1: Обратно в содержание | DJK1: Обратно в содержание | DJM1: Обратно в содержание | DJO1: Обратно в содержание | DJQ1: Обратно в содержание | DJS1: Обратно в содержание | DJU1: Обратно в содержание | DJW1: Обратно в содержание | DJY1: Обратно в содержание | DKA1: Обратно в содержание | DKC1: Обратно в содержание | DKE1: Обратно в содержание | DKG1: Обратно в содержание | DKI1: Обратно в содержание | DKK1: Обратно в содержание | DKM1: Обратно в содержание | DKO1: Обратно в содержание | DKQ1: Обратно в содержание | DKS1: Обратно в содержание | DKU1: Обратно в содержание | DKW1: Обратно в содержание | DKY1: Обратно в содержание | DLA1: Обратно в содержание | DLC1: Обратно в содержание | DLE1: Обратно в содержание | DLG1: Обратно в содержание | DLI1: Обратно в содержание | DLK1: Обратно в содержание | DLM1: Обратно в содержание | DLO1: Обратно в содержание | DLQ1: Обратно в содержание | DLS1: Обратно в содержание | DLU1: Обратно в содержание | DLW1: Обратно в содержание | DLY1: Обратно в содержание | DMA1: Обратно в содержание | DMC1: Обратно в содержание | DME1: Обратно в содержание | DMG1: Обратно в содержание | DMI1: Обратно в содержание | DMK1: Обратно в содержание | DMM1: Обратно в содержание | DMO1: Обратно в содержание | DMQ1: Обратно в содержание | DMS1: Обратно в содержание | DMU1: Обратно в содержание | DMW1: Обратно в содержание | DMY1: Обратно в содержание | DNA1: Обратно в содержание | DNC1: Обратно в содержание | DNE1: Обратно в содержание | DNG1: Обратно в содержание | DNI1: Обратно в содержание | DNK1: Обратно в содержание | DNM1: Обратно в содержание | DNO1: Обратно в содержание | DNQ1: Обратно в содержание | DNS1: Обратно в содержание | DNU1: Обратно в содержание | DNW1: Обратно в содержание | DNY1: Обратно в содержание | DOA1: Обратно в содержание | DOC1: Обратно в содержание | DOE1: Обратно в содержание | DOG1: Обратно в содержание | DOI1: Обратно в содержание | DOK1: Обратно в содержание | DOM1: Обратно в содержание | DOO1: Обратно в содержание | DOQ1: Обратно в содержание | DOS1: Обратно в содержание | DOU1: Обратно в содержание | DOW1: Обратно в содержание | DOY1: Обратно в содержание | DPA1: Обратно в содержание | DPC1: Обратно в содержание | DPE1: Обратно в содержание | DPG1: Обратно в содержание | DPI1: Обратно в содержание | DPK1: Обратно в содержание | DPM1: Обратно в содержание | DPO1: Обратно в содержание | DPQ1: Обратно в содержание | DPS1: Обратно в содержание | DPU1: Обратно в содержание | DPW1: Обратно в содержание | DPY1: Обратно в содержание | DQA1: Обратно в содержание | DQC1: Обратно в содержание | DQE1: Обратно в содержание | DQG1: Обратно в содержание | DQI1: Обратно в содержание | DQK1: Обратно в содержание | DQM1: Обратно в содержание | DQO1: Обратно в содержание | DQQ1: Обратно в содержание | DQS1: Обратно в содержание | DQU1: Обратно в содержание | DQW1: Обратно в содержание | DQY1: Обратно в содержание | DRA1: Обратно в содержание | DRC1: Обратно в содержание | DRE1: Обратно в содержание | DRG1: Обратно в содержание | DRI1: Обратно в содержание | DRK1: Обратно в содержание | DRM1: Обратно в содержание | DRO1: Обратно в содержание | DRQ1: Обратно в содержание | DRS1: Обратно в содержание | DRU1: Обратно в содержание | DRW1: Обратно в содержание | DRY1: Обратно в содержание | DSA1: Обратно в содержание | DSC1: Обратно в содержание | DSE1: Обратно в содержание | DSG1: Обратно в содержание | DSI1: Обратно в содержание | DSK1: Обратно в содержание | DSM1: Обратно в содержание | DSO1: Обратно в содержание | DSQ1: Обратно в содержание | DSS1: Обратно в содержание | DSU1: Обратно в содержание | DSW1: Обратно в содержание | DSY1: Обратно в содержание | DTA1: Обратно в содержание | DTC1: Обратно в содержание | DTE1: Обратно в содержание | DTG1: Обратно в содержание | DTI1: Обратно в содержание | DTK1: Обратно в содержание | DTM1: Обратно в содержание | DTO1: Обратно в содержание | DTQ1: Обратно в содержание | DTS1: Обратно в содержание | DTU1: Обратно в содержание | DTW1: Обратно в содержание | DTY1: Обратно в содержание | DUA1: Обратно в содержание | DUC1: Обратно в содержание | DUE1: Обратно в содержание | DUG1: Обратно в содержание | DUI1: Обратно в содержание | DUK1: Обратно в содержание | DUM1: Обратно в содержание | DUO1: Обратно в содержание | DUQ1: Обратно в содержание | DUS1: Обратно в содержание | DUU1: Обратно в содержание | DUW1: Обратно в содержание | DUY1: Обратно в содержание | DVA1: Обратно в содержание | DVC1: Обратно в содержание | DVE1: Обратно в содержание | DVG1: Обратно в содержание | DVI1: Обратно в содержание | DVK1: Обратно в содержание | DVM1: Обратно в содержание | DVO1: Обратно в содержание | DVQ1: Обратно в содержание | DVS1: Обратно в содержание | DVU1: Обратно в содержание | DVW1: Обратно в содержание | DVY1: Обратно в содержание | DWA1: Обратно в содержание | DWC1: Обратно в содержание | DWE1: Обратно в содержание | DWG1: Обратно в содержание | DWI1: Обратно в содержание | DWK1: Обратно в содержание | DWM1: Обратно в содержание | DWO1: Обратно в содержание | DWQ1: Обратно в содержание | DWS1: Обратно в содержание | DWU1: Обратно в содержание | DWW1: Обратно в содержание | DWY1: Обратно в содержание | DXA1: Обратно в содержание | DXC1: Обратно в содержание | DXE1: Обратно в содержание | DXG1: Обратно в содержание | DXI1: Обратно в содержание | DXK1: Обратно в содержание | DXM1: Обратно в содержание | DXO1: Обратно в содержание | DXQ1: Обратно в содержание | DXS1: Обратно в содержание | DXU1: Обратно в содержание | DXW1: Обратно в содержание | DXY1: Обратно в содержание | DYA1: Обратно в содержание | DYC1: Обратно в содержание | DYE1: Обратно в содержание | DYG1: Обратно в содержание | DYI1: Обратно в содержание | DYK1: Обратно в содержание | DYM1: Обратно в содержание | DYO1: Обратно в содержание | DYQ1: Обратно в содержание | DYS1: Обратно в содержание | DYU1: Обратно в содержание | DYW1: Обратно в содержание | DYY1: Обратно в содержание | DZA1: Обратно в содержание | DZC1: Обратно в содержание | DZE1: Обратно в содержание | DZG1: Обратно в содержание | DZI1: Обратно в содержание | DZK1: Обратно в содержание | DZM1: Обратно в содержание | DZO1: Обратно в содержание | DZQ1: Обратно в содержание | DZS1: Обратно в содержание | DZU1: Обратно в содержание | DZW1: Обратно в содержание | DZY1: Обратно в содержание | EAA1: Обратно в содержание | EAC1: Обратно в содержание | EAE1: Обратно в содержание | EAG1: Обратно в содержание | EAI1: Обратно в содержание | EAK1: Обратно в содержание | EAM1: Обратно в содержание | EAO1: Обратно в содержание | EAQ1: Обратно в содержание | EAS1: Обратно в содержание | EAU1: Обратно в содержание | EAW1: Обратно в содержание | EAY1: Обратно в содержание | EBA1: Обратно в содержание | EBC1: Обратно в содержание | EBE1: Обратно в содержание | EBG1: Обратно в содержание | EBI1: Обратно в содержание | EBK1: Обратно в содержание | EBM1: Обратно в содержание | EBO1: Обратно в содержание | EBQ1: Обратно в содержание | EBS1: Обратно в содержание | EBU1: Обратно в содержание | EBW1: Обратно в содержание | EBY1: Обратно в содержание | ECA1: Обратно в содержание | ECC1: Обратно в содержание | ECE1: Обратно в содержание | ECG1: Обратно в содержание | ECI1: Обратно в содержание | ECK1: Обратно в содержание | ECM1: Обратно в содержание | ECO1: Обратно в содержание | ECQ1: Обратно в содержание | ECS1: Обратно в содержание | ECU1: Обратно в содержание | ECW1: Обратно в содержание | ECY1: Обратно в содержание | EDA1: Обратно в содержание | EDC1: Обратно в содержание | EDE1: Обратно в содержание | EDG1: Обратно в содержание | EDI1: Обратно в содержание | EDK1: Обратно в содержание | EDM1: Обратно в содержание | EDO1: Обратно в содержание | EDQ1: Обратно в содержание | EDS1: Обратно в содержание | EDU1: Обратно в содержание | EDW1: Обратно в содержание | EDY1: Обратно в содержание | EEA1: Обратно в содержание | EEC1: Обратно в содержание | EEE1: Обратно в содержание | EEG1: Обратно в содержание | EEI1: Обратно в содержание | EEK1: Обратно в содержание | EEM1: Обратно в содержание | EEO1: Обратно в содержание | EEQ1: Обратно в содержание | EES1: Обратно в содержание | EEU1: Обратно в содержание | EEW1: Обратно в содержание | EEY1: Обратно в содержание | EFA1: Обратно в содержание | EFC1: Обратно в содержание | EFE1: Обратно в содержание | EFG1: Обратно в содержание | EFI1: Обратно в содержание | EFK1: Обратно в содержание | EFM1: Обратно в содержание | EFO1: Обратно в содержание | EFQ1: Обратно в содержание | EFS1: Обратно в содержание | EFU1: Обратно в содержание | EFW1: Обратно в содержание | EFY1: Обратно в содержание | EGA1: Обратно в содержание | EGC1: Обратно в содержание | EGE1: Обратно в содержание | EGG1: Обратно в содержание | EGI1: Обратно в содержание | EGK1: Обратно в содержание | EGM1: Обратно в содержание | EGO1: Обратно в содержание | EGQ1: Обратно в содержание | EGS1: Обратно в содержание | EGU1: Обратно в содержание | EGW1: Обратно в содержание | EGY1: Обратно в содержание | EHA1: Обратно в содержание | EHC1: Обратно в содержание | EHE1: Обратно в содержание | EHG1: Обратно в содержание | EHI1: Обратно в содержание | EHK1: Обратно в содержание | EHM1: Обратно в содержание | EHO1: Обратно в содержание | EHQ1: Обратно в содержание | EHS1: Обратно в содержание | EHU1: Обратно в содержание | EHW1: Обратно в содержание | EHY1: Обратно в содержание | EIA1: Обратно в содержание | EIC1: Обратно в содержание | EIE1: Обратно в содержание | EIG1: Обратно в содержание | EII1: Обратно в содержание | EIK1: Обратно в содержание | EIM1: Обратно в содержание | EIO1: Обратно в содержание | EIQ1: Обратно в содержание | EIS1: Обратно в содержание | EIU1: Обратно в содержание | EIW1: Обратно в содержание | EIY1: Обратно в содержание | EJA1: Обратно в содержание | EJC1: Обратно в содержание | EJE1: Обратно в содержание | EJG1: Обратно в содержание | EJI1: Обратно в содержание | EJK1: Обратно в содержание | EJM1: Обратно в содержание | EJO1: Обратно в содержание | EJQ1: Обратно в содержание | EJS1: Обратно в содержание | EJU1: Обратно в содержание | EJW1: Обратно в содержание | EJY1: Обратно в содержание | EKA1: Обратно в содержание | EKC1: Обратно в содержание | EKE1: Обратно в содержание | EKG1: Обратно в содержание | EKI1: Обратно в содержание | EKK1: Обратно в содержание | EKM1: Обратно в содержание | EKO1: Обратно в содержание | EKQ1: Обратно в содержание | EKS1: Обратно в содержание | EKU1: Обратно в содержание | EKW1: Обратно в содержание | EKY1: Обратно в содержание | ELA1: Обратно в содержание | ELC1: Обратно в содержание | ELE1: Обратно в содержание | ELG1: Обратно в содержание | ELI1: Обратно в содержание | ELK1: Обратно в содержание | ELM1: Обратно в содержание | ELO1: Обратно в содержание | ELQ1: Обратно в содержание | ELS1: Обратно в содержание | ELU1: Обратно в содержание | ELW1: Обратно в содержание | ELY1: Обратно в содержание | EMA1: Обратно в содержание | EMC1: Обратно в содержание | EME1: Обратно в содержание | EMG1: Обратно в содержание | EMI1: Обратно в содержание | EMK1: Обратно в содержание | EMM1: Обратно в содержание | EMO1: Обратно в содержание | EMQ1: Обратно в содержание | EMS1: Обратно в содержание | EMU1: Обратно в содержание | EMW1: Обратно в содержание | EMY1: Обратно в содержание | ENA1: Обратно в содержание | ENC1: Обратно в содержание | ENE1: Обратно в содержание | ENG1: Обратно в содержание | ENI1: Обратно в содержание | ENK1: Обратно в содержание | ENM1: Обратно в содержание | ENO1: Обратно в содержание | ENQ1: Обратно в содержание | ENS1: Обратно в содержание | ENU1: Обратно в содержание | ENW1: Обратно в содержание | ENY1: Обратно в содержание | EOA1: Обратно в содержание | EOC1: Обратно в содержание | EOE1: Обратно в содержание | EOG1: Обратно в содержание | EOI1: Обратно в содержание | EOK1: Обратно в содержание | EOM1: Обратно в содержание | EOO1: Обратно в содержание | EOQ1: Обратно в содержание | EOS1: Обратно в содержание | EOU1: Обратно в содержание | EOW1: Обратно в содержание | EOY1: Обратно в содержание | EPA1: Обратно в содержание | EPC1: Обратно в содержание | EPE1: Обратно в содержание | EPG1: Обратно в содержание | EPI1: Обратно в содержание | EPK1: Обратно в содержание | EPM1: Обратно в содержание | EPO1: Обратно в содержание | EPQ1: Обратно в содержание | EPS1: Обратно в содержание | EPU1: Обратно в содержание | EPW1: Обратно в содержание | EPY1: Обратно в содержание | EQA1: Обратно в содержание | EQC1: Обратно в содержание | EQE1: Обратно в содержание | EQG1: Обратно в содержание | EQI1: Обратно в содержание | EQK1: Обратно в содержание | EQM1: Обратно в содержание | EQO1: Обратно в содержание | EQQ1: Обратно в содержание | EQS1: Обратно в содержание | EQU1: Обратно в содержание | EQW1: Обратно в содержание | EQY1: Обратно в содержание | ERA1: Обратно в содержание | ERC1: Обратно в содержание | ERE1: Обратно в содержание | ERG1: Обратно в содержание | ERI1: Обратно в содержание | ERK1: Обратно в содержание | ERM1: Обратно в содержание | ERO1: Обратно в содержание | ERQ1: Обратно в содержание | ERS1: Обратно в содержание | ERU1: Обратно в содержание | ERW1: Обратно в содержание | ERY1: Обратно в содержание | ESA1: Обратно в содержание | ESC1: Обратно в содержание | ESE1: Обратно в содержание | ESG1: Обратно в содержание | ESI1: Обратно в содержание | ESK1: Обратно в содержание | ESM1: Обратно в содержание | ESO1: Обратно в содержание | ESQ1: Обратно в содержание | ESS1: Обратно в содержание | ESU1: Обратно в содержание | ESW1: Обратно в содержание | ESY1: Обратно в содержание | ETA1: Обратно в содержание | ETC1: Обратно в содержание | ETE1: Обратно в содержание | ETG1: Обратно в содержание | ETI1: Обратно в содержание | ETK1: Обратно в содержание | ETM1: Обратно в содержание | ETO1: Обратно в содержание | ETQ1: Обратно в содержание | ETS1: Обратно в содержание | ETU1: Обратно в содержание | ETW1: Обратно в содержание | ETY1: Обратно в содержание | EUA1: Обратно в содержание | EUC1: Обратно в содержание | EUE1: Обратно в содержание | EUG1: Обратно в содержание | EUI1: Обратно в содержание | EUK1: Обратно в содержание | EUM1: Обратно в содержание | EUO1: Обратно в содержание | EUQ1: Обратно в содержание | EUS1: Обратно в содержание | EUU1: Обратно в содержание | EUW1: Обратно в содержание | EUY1: Обратно в содержание | EVA1: Обратно в содержание | EVC1: Обратно в содержание | EVE1: Обратно в содержание | EVG1: Обратно в содержание | EVI1: Обратно в содержание | EVK1: Обратно в содержание | EVM1: Обратно в содержание | EVO1: Обратно в содержание | EVQ1: Обратно в содержание | EVS1: Обратно в содержание | EVU1: Обратно в содержание | EVW1: Обратно в содержание | EVY1: Обратно в содержание | EWA1: Обратно в содержание | EWC1: Обратно в содержание | EWE1: Обратно в содержание | EWG1: Обратно в содержание | EWI1: Обратно в содержание | EWK1: Обратно в содержание | EWM1: Обратно в содержание | EWO1: Обратно в содержание | EWQ1: Обратно в содержание | EWS1: Обратно в содержание | EWU1: Обратно в содержание | EWW1: Обратно в содержание | EWY1: Обратно в содержание | EXA1: Обратно в содержание | EXC1: Обратно в содержание | EXE1: Обратно в содержание | EXG1: Обратно в содержание | EXI1: Обратно в содержание | EXK1: Обратно в содержание | EXM1: Обратно в содержание | EXO1: Обратно в содержание | EXQ1: Обратно в содержание | EXS1: Обратно в содержание | EXU1: Обратно в содержание | EXW1: Обратно в содержание | EXY1: Обратно в содержание | EYA1: Обратно в содержание | EYC1: Обратно в содержание | EYE1: Обратно в содержание | EYG1: Обратно в содержание | EYI1: Обратно в содержание | EYK1: Обратно в содержание | EYM1: Обратно в содержание | EYO1: Обратно в содержание | EYQ1: Обратно в содержание | EYS1: Обратно в содержание | EYU1: Обратно в содержание | EYW1: Обратно в содержание | EYY1: Обратно в содержание | EZA1: Обратно в содержание | EZC1: Обратно в содержание | EZE1: Обратно в содержание | EZG1: Обратно в содержание | EZI1: Обратно в содержание | EZK1: Обратно в содержание | EZM1: Обратно в содержание | EZO1: Обратно в содержание | EZQ1: Обратно в содержание | EZS1: Обратно в содержание | EZU1: Обратно в содержание | EZW1: Обратно в содержание | EZY1: Обратно в содержание | FAA1: Обратно в содержание | FAC1: Обратно в содержание | FAE1: Обратно в содержание | FAG1: Обратно в содержание | FAI1: Обратно в содержание | FAK1: Обратно в содержание | FAM1: Обратно в содержание | FAO1: Обратно в содержание | FAQ1: Обратно в содержание | FAS1: Обратно в содержание | FAU1: Обратно в содержание | FAW1: Обратно в содержание | FAY1: Обратно в содержание | FBA1: Обратно в содержание | FBC1: Обратно в содержание | FBE1: Обратно в содержание | FBG1: Обратно в содержание | FBI1: Обратно в содержание | FBK1: Обратно в содержание | FBM1: Обратно в содержание | FBO1: Обратно в содержание | FBQ1: Обратно в содержание | FBS1: Обратно в содержание | FBU1: Обратно в содержание | FBW1: Обратно в содержание | FBY1: Обратно в содержание | FCA1: Обратно в содержание | FCC1: Обратно в содержание | FCE1: Обратно в содержание | FCG1: Обратно в содержание | FCI1: Обратно в содержание | FCK1: Обратно в содержание | FCM1: Обратно в содержание | FCO1: Обратно в содержание | FCQ1: Обратно в содержание | FCS1: Обратно в содержание | FCU1: Обратно в содержание | FCW1: Обратно в содержание | FCY1: Обратно в содержание | FDA1: Обратно в содержание | FDC1: Обратно в содержание | FDE1: Обратно в содержание | FDG1: Обратно в содержание | FDI1: Обратно в содержание | FDK1: Обратно в содержание | FDM1: Обратно в содержание | FDO1: Обратно в содержание | FDQ1: Обратно в содержание | FDS1: Обратно в содержание | FDU1: Обратно в содержание | FDW1: Обратно в содержание | FDY1: Обратно в содержание | FEA1: Обратно в содержание | FEC1: Обратно в содержание | FEE1: Обратно в содержание | FEG1: Обратно в содержание | FEI1: Обратно в содержание | FEK1: Обратно в содержание | FEM1: Обратно в содержание | FEO1: Обратно в содержание | FEQ1: Обратно в содержание | FES1: Обратно в содержание | FEU1: Обратно в содержание | FEW1: Обратно в содержание | FEY1: Обратно в содержание | FFA1: Обратно в содержание | FFC1: Обратно в содержание | FFE1: Обратно в содержание | FFG1: Обратно в содержание | FFI1: Обратно в содержание | FFK1: Обратно в содержание | FFM1: Обратно в содержание | FFO1: Обратно в содержание | FFQ1: Обратно в содержание | FFS1: Обратно в содержание | FFU1: Обратно в содержание | FFW1: Обратно в содержание | FFY1: Обратно в содержание | FGA1: Обратно в содержание | FGC1: Обратно в содержание | FGE1: Обратно в содержание | FGG1: Обратно в содержание | FGI1: Обратно в содержание | FGK1: Обратно в содержание | FGM1: Обратно в содержание | FGO1: Обратно в содержание | FGQ1: Обратно в содержание | FGS1: Обратно в содержание | FGU1: Обратно в содержание | FGW1: Обратно в содержание | FGY1: Обратно в содержание | FHA1: Обратно в содержание | FHC1: Обратно в содержание | FHE1: Обратно в содержание | FHG1: Обратно в содержание | FHI1: Обратно в содержание | FHK1: Обратно в содержание | FHM1: Обратно в содержание | FHO1: Обратно в содержание | FHQ1: Обратно в содержание | FHS1: Обратно в содержание | FHU1: Обратно в содержание | FHW1: Обратно в содержание | FHY1: Обратно в содержание | FIA1: Обратно в содержание | FIC1: Обратно в содержание | FIE1: Обратно в содержание | FIG1: Обратно в содержание | FII1: Обратно в содержание | FIK1: Обратно в содержание | FIM1: Обратно в содержание | FIO1: Обратно в содержание | FIQ1: Обратно в содержание | FIS1: Обратно в содержание | FIU1: Обратно в содержание | FIW1: Обратно в содержание | FIY1: Обратно в содержание | FJA1: Обратно в содержание | FJC1: Обратно в содержание | FJE1: Обратно в содержание | FJG1: Обратно в содержание | FJI1: Обратно в содержание | FJK1: Обратно в содержание | FJM1: Обратно в содержание | FJO1: Обратно в содержание | FJQ1: Обратно в содержание | FJS1: Обратно в содержание | FJU1: Обратно в содержание | FJW1: Обратно в содержание | FJY1: Обратно в содержание | FKA1: Обратно в содержание | FKC1: Обратно в содержание | FKE1: Обратно в содержание | FKG1: Обратно в содержание | FKI1: Обратно в содержание | FKK1: Обратно в содержание | FKM1: Обратно в содержание | FKO1: Обратно в содержание | FKQ1: Обратно в содержание | FKS1: Обратно в содержание | FKU1: Обратно в содержание | FKW1: Обратно в содержание | FKY1: Обратно в содержание | FLA1: Обратно в содержание | FLC1: Обратно в содержание | FLE1: Обратно в содержание | FLG1: Обратно в содержание | FLI1: Обратно в содержание | FLK1: Обратно в содержание | FLM1: Обратно в содержание | FLO1: Обратно в содержание | FLQ1: Обратно в содержание | FLS1: Обратно в содержание | FLU1: Обратно в содержание | FLW1: Обратно в содержание | FLY1: Обратно в содержание | FMA1: Обратно в содержание | FMC1: Обратно в содержание | FME1: Обратно в содержание | FMG1: Обратно в содержание | FMI1: Обратно в содержание | FMK1: Обратно в содержание | FMM1: Обратно в содержание | FMO1: Обратно в содержание | FMQ1: Обратно в содержание | FMS1: Обратно в содержание | FMU1: Обратно в содержание | FMW1: Обратно в содержание | FMY1: Обратно в содержание | FNA1: Обратно в содержание | FNC1: Обратно в содержание | FNE1: Обратно в содержание | FNG1: Обратно в содержание | FNI1: Обратно в содержание | FNK1: Обратно в содержание | FNM1: Обратно в содержание | FNO1: Обратно в содержание | FNQ1: Обратно в содержание | FNS1: Обратно в содержание | FNU1: Обратно в содержание | FNW1: Обратно в содержание | FNY1: Обратно в содержание | FOA1: Обратно в содержание | FOC1: Обратно в содержание | FOE1: Обратно в содержание | FOG1: Обратно в содержание | FOI1: Обратно в содержание | FOK1: Обратно в содержание | FOM1: Обратно в содержание | FOO1: Обратно в содержание | FOQ1: Обратно в содержание | FOS1: Обратно в содержание | FOU1: Обратно в содержание | FOW1: Обратно в содержание | FOY1: Обратно в содержание | FPA1: Обратно в содержание | FPC1: Обратно в содержание | FPE1: Обратно в содержание | FPG1: Обратно в содержание | FPI1: Обратно в содержание | FPK1: Обратно в содержание | FPM1: Обратно в содержание | FPO1: Обратно в содержание | FPQ1: Обратно в содержание | FPS1: Обратно в содержание | FPU1: Обратно в содержание | FPW1: Обратно в содержание | FPY1: Обратно в содержание | FQA1: Обратно в содержание | FQC1: Обратно в содержание | FQE1: Обратно в содержание | FQG1: Обратно в содержание | FQI1: Обратно в содержание | FQK1: Обратно в содержание | FQM1: Обратно в содержание | FQO1: Обратно в содержание | FQQ1: Обратно в содержание | FQS1: Обратно в содержание | FQU1: Обратно в содержание | FQW1: Обратно в содержание | FQY1: Обратно в содержание | FRA1: Обратно в содержание | FRC1: Обратно в содержание | FRE1: Обратно в содержание | FRG1: Обратно в содержание | FRI1: Обратно в содержание | FRK1: Обратно в содержание | FRM1: Обратно в содержание | FRO1: Обратно в содержание | FRQ1: Обратно в содержание | FRS1: Обратно в содержание | FRU1: Обратно в содержание | FRW1: Обратно в содержание | FRY1: Обратно в содержание | FSA1: Обратно в содержание | FSC1: Обратно в содержание | FSE1: Обратно в содержание | FSG1: Обратно в содержание | FSI1: Обратно в содержание | FSK1: Обратно в содержание | FSM1: Обратно в содержание | FSO1: Обратно в содержание | FSQ1: Обратно в содержание | FSS1: Обратно в содержание | FSU1: Обратно в содержание | FSW1: Обратно в содержание | FSY1: Обратно в содержание | FTA1: Обратно в содержание | FTC1: Обратно в содержание | FTE1: Обратно в содержание | FTG1: Обратно в содержание | FTI1: Обратно в содержание | FTK1: Обратно в содержание | FTM1: Обратно в содержание | FTO1: Обратно в содержание | FTQ1: Обратно в содержание | FTS1: Обратно в содержание | FTU1: Обратно в содержание | FTW1: Обратно в содержание | FTY1: Обратно в содержание | FUA1: Обратно в содержание | FUC1: Обратно в содержание | FUE1: Обратно в содержание | FUG1: Обратно в содержание | FUI1: Обратно в содержание | FUK1: Обратно в содержание | FUM1: Обратно в содержание | FUO1: Обратно в содержание | FUQ1: Обратно в содержание | FUS1: Обратно в содержание | FUU1: Обратно в содержание | FUW1: Обратно в содержание | FUY1: Обратно в содержание | FVA1: Обратно в содержание | FVC1: Обратно в содержание | FVE1: Обратно в содержание | FVG1: Обратно в содержание | FVI1: Обратно в содержание | FVK1: Обратно в содержание | FVM1: Обратно в содержание | FVO1: Обратно в содержание | FVQ1: Обратно в содержание | FVS1: Обратно в содержание | FVU1: Обратно в содержание | FVW1: Обратно в содержание | FVY1: Обратно в содержание | FWA1: Обратно в содержание | FWC1: Обратно в содержание | FWE1: Обратно в содержание | FWG1: Обратно в содержание | FWI1: Обратно в содержание | FWK1: Обратно в содержание | FWM1: Обратно в содержание | FWO1: Обратно в содержание | FWQ1: Обратно в содержание | FWS1: Обратно в содержание | FWU1: Обратно в содержание | FWW1: Обратно в содержание | FWY1: Обратно в содержание | FXA1: Обратно в содержание | FXC1: Обратно в содержание | FXE1: Обратно в содержание | FXG1: Обратно в содержание | FXI1: Обратно в содержание | FXK1: Обратно в содержание | FXM1: Обратно в содержание | FXO1: Обратно в содержание | FXQ1: Обратно в содержание | FXS1: Обратно в содержание | FXU1: Обратно в содержание | FXW1: Обратно в содержание | FXY1: Обратно в содержание | FYA1: Обратно в содержание | FYC1: Обратно в содержание | FYE1: Обратно в содержание | FYG1: Обратно в содержание | FYI1: Обратно в содержание | FYK1: Обратно в содержание | FYM1: Обратно в содержание | FYO1: Обратно в содержание | FYQ1: Обратно в содержание | FYS1: Обратно в содержание | FYU1: Обратно в содержание | FYW1: Обратно в содержание | FYY1: Обратно в содержание | FZA1: Обратно в содержание | FZC1: Обратно в содержание | FZE1: Обратно в содержание | FZG1: Обратно в содержание | FZI1: Обратно в содержание | FZK1: Обратно в содержание | FZM1: Обратно в содержание | FZO1: Обратно в содержание | FZQ1: Обратно в содержание | FZS1: Обратно в содержание | FZU1: Обратно в содержание | FZW1: Обратно в содержание | FZY1: Обратно в содержание | GAA1: Обратно в содержание | GAC1: Обратно в содержание | GAE1: Обратно в содержание | GAG1: Обратно в содержание | GAI1: Обратно в содержание | GAK1: Обратно в содержание | GAM1: Обратно в содержание | GAO1: Обратно в содержание | GAQ1: Обратно в содержание | GAS1: Обратно в содержание | GAU1: Обратно в содержание | GAW1: Обратно в содержание | GAY1: Обратно в содержание | GBA1: Обратно в содержание | GBC1: Обратно в содержание | GBE1: Обратно в содержание | GBG1: Обратно в содержание | GBI1: Обратно в содержание | GBK1: Обратно в содержание | GBM1: Обратно в содержание | GBO1: Обратно в содержание | GBQ1: Обратно в содержание | GBS1: Обратно в содержание | GBU1: Обратно в содержание | GBW1: Обратно в содержание | GBY1: Обратно в содержание | GCA1: Обратно в содержание | GCC1: Обратно в содержание | GCE1: Обратно в содержание | GCG1: Обратно в содержание | GCI1: Обратно в содержание | GCK1: Обратно в содержание | GCM1: Обратно в содержание | GCO1: Обратно в содержание | GCQ1: Обратно в содержание | GCS1: Обратно в содержание | GCU1: Обратно в содержание | GCW1: Обратно в содержание | GCY1: Обратно в содержание | GDA1: Обратно в содержание | GDC1: Обратно в содержание | GDE1: Обратно в содержание | GDG1: Обратно в содержание | GDI1: Обратно в содержание | GDK1: Обратно в содержание | GDM1: Обратно в содержание | GDO1: Обратно в содержание | GDQ1: Обратно в содержание | GDS1: Обратно в содержание | GDU1: Обратно в содержание | GDW1: Обратно в содержание | GDY1: Обратно в содержание | GEA1: Обратно в содержание | GEC1: Обратно в содержание | GEE1: Обратно в содержание | GEG1: Обратно в содержание | GEI1: Обратно в содержание | GEK1: Обратно в содержание | GEM1: Обратно в содержание | GEO1: Обратно в содержание | GEQ1: Обратно в содержание | GES1: Обратно в содержание | GEU1: Обратно в содержание | GEW1: Обратно в содержание | GEY1: Обратно в содержание | GFA1: Обратно в содержание | GFC1: Обратно в содержание | GFE1: Обратно в содержание | GFG1: Обратно в содержание | GFI1: Обратно в содержание | GFK1: Обратно в содержание | GFM1: Обратно в содержание | GFO1: Обратно в содержание | GFQ1: Обратно в содержание | GFS1: Обратно в содержание | GFU1: Обратно в содержание | GFW1: Обратно в содержание | GFY1: Обратно в содержание | GGA1: Обратно в содержание | GGC1: Обратно в содержание | GGE1: Обратно в содержание | GGG1: Обратно в содержание | GGI1: Обратно в содержание | GGK1: Обратно в содержание | GGM1: Обратно в содержание | GGO1: Обратно в содержание | GGQ1: Обратно в содержание | GGS1: Обратно в содержание | GGU1: Обратно в содержание | GGW1: Обратно в содержание | GGY1: Обратно в содержание | GHA1: Обратно в содержание | GHC1: Обратно в содержание | GHE1: Обратно в содержание | GHG1: Обратно в содержание | GHI1: Обратно в содержание | GHK1: Обратно в содержание | GHM1: Обратно в содержание | GHO1: Обратно в содержание | GHQ1: Обратно в содержание | GHS1: Обратно в содержание | GHU1: Обратно в содержание | GHW1: Обратно в содержание | GHY1: Обратно в содержание | GIA1: Обратно в содержание | GIC1: Обратно в содержание | GIE1: Обратно в содержание | GIG1: Обратно в содержание | GII1: Обратно в содержание | GIK1: Обратно в содержание | GIM1: Обратно в содержание | GIO1: Обратно в содержание | GIQ1: Обратно в содержание | GIS1: Обратно в содержание | GIU1: Обратно в содержание | GIW1: Обратно в содержание | GIY1: Обратно в содержание | GJA1: Обратно в содержание | GJC1: Обратно в содержание | GJE1: Обратно в содержание | GJG1: Обратно в содержание | GJI1: Обратно в содержание | GJK1: Обратно в содержание | GJM1: Обратно в содержание | GJO1: Обратно в содержание | GJQ1: Обратно в содержание | GJS1: Обратно в содержание | GJU1: Обратно в содержание | GJW1: Обратно в содержание | GJY1: Обратно в содержание | GKA1: Обратно в содержание | GKC1: Обратно в содержание | GKE1: Обратно в содержание | GKG1: Обратно в содержание | GKI1: Обратно в содержание | GKK1: Обратно в содержание | GKM1: Обратно в содержание | GKO1: Обратно в содержание | GKQ1: Обратно в содержание | GKS1: Обратно в содержание | GKU1: Обратно в содержание | GKW1: Обратно в содержание | GKY1: Обратно в содержание | GLA1: Обратно в содержание | GLC1: Обратно в содержание | GLE1: Обратно в содержание | GLG1: Обратно в содержание | GLI1: Обратно в содержание | GLK1: Обратно в содержание | GLM1: Обратно в содержание | GLO1: Обратно в содержание | GLQ1: Обратно в содержание | GLS1: Обратно в содержание | GLU1: Обратно в содержание | GLW1: Обратно в содержание | GLY1: Обратно в содержание | GMA1: Обратно в содержание | GMC1: Обратно в содержание | GME1: Обратно в содержание | GMG1: Обратно в содержание | GMI1: Обратно в содержание | GMK1: Обратно в содержание | GMM1: Обратно в содержание | GMO1: Обратно в содержание | GMQ1: Обратно в содержание | GMS1: Обратно в содержание | GMU1: Обратно в содержание | GMW1: Обратно в содержание | GMY1: Обратно в содержание | GNA1: Обратно в содержание | GNC1: Обратно в содержание | GNE1: Обратно в содержание | GNG1: Обратно в содержание | GNI1: Обратно в содержание | GNK1: Обратно в содержание | GNM1: Обратно в содержание | GNO1: Обратно в содержание | GNQ1: Обратно в содержание | GNS1: Обратно в содержание | GNU1: Обратно в содержание | GNW1: Обратно в содержание | GNY1: Обратно в содержание | GOA1: Обратно в содержание | GOC1: Обратно в содержание | GOE1: Обратно в содержание | GOG1: Обратно в содержание | GOI1: Обратно в содержание | GOK1: Обратно в содержание | GOM1: Обратно в содержание | GOO1: Обратно в содержание | GOQ1: Обратно в содержание | GOS1: Обратно в содержание | GOU1: Обратно в содержание | GOW1: Обратно в содержание | GOY1: Обратно в содержание | GPA1: Обратно в содержание | GPC1: Обратно в содержание | GPE1: Обратно в содержание | GPG1: Обратно в содержание | GPI1: Обратно в содержание | GPK1: Обратно в содержание | GPM1: Обратно в содержание | GPO1: Обратно в содержание | GPQ1: Обратно в содержание | GPS1: Обратно в содержание | GPU1: Обратно в содержание | GPW1: Обратно в содержание | GPY1: Обратно в содержание | GQA1: Обратно в содержание | GQC1: Обратно в содержание | GQE1: Обратно в содержание | GQG1: Обратно в содержание | GQI1: Обратно в содержание | GQK1: Обратно в содержание | GQM1: Обратно в содержание | GQO1: Обратно в содержание | GQQ1: Обратно в содержание | GQS1: Обратно в содержание | GQU1: Обратно в содержание | GQW1: Обратно в содержание | GQY1: Обратно в содержание | GRA1: Обратно в содержание | GRC1: Обратно в содержание | GRE1: Обратно в содержание | GRG1: Обратно в содержание | GRI1: Обратно в содержание | GRK1: Обратно в содержание | GRM1: Обратно в содержание | GRO1: Обратно в содержание | GRQ1: Обратно в содержание | GRS1: Обратно в содержание | GRU1: Обратно в содержание | GRW1: Обратно в содержание | GRY1: Обратно в содержание | GSA1: Обратно в содержание | GSC1: Обратно в содержание | GSE1: Обратно в содержание | GSG1: Обратно в содержание | GSI1: Обратно в содержание | GSK1: Обратно в содержание | GSM1: Обратно в содержание | GSO1: Обратно в содержание | GSQ1: Обратно в содержание | GSS1: Обратно в содержание | GSU1: Обратно в содержание | GSW1: Обратно в содержание | GSY1: Обратно в содержание | GTA1: Обратно в содержание | GTC1: Обратно в содержание | GTE1: Обратно в содержание | GTG1: Обратно в содержание | GTI1: Обратно в содержание | GTK1: Обратно в содержание | GTM1: Обратно в содержание | GTO1: Обратно в содержание | GTQ1: Обратно в содержание | GTS1: Обратно в содержание | GTU1: Обратно в содержание | GTW1: Обратно в содержание | GTY1: Обратно в содержание | GUA1: Обратно в содержание | GUC1: Обратно в содержание | GUE1: Обратно в содержание | GUG1: Обратно в содержание | GUI1: Обратно в содержание | GUK1: Обратно в содержание | GUM1: Обратно в содержание | GUO1: Обратно в содержание | GUQ1: Обратно в содержание | GUS1: Обратно в содержание | GUU1: Обратно в содержание | GUW1: Обратно в содержание | GUY1: Обратно в содержание | GVA1: Обратно в содержание | GVC1: Обратно в содержание | GVE1: Обратно в содержание | GVG1: Обратно в содержание | GVI1: Обратно в содержание | GVK1: Обратно в содержание | GVM1: Обратно в содержание | GVO1: Обратно в содержание | GVQ1: Обратно в содержание | GVS1: Обратно в содержание | GVU1: Обратно в содержание | GVW1: Обратно в содержание | GVY1: Обратно в содержание | GWA1: Обратно в содержание | GWC1: Обратно в содержание | GWE1: Обратно в содержание | GWG1: Обратно в содержание | GWI1: Обратно в содержание | GWK1: Обратно в содержание | GWM1: Обратно в содержание | GWO1: Обратно в содержание | GWQ1: Обратно в содержание | GWS1: Обратно в содержание | GWU1: Обратно в содержание | GWW1: Обратно в содержание | GWY1: Обратно в содержание | GXA1: Обратно в содержание | GXC1: Обратно в содержание | GXE1: Обратно в содержание | GXG1: Обратно в содержание | GXI1: Обратно в содержание | GXK1: Обратно в содержание | GXM1: Обратно в содержание | GXO1: Обратно в содержание | GXQ1: Обратно в содержание | GXS1: Обратно в содержание | GXU1: Обратно в содержание | GXW1: Обратно в содержание | GXY1: Обратно в содержание | GYA1: Обратно в содержание | GYC1: Обратно в содержание | GYE1: Обратно в содержание | GYG1: Обратно в содержание | GYI1: Обратно в содержание | GYK1: Обратно в содержание | GYM1: Обратно в содержание | GYO1: Обратно в содержание | GYQ1: Обратно в содержание | GYS1: Обратно в содержание | GYU1: Обратно в содержание | GYW1: Обратно в содержание | GYY1: Обратно в содержание | GZA1: Обратно в содержание | GZC1: Обратно в содержание | GZE1: Обратно в содержание | GZG1: Обратно в содержание | GZI1: Обратно в содержание | GZK1: Обратно в содержание | GZM1: Обратно в содержание | GZO1: Обратно в содержание | GZQ1: Обратно в содержание | GZS1: Обратно в содержание | GZU1: Обратно в содержание | GZW1: Обратно в содержание | GZY1: Обратно в содержание | HAA1: Обратно в содержание | HAC1: Обратно в содержание | HAE1: Обратно в содержание | HAG1: Обратно в содержание | HAI1: Обратно в содержание | HAK1: Обратно в содержание | HAM1: Обратно в содержание | HAO1: Обратно в содержание | HAQ1: Обратно в содержание | HAS1: Обратно в содержание | HAU1: Обратно в содержание | HAW1: Обратно в содержание | HAY1: Обратно в содержание | HBA1: Обратно в содержание | HBC1: Обратно в содержание | HBE1: Обратно в содержание | HBG1: Обратно в содержание | HBI1: Обратно в содержание | HBK1: Обратно в содержание | HBM1: Обратно в содержание | HBO1: Обратно в содержание | HBQ1: Обратно в содержание | HBS1: Обратно в содержание | HBU1: Обратно в содержание | HBW1: Обратно в содержание | HBY1: Обратно в содержание | HCA1: Обратно в содержание | HCC1: Обратно в содержание | HCE1: Обратно в содержание | HCG1: Обратно в содержание | HCI1: Обратно в содержание | HCK1: Обратно в содержание | HCM1: Обратно в содержание | HCO1: Обратно в содержание | HCQ1: Обратно в содержание | HCS1: Обратно в содержание | HCU1: Обратно в содержание | HCW1: Обратно в содержание | HCY1: Обратно в содержание | HDA1: Обратно в содержание | HDC1: Обратно в содержание | HDE1: Обратно в содержание | HDG1: Обратно в содержание | HDI1: Обратно в содержание | HDK1: Обратно в содержание | HDM1: Обратно в содержание | HDO1: Обратно в содержание | HDQ1: Обратно в содержание | HDS1: Обратно в содержание | HDU1: Обратно в содержание | HDW1: Обратно в содержание | HDY1: Обратно в содержание | HEA1: Обратно в содержание | HEC1: Обратно в содержание | HEE1: Обратно в содержание | HEG1: Обратно в содержание | HEI1: Обратно в содержание | HEK1: Обратно в содержание | HEM1: Обратно в содержание | HEO1: Обратно в содержание | HEQ1: Обратно в содержание | HES1: Обратно в содержание | HEU1: Обратно в содержание | HEW1: Обратно в содержание | HEY1: Обратно в содержание | HFA1: Обратно в содержание | HFC1: Обратно в содержание | HFE1: Обратно в содержание | HFG1: Обратно в содержание | HFI1: Обратно в содержание | HFK1: Обратно в содержание | HFM1: Обратно в содержание | HFO1: Обратно в содержание | HFQ1: Обратно в содержание | HFS1: Обратно в содержание | HFU1: Обратно в содержание | HFW1: Обратно в содержание | HFY1: Обратно в содержание | HGA1: Обратно в содержание | HGC1: Обратно в содержание | HGE1: Обратно в содержание | HGG1: Обратно в содержание | HGI1: Обратно в содержание | HGK1: Обратно в содержание | HGM1: Обратно в содержание | HGO1: Обратно в содержание | HGQ1: Обратно в содержание | HGS1: Обратно в содержание | HGU1: Обратно в содержание | HGW1: Обратно в содержание | HGY1: Обратно в содержание | HHA1: Обратно в содержание | HHC1: Обратно в содержание | HHE1: Обратно в содержание | HHG1: Обратно в содержание | HHI1: Обратно в содержание | HHK1: Обратно в содержание | HHM1: Обратно в содержание | HHO1: Обратно в содержание | HHQ1: Обратно в содержание | HHS1: Обратно в содержание | HHU1: Обратно в содержание | HHW1: Обратно в содержание | HHY1: Обратно в содержание | HIA1: Обратно в содержание | HIC1: Обратно в содержание | HIE1: Обратно в содержание | HIG1: Обратно в содержание | HII1: Обратно в содержание | HIK1: Обратно в содержание | HIM1: Обратно в содержание | HIO1: Обратно в содержание | HIQ1: Обратно в содержание | HIS1: Обратно в содержание | HIU1: Обратно в содержание | HIW1: Обратно в содержание | HIY1: Обратно в содержание | HJA1: Обратно в содержание | HJC1: Обратно в содержание | HJE1: Обратно в содержание | HJG1: Обратно в содержание | HJI1: Обратно в содержание | HJK1: Обратно в содержание | HJM1: Обратно в содержание | HJO1: Обратно в содержание | HJQ1: Обратно в содержание | HJS1: Обратно в содержание | HJU1: Обратно в содержание | HJW1: Обратно в содержание | HJY1: Обратно в содержание | HKA1: Обратно в содержание | HKC1: Обратно в содержание | HKE1: Обратно в содержание | HKG1: Обратно в содержание | HKI1: Обратно в содержание | HKK1: Обратно в содержание | HKM1: Обратно в содержание | HKO1: Обратно в содержание | HKQ1: Обратно в содержание | HKS1: Обратно в содержание | HKU1: Обратно в содержание | HKW1: Обратно в содержание | HKY1: Обратно в содержание | HLA1: Обратно в содержание | HLC1: Обратно в содержание | HLE1: Обратно в содержание | HLG1: Обратно в содержание | HLI1: Обратно в содержание | HLK1: Обратно в содержание | HLM1: Обратно в содержание | HLO1: Обратно в содержание | HLQ1: Обратно в содержание | HLS1: Обратно в содержание | HLU1: Обратно в содержание | HLW1: Обратно в содержание | HLY1: Обратно в содержание | HMA1: Обратно в содержание | HMC1: Обратно в содержание | HME1: Обратно в содержание | HMG1: Обратно в содержание | HMI1: Обратно в содержание | HMK1: Обратно в содержание | HMM1: Обратно в содержание | HMO1: Обратно в содержание | HMQ1: Обратно в содержание | HMS1: Обратно в содержание | HMU1: Обратно в содержание | HMW1: Обратно в содержание | HMY1: Обратно в содержание | HNA1: Обратно в содержание | HNC1: Обратно в содержание | HNE1: Обратно в содержание | HNG1: Обратно в содержание | HNI1: Обратно в содержание | HNK1: Обратно в содержание | HNM1: Обратно в содержание | HNO1: Обратно в содержание | HNQ1: Обратно в содержание | HNS1: Обратно в содержание | HNU1: Обратно в содержание | HNW1: Обратно в содержание | HNY1: Обратно в содержание | HOA1: Обратно в содержание | HOC1: Обратно в содержание | HOE1: Обратно в содержание | HOG1: Обратно в содержание | HOI1: Обратно в содержание | HOK1: Обратно в содержание | HOM1: Обратно в содержание | HOO1: Обратно в содержание | HOQ1: Обратно в содержание | HOS1: Обратно в содержание | HOU1: Обратно в содержание | HOW1: Обратно в содержание | HOY1: Обратно в содержание | HPA1: Обратно в содержание | HPC1: Обратно в содержание | HPE1: Обратно в содержание | HPG1: Обратно в содержание | HPI1: Обратно в содержание | HPK1: Обратно в содержание | HPM1: Обратно в содержание | HPO1: Обратно в содержание | HPQ1: Обратно в содержание | HPS1: Обратно в содержание | HPU1: Обратно в содержание | HPW1: Обратно в содержание | HPY1: Обратно в содержание | HQA1: Обратно в содержание | HQC1: Обратно в содержание | HQE1: Обратно в содержание | HQG1: Обратно в содержание | HQI1: Обратно в содержание | HQK1: Обратно в содержание | HQM1: Обратно в содержание | HQO1: Обратно в содержание | HQQ1: Обратно в содержание | HQS1: Обратно в содержание | HQU1: Обратно в содержание | HQW1: Обратно в содержание | HQY1: Обратно в содержание | HRA1: Обратно в содержание | HRC1: Обратно в содержание | HRE1: Обратно в содержание | HRG1: Обратно в содержание | HRI1: Обратно в содержание | HRK1: Обратно в содержание | HRM1: Обратно в содержание | HRO1: Обратно в содержание | HRQ1: Обратно в содержание | HRS1: Обратно в содержание | HRU1: Обратно в содержание | HRW1: Обратно в содержание | HRY1: Обратно в содержание | HSA1: Обратно в содержание | HSC1: Обратно в содержание | HSE1: Обратно в содержание | HSG1: Обратно в содержание | HSI1: Обратно в содержание | HSK1: Обратно в содержание | HSM1: Обратно в содержание | HSO1: Обратно в содержание | HSQ1: Обратно в содержание | HSS1: Обратно в содержание | HSU1: Обратно в содержание | HSW1: Обратно в содержание | HSY1: Обратно в содержание | HTA1: Обратно в содержание | HTC1: Обратно в содержание | HTE1: Обратно в содержание | HTG1: Обратно в содержание | HTI1: Обратно в содержание | HTK1: Обратно в содержание | HTM1: Обратно в содержание | HTO1: Обратно в содержание | HTQ1: Обратно в содержание | HTS1: Обратно в содержание | HTU1: Обратно в содержание | HTW1: Обратно в содержание | HTY1: Обратно в содержание | HUA1: Обратно в содержание | HUC1: Обратно в содержание | HUE1: Обратно в содержание | HUG1: Обратно в содержание | HUI1: Обратно в содержание | HUK1: Обратно в содержание | HUM1: Обратно в содержание | HUO1: Обратно в содержание | HUQ1: Обратно в содержание | HUS1: Обратно в содержание | HUU1: Обратно в содержание | HUW1: Обратно в содержание | HUY1: Обратно в содержание | HVA1: Обратно в содержание | HVC1: Обратно в содержание | HVE1: Обратно в содержание | HVG1: Обратно в содержание | HVI1: Обратно в содержание | HVK1: Обратно в содержание | HVM1: Обратно в содержание | HVO1: Обратно в содержание | HVQ1: Обратно в содержание | HVS1: Обратно в содержание | HVU1: Обратно в содержание | HVW1: Обратно в содержание | HVY1: Обратно в содержание | HWA1: Обратно в содержание | HWC1: Обратно в содержание | HWE1: Обратно в содержание | HWG1: Обратно в содержание | HWI1: Обратно в содержание | HWK1: Обратно в содержание | HWM1: Обратно в содержание | HWO1: Обратно в содержание | HWQ1: Обратно в содержание | HWS1: Обратно в содержание | HWU1: Обратно в содержание | HWW1: Обратно в содержание | HWY1: Обратно в содержание | HXA1: Обратно в содержание | HXC1: Обратно в содержание | HXE1: Обратно в содержание | HXG1: Обратно в содержание | HXI1: Обратно в содержание | HXK1: Обратно в содержание | HXM1: Обратно в содержание | HXO1: Обратно в содержание | HXQ1: Обратно в содержание | HXS1: Обратно в содержание | HXU1: Обратно в содержание | HXW1: Обратно в содержание | HXY1: Обратно в содержание | HYA1: Обратно в содержание | HYC1: Обратно в содержание | HYE1: Обратно в содержание | HYG1: Обратно в содержание | HYI1: Обратно в содержание | HYK1: Обратно в содержание | HYM1: Обратно в содержание | HYO1: Обратно в содержание | HYQ1: Обратно в содержание | HYS1: Обратно в содержание | HYU1: Обратно в содержание | HYW1: Обратно в содержание | HYY1: Обратно в содержание | HZA1: Обратно в содержание | HZC1: Обратно в содержание | HZE1: Обратно в содержание | HZG1: Обратно в содержание | HZI1: Обратно в содержание | HZK1: Обратно в содержание | HZM1: Обратно в содержание | HZO1: Обратно в содержание | HZQ1: Обратно в содержание | HZS1: Обратно в содержание | HZU1: Обратно в содержание | HZW1: Обратно в содержание | HZY1: Обратно в содержание | IAA1: Обратно в содержание | IAC1: Обратно в содержание | IAE1: Обратно в содержание | IAG1: Обратно в содержание | IAI1: Обратно в содержание | IAK1: Обратно в содержание | IAM1: Обратно в содержание | IAO1: Обратно в содержание | IAQ1: Обратно в содержание | IAS1: Обратно в содержание | IAU1: Обратно в содержание | IAW1: Обратно в содержание | IAY1: Обратно в содержание | IBA1: Обратно в содержание | IBC1: Обратно в содержание | IBE1: Обратно в содержание | IBG1: Обратно в содержание | IBI1: Обратно в содержание | IBK1: Обратно в содержание | IBM1: Обратно в содержание | IBO1: Обратно в содержание | IBQ1: Обратно в содержание | IBS1: Обратно в содержание | IBU1: Обратно в содержание | IBW1: Обратно в содержание | IBY1: Обратно в содержание | ICA1: Обратно в содержание | ICC1: Обратно в содержание | ICE1: Обратно в содержание | ICG1: Обратно в содержание | ICI1: Обратно в содержание | ICK1: Обратно в содержание | ICM1: Обратно в содержание | ICO1: Обратно в содержание | ICQ1: Обратно в содержание | ICS1: Обратно в содержание | ICU1: Обратно в содержание | ICW1: Обратно в содержание | ICY1: Обратно в содержание | IDA1: Обратно в содержание | IDC1: Обратно в содержание | IDE1: Обратно в содержание | IDG1: Обратно в содержание | IDI1: Обратно в содержание | IDK1: Обратно в содержание | IDM1: Обратно в содержание | IDO1: Обратно в содержание | IDQ1: Обратно в содержание | IDS1: Обратно в содержание | IDU1: Обратно в содержание | IDW1: Обратно в содержание | IDY1: Обратно в содержание | IEA1: Обратно в содержание | IEC1: Обратно в содержание | IEE1: Обратно в содержание | IEG1: Обратно в содержание | IEI1: Обратно в содержание | IEK1: Обратно в содержание | IEM1: Обратно в содержание | IEO1: Обратно в содержание | IEQ1: Обратно в содержание | IES1: Обратно в содержание | IEU1: Обратно в содержание | IEW1: Обратно в содержание | IEY1: Обратно в содержание | IFA1: Обратно в содержание | IFC1: Обратно в содержание | IFE1: Обратно в содержание | IFG1: Обратно в содержание | IFI1: Обратно в содержание | IFK1: Обратно в содержание | IFM1: Обратно в содержание | IFO1: Обратно в содержание | IFQ1: Обратно в содержание | IFS1: Обратно в содержание | IFU1: Обратно в содержание | IFW1: Обратно в содержание | IFY1: Обратно в содержание | IGA1: Обратно в содержание | IGC1: Обратно в содержание | IGE1: Обратно в содержание | IGG1: Обратно в содержание | IGI1: Обратно в содержание | IGK1: Обратно в содержание | IGM1: Обратно в содержание | IGO1: Обратно в содержание | IGQ1: Обратно в содержание | IGS1: Обратно в содержание | IGU1: Обратно в содержание | IGW1: Обратно в содержание | IGY1: Обратно в содержание | IHA1: Обратно в содержание | IHC1: Обратно в содержание | IHE1: Обратно в содержание | IHG1: Обратно в содержание | IHI1: Обратно в содержание | IHK1: Обратно в содержание | IHM1: Обратно в содержание | IHO1: Обратно в содержание | IHQ1: Обратно в содержание | IHS1: Обратно в содержание | IHU1: Обратно в содержание | IHW1: Обратно в содержание | IHY1: Обратно в содержание | IIA1: Обратно в содержание | IIC1: Обратно в содержание | IIE1: Обратно в содержание | IIG1: Обратно в содержание | III1: Обратно в содержание | IIK1: Обратно в содержание | IIM1: Обратно в содержание | IIO1: Обратно в содержание | IIQ1: Обратно в содержание | IIS1: Обратно в содержание | IIU1: Обратно в содержание | IIW1: Обратно в содержание | IIY1: Обратно в содержание | IJA1: Обратно в содержание | IJC1: Обратно в содержание | IJE1: Обратно в содержание | IJG1: Обратно в содержание | IJI1: Обратно в содержание | IJK1: Обратно в содержание | IJM1: Обратно в содержание | IJO1: Обратно в содержание | IJQ1: Обратно в содержание | IJS1: Обратно в содержание | IJU1: Обратно в содержание | IJW1: Обратно в содержание | IJY1: Обратно в содержание | IKA1: Обратно в содержание | IKC1: Обратно в содержание | IKE1: Обратно в содержание | IKG1: Обратно в содержание | IKI1: Обратно в содержание | IKK1: Обратно в содержание | IKM1: Обратно в содержание | IKO1: Обратно в содержание | IKQ1: Обратно в содержание | IKS1: Обратно в содержание | IKU1: Обратно в содержание | IKW1: Обратно в содержание | IKY1: Обратно в содержание | ILA1: Обратно в содержание | ILC1: Обратно в содержание | ILE1: Обратно в содержание | ILG1: Обратно в содержание | ILI1: Обратно в содержание | ILK1: Обратно в содержание | ILM1: Обратно в содержание | ILO1: Обратно в содержание | ILQ1: Обратно в содержание | ILS1: Обратно в содержание | ILU1: Обратно в содержание | ILW1: Обратно в содержание | ILY1: Обратно в содержание | IMA1: Обратно в содержание | IMC1: Обратно в содержание | IME1: Обратно в содержание | IMG1: Обратно в содержание | IMI1: Обратно в содержание | IMK1: Обратно в содержание | IMM1: Обратно в содержание | IMO1: Обратно в содержание | IMQ1: Обратно в содержание | IMS1: Обратно в содержание | IMU1: Обратно в содержание | IMW1: Обратно в содержание | IMY1: Обратно в содержание | INA1: Обратно в содержание | INC1: Обратно в содержание | INE1: Обратно в содержание | ING1: Обратно в содержание | INI1: Обратно в содержание | INK1: Обратно в содержание | INM1: Обратно в содержание | INO1: Обратно в содержание | INQ1: Обратно в содержание | INS1: Обратно в содержание | INU1: Обратно в содержание | INW1: Обратно в содержание | INY1: Обратно в содержание | IOA1: Обратно в содержание | IOC1: Обратно в содержание | IOE1: Обратно в содержание | IOG1: Обратно в содержание | IOI1: Обратно в содержание | IOK1: Обратно в содержание | IOM1: Обратно в содержание | IOO1: Обратно в содержание | IOQ1: Обратно в содержание | IOS1: Обратно в содержание | IOU1: Обратно в содержание | IOW1: Обратно в содержание | IOY1: Обратно в содержание | IPA1: Обратно в содержание | IPC1: Обратно в содержание | IPE1: Обратно в содержание | IPG1: Обратно в содержание | IPI1: Обратно в содержание | IPK1: Обратно в содержание | IPM1: Обратно в содержание | IPO1: Обратно в содержание | IPQ1: Обратно в содержание | IPS1: Обратно в содержание | IPU1: Обратно в содержание | IPW1: Обратно в содержание | IPY1: Обратно в содержание | IQA1: Обратно в содержание | IQC1: Обратно в содержание | IQE1: Обратно в содержание | IQG1: Обратно в содержание | IQI1: Обратно в содержание | IQK1: Обратно в содержание | IQM1: Обратно в содержание | IQO1: Обратно в содержание | IQQ1: Обратно в содержание | IQS1: Обратно в содержание | IQU1: Обратно в содержание | IQW1: Обратно в содержание | IQY1: Обратно в содержание | IRA1: Обратно в содержание | IRC1: Обратно в содержание | IRE1: Обратно в содержание | IRG1: Обратно в содержание | IRI1: Обратно в содержание | IRK1: Обратно в содержание | IRM1: Обратно в содержание | IRO1: Обратно в содержание | IRQ1: Обратно в содержание | IRS1: Обратно в содержание | IRU1: Обратно в содержание | IRW1: Обратно в содержание | IRY1: Обратно в содержание | ISA1: Обратно в содержание | ISC1: Обратно в содержание | ISE1: Обратно в содержание | ISG1: Обратно в содержание | ISI1: Обратно в содержание | ISK1: Обратно в содержание | ISM1: Обратно в содержание | ISO1: Обратно в содержание | ISQ1: Обратно в содержание | ISS1: Обратно в содержание | ISU1: Обратно в содержание | ISW1: Обратно в содержание | ISY1: Обратно в содержание | ITA1: Обратно в содержание | ITC1: Обратно в содержание | ITE1: Обратно в содержание | ITG1: Обратно в содержание | ITI1: Обратно в содержание | ITK1: Обратно в содержание | ITM1: Обратно в содержание | ITO1: Обратно в содержание | ITQ1: Обратно в содержание | ITS1: Обратно в содержание | ITU1: Обратно в содержание | ITW1: Обратно в содержание | ITY1: Обратно в содержание | IUA1: Обратно в содержание | IUC1: Обратно в содержание | IUE1: Обратно в содержание | IUG1: Обратно в содержание | IUI1: Обратно в содержание | IUK1: Обратно в содержание | IUM1: Обратно в содержание | IUO1: Обратно в содержание | IUQ1: Обратно в содержание | IUS1: Обратно в содержание | IUU1: Обратно в содержание | IUW1: Обратно в содержание | IUY1: Обратно в содержание | IVA1: Обратно в содержание | IVC1: Обратно в содержание | IVE1: Обратно в содержание | IVG1: Обратно в содержание | IVI1: Обратно в содержание | IVK1: Обратно в содержание | IVM1: Обратно в содержание | IVO1: Обратно в содержание | IVQ1: Обратно в содержание | IVS1: Обратно в содержание | IVU1: Обратно в содержание | IVW1: Обратно в содержание | IVY1: Обратно в содержание | IWA1: Обратно в содержание | IWC1: Обратно в содержание | IWE1: Обратно в содержание | IWG1: Обратно в содержание | IWI1: Обратно в содержание | IWK1: Обратно в содержание | IWM1: Обратно в содержание | IWO1: Обратно в содержание | IWQ1: Обратно в содержание | IWS1: Обратно в содержание | IWU1: Обратно в содержание | IWW1: Обратно в содержание | IWY1: Обратно в содержание | IXA1: Обратно в содержание | IXC1: Обратно в содержание | IXE1: Обратно в содержание | IXG1: Обратно в содержание | IXI1: Обратно в содержание | IXK1: Обратно в содержание | IXM1: Обратно в содержание | IXO1: Обратно в содержание | IXQ1: Обратно в содержание | IXS1: Обратно в содержание | IXU1: Обратно в содержание | IXW1: Обратно в содержание | IXY1: Обратно в содержание | IYA1: Обратно в содержание | IYC1: Обратно в содержание | IYE1: Обратно в содержание | IYG1: Обратно в содержание | IYI1: Обратно в содержание | IYK1: Обратно в содержание | IYM1: Обратно в содержание | IYO1: Обратно в содержание | IYQ1: Обратно в содержание | IYS1: Обратно в содержание | IYU1: Обратно в содержание | IYW1: Обратно в содержание | IYY1: Обратно в содержание | IZA1: Обратно в содержание | IZC1: Обратно в содержание | IZE1: Обратно в содержание | IZG1: Обратно в содержание | IZI1: Обратно в содержание | IZK1: Обратно в содержание | IZM1: Обратно в содержание | IZO1: Обратно в содержание | IZQ1: Обратно в содержание | IZS1: Обратно в содержание | IZU1: Обратно в содержание | IZW1: Обратно в содержание | IZY1: Обратно в содержание | JAA1: Обратно в содержание | JAC1: Обратно в содержание | JAE1: Обратно в содержание | JAG1: Обратно в содержание | JAI1: Обратно в содержание | JAK1: Обратно в содержание | JAM1: Обратно в содержание | JAO1: Обратно в содержание | JAQ1: Обратно в содержание | JAS1: Обратно в содержание | JAU1: Обратно в содержание | JAW1: Обратно в содержание | JAY1: Обратно в содержание | JBA1: Обратно в содержание | JBC1: Обратно в содержание | JBE1: Обратно в содержание | JBG1: Обратно в содержание | JBI1: Обратно в содержание | JBK1: Обратно в содержание | JBM1: Обратно в содержание | JBO1: Обратно в содержание | JBQ1: Обратно в содержание | JBS1: Обратно в содержание | JBU1: Обратно в содержание | JBW1: Обратно в содержание | JBY1: Обратно в содержание | JCA1: Обратно в содержание | JCC1: Обратно в содержание | JCE1: Обратно в содержание | JCG1: Обратно в содержание | JCI1: Обратно в содержание | JCK1: Обратно в содержание | JCM1: Обратно в содержание | JCO1: Обратно в содержание | JCQ1: Обратно в содержание | JCS1: Обратно в содержание | JCU1: Обратно в содержание | JCW1: Обратно в содержание | JCY1: Обратно в содержание | JDA1: Обратно в содержание | JDC1: Обратно в содержание | JDE1: Обратно в содержание | JDG1: Обратно в содержание | JDI1: Обратно в содержание | JDK1: Обратно в содержание | JDM1: Обратно в содержание | JDO1: Обратно в содержание | JDQ1: Обратно в содержание | JDS1: Обратно в содержание | JDU1: Обратно в содержание | JDW1: Обратно в содержание | JDY1: Обратно в содержание | JEA1: Обратно в содержание | JEC1: Обратно в содержание | JEE1: Обратно в содержание | JEG1: Обратно в содержание | JEI1: Обратно в содержание | JEK1: Обратно в содержание | JEM1: Обратно в содержание | JEO1: Обратно в содержание | JEQ1: Обратно в содержание | JES1: Обратно в содержание | JEU1: Обратно в содержание | JEW1: Обратно в содержание | JEY1: Обратно в содержание | JFA1: Обратно в содержание | JFC1: Обратно в содержание | JFE1: Обратно в содержание | JFG1: Обратно в содержание | JFI1: Обратно в содержание | JFK1: Обратно в содержание | JFM1: Обратно в содержание | JFO1: Обратно в содержание | JFQ1: Обратно в содержание | JFS1: Обратно в содержание | JFU1: Обратно в содержание | JFW1: Обратно в содержание | JFY1: Обратно в содержание | JGA1: Обратно в содержание | JGC1: Обратно в содержание | JGE1: Обратно в содержание | JGG1: Обратно в содержание | JGI1: Обратно в содержание | JGK1: Обратно в содержание | JGM1: Обратно в содержание | JGO1: Обратно в содержание | JGQ1: Обратно в содержание | JGS1: Обратно в содержание | JGU1: Обратно в содержание | JGW1: Обратно в содержание | JGY1: Обратно в содержание | JHA1: Обратно в содержание | JHC1: Обратно в содержание | JHE1: Обратно в содержание | JHG1: Обратно в содержание | JHI1: Обратно в содержание | JHK1: Обратно в содержание | JHM1: Обратно в содержание | JHO1: Обратно в содержание | JHQ1: Обратно в содержание | JHS1: Обратно в содержание | JHU1: Обратно в содержание | JHW1: Обратно в содержание | JHY1: Обратно в содержание | JIA1: Обратно в содержание | JIC1: Обратно в содержание | JIE1: Обратно в содержание | JIG1: Обратно в содержание | JII1: Обратно в содержание | JIK1: Обратно в содержание | JIM1: Обратно в содержание | JIO1: Обратно в содержание | JIQ1: Обратно в содержание | JIS1: Обратно в содержание | JIU1: Обратно в содержание | JIW1: Обратно в содержание | JIY1: Обратно в содержание | JJA1: Обратно в содержание | JJC1: Обратно в содержание | JJE1: Обратно в содержание | JJG1: Обратно в содержание | JJI1: Обратно в содержание | JJK1: Обратно в содержание | JJM1: Обратно в содержание | JJO1: Обратно в содержание | JJQ1: Обратно в содержание | JJS1: Обратно в содержание | JJU1: Обратно в содержание | JJW1: Обратно в содержание | JJY1: Обратно в содержание | JKA1: Обратно в содержание | JKC1: Обратно в содержание | JKE1: Обратно в содержание | JKG1: Обратно в содержание | JKI1: Обратно в содержание | JKK1: Обратно в содержание | JKM1: Обратно в содержание | JKO1: Обратно в содержание | JKQ1: Обратно в содержание | JKS1: Обратно в содержание | JKU1: Обратно в содержание | JKW1: Обратно в содержание | JKY1: Обратно в содержание | JLA1: Обратно в содержание | JLC1: Обратно в содержание | JLE1: Обратно в содержание | JLG1: Обратно в содержание | JLI1: Обратно в содержание | JLK1: Обратно в содержание | JLM1: Обратно в содержание | JLO1: Обратно в содержание | JLQ1: Обратно в содержание | JLS1: Обратно в содержание | JLU1: Обратно в содержание | JLW1: Обратно в содержание | JLY1: Обратно в содержание | JMA1: Обратно в содержание | JMC1: Обратно в содержание | JME1: Обратно в содержание | JMG1: Обратно в содержание | JMI1: Обратно в содержание | JMK1: Обратно в содержание | JMM1: Обратно в содержание | JMO1: Обратно в содержание | JMQ1: Обратно в содержание | JMS1: Обратно в содержание | JMU1: Обратно в содержание | JMW1: Обратно в содержание | JMY1: Обратно в содержание | JNA1: Обратно в содержание | JNC1: Обратно в содержание | JNE1: Обратно в содержание | JNG1: Обратно в содержание | JNI1: Обратно в содержание | JNK1: Обратно в содержание | JNM1: Обратно в содержание | JNO1: Обратно в содержание | JNQ1: Обратно в содержание | JNS1: Обратно в содержание | JNU1: Обратно в содержание | JNW1: Обратно в содержание | JNY1: Обратно в содержание | JOA1: Обратно в содержание | JOC1: Обратно в содержание | JOE1: Обратно в содержание | JOG1: Обратно в содержание | JOI1: Обратно в содержание | JOK1: Обратно в содержание | JOM1: Обратно в содержание | JOO1: Обратно в содержание | JOQ1: Обратно в содержание | JOS1: Обратно в содержание | JOU1: Обратно в содержание | JOW1: Обратно в содержание | JOY1: Обратно в содержание | JPA1: Обратно в содержание | JPC1: Обратно в содержание | JPE1: Обратно в содержание | JPG1: Обратно в содержание | JPI1: Обратно в содержание | JPK1: Обратно в содержание | JPM1: Обратно в содержание | JPO1: Обратно в содержание | JPQ1: Обратно в содержание | JPS1: Обратно в содержание | JPU1: Обратно в содержание | JPW1: Обратно в содержание | JPY1: Обратно в содержание | JQA1: Обратно в содержание | JQC1: Обратно в содержание | JQE1: Обратно в содержание | JQG1: Обратно в содержание | JQI1: Обратно в содержание | JQK1: Обратно в содержание | JQM1: Обратно в содержание | JQO1: Обратно в содержание | JQQ1: Обратно в содержание | JQS1: Обратно в содержание | JQU1: Обратно в содержание | JQW1: Обратно в содержание | JQY1: Обратно в содержание | JRA1: Обратно в содержание | JRC1: Обратно в содержание | JRE1: Обратно в содержание | JRG1: Обратно в содержание | JRI1: Обратно в содержание | JRK1: Обратно в содержание | JRM1: Обратно в содержание | JRO1: Обратно в содержание | JRQ1: Обратно в содержание | JRS1: Обратно в содержание | JRU1: Обратно в содержание | JRW1: Обратно в содержание | JRY1: Обратно в содержание | JSA1: Обратно в содержание | JSC1: Обратно в содержание | JSE1: Обратно в содержание | JSG1: Обратно в содержание | JSI1: Обратно в содержание | JSK1: Обратно в содержание | JSM1: Обратно в содержание | JSO1: Обратно в содержание | JSQ1: Обратно в содержание | JSS1: Обратно в содержание | JSU1: Обратно в содержание | JSW1: Обратно в содержание | JSY1: Обратно в содержание | JTA1: Обратно в содержание | JTC1: Обратно в содержание | JTE1: Обратно в содержание | JTG1: Обратно в содержание | JTI1: Обратно в содержание | JTK1: Обратно в содержание | JTM1: Обратно в содержание | JTO1: Обратно в содержание | JTQ1: Обратно в содержание | JTS1: Обратно в содержание | JTU1: Обратно в содержание | JTW1: Обратно в содержание | JTY1: Обратно в содержание | JUA1: Обратно в содержание | JUC1: Обратно в содержание | JUE1: Обратно в содержание | JUG1: Обратно в содержание | JUI1: Обратно в содержание | JUK1: Обратно в содержание | JUM1: Обратно в содержание | JUO1: Обратно в содержание | JUQ1: Обратно в содержание | JUS1: Обратно в содержание | JUU1: Обратно в содержание | JUW1: Обратно в содержание | JUY1: Обратно в содержание | JVA1: Обратно в содержание | JVC1: Обратно в содержание | JVE1: Обратно в содержание | JVG1: Обратно в содержание | JVI1: Обратно в содержание | JVK1: Обратно в содержание | JVM1: Обратно в содержание | JVO1: Обратно в содержание | JVQ1: Обратно в содержание | JVS1: Обратно в содержание | JVU1: Обратно в содержание | JVW1: Обратно в содержание | JVY1: Обратно в содержание | JWA1: Обратно в содержание | JWC1: Обратно в содержание | JWE1: Обратно в содержание | JWG1: Обратно в содержание | JWI1: Обратно в содержание | JWK1: Обратно в содержание | JWM1: Обратно в содержание | JWO1: Обратно в содержание | JWQ1: Обратно в содержание | JWS1: Обратно в содержание | JWU1: Обратно в содержание | JWW1: Обратно в содержание | JWY1: Обратно в содержание | JXA1: Обратно в содержание | JXC1: Обратно в содержание | JXE1: Обратно в содержание | JXG1: Обратно в содержание | JXI1: Обратно в содержание | JXK1: Обратно в содержание | JXM1: Обратно в содержание | JXO1: Обратно в содержание | JXQ1: Обратно в содержание | JXS1: Обратно в содержание | JXU1: Обратно в содержание | JXW1: Обратно в содержание | JXY1: Обратно в содержание | JYA1: Обратно в содержание | JYC1: Обратно в содержание | JYE1: Обратно в содержание | JYG1: Обратно в содержание | JYI1: Обратно в содержание | JYK1: Обратно в содержание | JYM1: Обратно в содержание | JYO1: Обратно в содержание | JYQ1: Обратно в содержание | JYS1: Обратно в содержание | JYU1: Обратно в содержание | JYW1: Обратно в содержание | JYY1: Обратно в содержание | JZA1: Обратно в содержание | JZC1: Обратно в содержание | JZE1: Обратно в содержание | JZG1: Обратно в содержание | JZI1: Обратно в содержание | JZK1: Обратно в содержание | JZM1: Обратно в содержание | JZO1: Обратно в содержание | JZQ1: Обратно в содержание | JZS1: Обратно в содержание | JZU1: Обратно в содержание | JZW1: Обратно в содержание | JZY1: Обратно в содержание | KAA1: Обратно в содержание | KAC1: Обратно в содержание | KAE1: Обратно в содержание | KAG1: Обратно в содержание | KAI1: Обратно в содержание | KAK1: Обратно в содержание | KAM1: Обратно в содержание | KAO1: Обратно в содержание | KAQ1: Обратно в содержание | KAS1: Обратно в содержание | KAU1: Обратно в содержание | KAW1: Обратно в содержание | KAY1: Обратно в содержание | KBA1: Обратно в содержание | KBC1: Обратно в содержание | KBE1: Обратно в содержание | KBG1: Обратно в содержание | KBI1: Обратно в содержание | KBK1: Обратно в содержание | KBM1: Обратно в содержание | KBO1: Обратно в содержание | KBQ1: Обратно в содержание | KBS1: Обратно в содержание | KBU1: Обратно в содержание | KBW1: Обратно в содержание | KBY1: Обратно в содержание | KCA1: Обратно в содержание | KCC1: Обратно в содержание | KCE1: Обратно в содержание | KCG1: Обратно в содержание | KCI1: Обратно в содержание | KCK1: Обратно в содержание | KCM1: Обратно в содержание | KCO1: Обратно в содержание | KCQ1: Обратно в содержание | KCS1: Обратно в содержание | KCU1: Обратно в содержание | KCW1: Обратно в содержание | KCY1: Обратно в содержание | KDA1: Обратно в содержание | KDC1: Обратно в содержание | KDE1: Обратно в содержание | KDG1: Обратно в содержание | KDI1: Обратно в содержание | KDK1: Обратно в содержание | KDM1: Обратно в содержание | KDO1: Обратно в содержание | KDQ1: Обратно в содержание | KDS1: Обратно в содержание | KDU1: Обратно в содержание | KDW1: Обратно в содержание | KDY1: Обратно в содержание | KEA1: Обратно в содержание | KEC1: Обратно в содержание | KEE1: Обратно в содержание | KEG1: Обратно в содержание | KEI1: Обратно в содержание | KEK1: Обратно в содержание | KEM1: Обратно в содержание | KEO1: Обратно в содержание | KEQ1: Обратно в содержание | KES1: Обратно в содержание | KEU1: Обратно в содержание | KEW1: Обратно в содержание | KEY1: Обратно в содержание | KFA1: Обратно в содержание | KFC1: Обратно в содержание | KFE1: Обратно в содержание | KFG1: Обратно в содержание | KFI1: Обратно в содержание | KFK1: Обратно в содержание | KFM1: Обратно в содержание | KFO1: Обратно в содержание | KFQ1: Обратно в содержание | KFS1: Обратно в содержание | KFU1: Обратно в содержание | KFW1: Обратно в содержание | KFY1: Обратно в содержание | KGA1: Обратно в содержание | KGC1: Обратно в содержание | KGE1: Обратно в содержание | KGG1: Обратно в содержание | KGI1: Обратно в содержание | KGK1: Обратно в содержание | KGM1: Обратно в содержание | KGO1: Обратно в содержание | KGQ1: Обратно в содержание | KGS1: Обратно в содержание | KGU1: Обратно в содержание | KGW1: Обратно в содержание | KGY1: Обратно в содержание | KHA1: Обратно в содержание | KHC1: Обратно в содержание | KHE1: Обратно в содержание | KHG1: Обратно в содержание | KHI1: Обратно в содержание | KHK1: Обратно в содержание | KHM1: Обратно в содержание | KHO1: Обратно в содержание | KHQ1: Обратно в содержание | KHS1: Обратно в содержание | KHU1: Обратно в содержание | KHW1: Обратно в содержание | KHY1: Обратно в содержание | KIA1: Обратно в содержание | KIC1: Обратно в содержание | KIE1: Обратно в содержание | KIG1: Обратно в содержание | KII1: Обратно в содержание | KIK1: Обратно в содержание | KIM1: Обратно в содержание | KIO1: Обратно в содержание | KIQ1: Обратно в содержание | KIS1: Обратно в содержание | KIU1: Обратно в содержание | KIW1: Обратно в содержание | KIY1: Обратно в содержание | KJA1: Обратно в содержание | KJC1: Обратно в содержание | KJE1: Обратно в содержание | KJG1: Обратно в содержание | KJI1: Обратно в содержание | KJK1: Обратно в содержание | KJM1: Обратно в содержание | KJO1: Обратно в содержание | KJQ1: Обратно в содержание | KJS1: Обратно в содержание | KJU1: Обратно в содержание | KJW1: Обратно в содержание | KJY1: Обратно в содержание | KKA1: Обратно в содержание | KKC1: Обратно в содержание | KKE1: Обратно в содержание | KKG1: Обратно в содержание | KKI1: Обратно в содержание | KKK1: Обратно в содержание | KKM1: Обратно в содержание | KKO1: Обратно в содержание | KKQ1: Обратно в содержание | KKS1: Обратно в содержание | KKU1: Обратно в содержание | KKW1: Обратно в содержание | KKY1: Обратно в содержание | KLA1: Обратно в содержание | KLC1: Обратно в содержание | KLE1: Обратно в содержание | KLG1: Обратно в содержание | KLI1: Обратно в содержание | KLK1: Обратно в содержание | KLM1: Обратно в содержание | KLO1: Обратно в содержание | KLQ1: Обратно в содержание | KLS1: Обратно в содержание | KLU1: Обратно в содержание | KLW1: Обратно в содержание | KLY1: Обратно в содержание | KMA1: Обратно в содержание | KMC1: Обратно в содержание | KME1: Обратно в содержание | KMG1: Обратно в содержание | KMI1: Обратно в содержание | KMK1: Обратно в содержание | KMM1: Обратно в содержание | KMO1: Обратно в содержание | KMQ1: Обратно в содержание | KMS1: Обратно в содержание | KMU1: Обратно в содержание | KMW1: Обратно в содержание | KMY1: Обратно в содержание | KNA1: Обратно в содержание | KNC1: Обратно в содержание | KNE1: Обратно в содержание | KNG1: Обратно в содержание | KNI1: Обратно в содержание | KNK1: Обратно в содержание | KNM1: Обратно в содержание | KNO1: Обратно в содержание | KNQ1: Обратно в содержание | KNS1: Обратно в содержание | KNU1: Обратно в содержание | KNW1: Обратно в содержание | KNY1: Обратно в содержание | KOA1: Обратно в содержание | KOC1: Обратно в содержание | KOE1: Обратно в содержание | KOG1: Обратно в содержание | KOI1: Обратно в содержание | KOK1: Обратно в содержание | KOM1: Обратно в содержание | KOO1: Обратно в содержание | KOQ1: Обратно в содержание | KOS1: Обратно в содержание | KOU1: Обратно в содержание | KOW1: Обратно в содержание | KOY1: Обратно в содержание | KPA1: Обратно в содержание | KPC1: Обратно в содержание | KPE1: Обратно в содержание | KPG1: Обратно в содержание | KPI1: Обратно в содержание | KPK1: Обратно в содержание | KPM1: Обратно в содержание | KPO1: Обратно в содержание | KPQ1: Обратно в содержание | KPS1: Обратно в содержание | KPU1: Обратно в содержание | KPW1: Обратно в содержание | KPY1: Обратно в содержание | KQA1: Обратно в содержание | KQC1: Обратно в содержание | KQE1: Обратно в содержание | KQG1: Обратно в содержание | KQI1: Обратно в содержание | KQK1: Обратно в содержание | KQM1: Обратно в содержание | KQO1: Обратно в содержание | KQQ1: Обратно в содержание | KQS1: Обратно в содержание | KQU1: Обратно в содержание | KQW1: Обратно в содержание | KQY1: Обратно в содержание | KRA1: Обратно в содержание | KRC1: Обратно в содержание | KRE1: Обратно в содержание | KRG1: Обратно в содержание | KRI1: Обратно в содержание | KRK1: Обратно в содержание | KRM1: Обратно в содержание | KRO1: Обратно в содержание | KRQ1: Обратно в содержание | KRS1: Обратно в содержание | KRU1: Обратно в содержание | KRW1: Обратно в содержание | KRY1: Обратно в содержание | KSA1: Обратно в содержание | KSC1: Обратно в содержание | KSE1: Обратно в содержание | KSG1: Обратно в содержание | KSI1: Обратно в содержание | KSK1: Обратно в содержание | KSM1: Обратно в содержание | KSO1: Обратно в содержание | KSQ1: Обратно в содержание | KSS1: Обратно в содержание | KSU1: Обратно в содержание | KSW1: Обратно в содержание | KSY1: Обратно в содержание | KTA1: Обратно в содержание | KTC1: Обратно в содержание | KTE1: Обратно в содержание | KTG1: Обратно в содержание | KTI1: Обратно в содержание | KTK1: Обратно в содержание | KTM1: Обратно в содержание | KTO1: Обратно в содержание | KTQ1: Обратно в содержание | KTS1: Обратно в содержание | KTU1: Обратно в содержание | KTW1: Обратно в содержание | KTY1: Обратно в содержание | KUA1: Обратно в содержание | KUC1: Обратно в содержание | KUE1: Обратно в содержание | KUG1: Обратно в содержание | KUI1: Обратно в содержание | KUK1: Обратно в содержание | KUM1: Обратно в содержание | KUO1: Обратно в содержание | KUQ1: Обратно в содержание | KUS1: Обратно в содержание | KUU1: Обратно в содержание | KUW1: Обратно в содержание | KUY1: Обратно в содержание | KVA1: Обратно в содержание | KVC1: Обратно в содержание | KVE1: Обратно в содержание | KVG1: Обратно в содержание | KVI1: Обратно в содержание | KVK1: Обратно в содержание | KVM1: Обратно в содержание | KVO1: Обратно в содержание | KVQ1: Обратно в содержание | KVS1: Обратно в содержание | KVU1: Обратно в содержание | KVW1: Обратно в содержание | KVY1: Обратно в содержание | KWA1: Обратно в содержание | KWC1: Обратно в содержание | KWE1: Обратно в содержание | KWG1: Обратно в содержание | KWI1: Обратно в содержание | KWK1: Обратно в содержание | KWM1: Обратно в содержание | KWO1: Обратно в содержание | KWQ1: Обратно в содержание | KWS1: Обратно в содержание | KWU1: Обратно в содержание | KWW1: Обратно в содержание | KWY1: Обратно в содержание | KXA1: Обратно в содержание | KXC1: Обратно в содержание | KXE1: Обратно в содержание | KXG1: Обратно в содержание | KXI1: Обратно в содержание | KXK1: Обратно в содержание | KXM1: Обратно в содержание | KXO1: Обратно в содержание | KXQ1: Обратно в содержание | KXS1: Обратно в содержание | KXU1: Обратно в содержание | KXW1: Обратно в содержание | KXY1: Обратно в содержание | KYA1: Обратно в содержание | KYC1: Обратно в содержание | KYE1: Обратно в содержание | KYG1: Обратно в содержание | KYI1: Обратно в содержание | KYK1: Обратно в содержание | KYM1: Обратно в содержание | KYO1: Обратно в содержание | KYQ1: Обратно в содержание | KYS1: Обратно в содержание | KYU1: Обратно в содержание | KYW1: Обратно в содержание | KYY1: Обратно в содержание | KZA1: Обратно в содержание | KZC1: Обратно в содержание | KZE1: Обратно в содержание | KZG1: Обратно в содержание | KZI1: Обратно в содержание | KZK1: Обратно в содержание | KZM1: Обратно в содержание | KZO1: Обратно в содержание | KZQ1: Обратно в содержание | KZS1: Обратно в содержание | KZU1: Обратно в содержание | KZW1: Обратно в содержание | KZY1: Обратно в содержание | LAA1: Обратно в содержание | LAC1: Обратно в содержание | LAE1: Обратно в содержание | LAG1: Обратно в содержание | LAI1: Обратно в содержание | LAK1: Обратно в содержание | LAM1: Обратно в содержание | LAO1: Обратно в содержание | LAQ1: Обратно в содержание | LAS1: Обратно в содержание | LAU1: Обратно в содержание | LAW1: Обратно в содержание | LAY1: Обратно в содержание | LBA1: Обратно в содержание | LBC1: Обратно в содержание | LBE1: Обратно в содержание | LBG1: Обратно в содержание | LBI1: Обратно в содержание | LBK1: Обратно в содержание | LBM1: Обратно в содержание | LBO1: Обратно в содержание | LBQ1: Обратно в содержание | LBS1: Обратно в содержание | LBU1: Обратно в содержание | LBW1: Обратно в содержание | LBY1: Обратно в содержание | LCA1: Обратно в содержание | LCC1: Обратно в содержание | LCE1: Обратно в содержание | LCG1: Обратно в содержание | LCI1: Обратно в содержание | LCK1: Обратно в содержание | LCM1: Обратно в содержание | LCO1: Обратно в содержание | LCQ1: Обратно в содержание | LCS1: Обратно в содержание | LCU1: Обратно в содержание | LCW1: Обратно в содержание | LCY1: Обратно в содержание | LDA1: Обратно в содержание | LDC1: Обратно в содержание | LDE1: Обратно в содержание | LDG1: Обратно в содержание | LDI1: Обратно в содержание | LDK1: Обратно в содержание | LDM1: Обратно в содержание | LDO1: Обратно в содержание | LDQ1: Обратно в содержание | LDS1: Обратно в содержание | LDU1: Обратно в содержание | LDW1: Обратно в содержание | LDY1: Обратно в содержание | LEA1: Обратно в содержание | LEC1: Обратно в содержание | LEE1: Обратно в содержание | LEG1: Обратно в содержание | LEI1: Обратно в содержание | LEK1: Обратно в содержание | LEM1: Обратно в содержание | LEO1: Обратно в содержание | LEQ1: Обратно в содержание | LES1: Обратно в содержание | LEU1: Обратно в содержание | LEW1: Обратно в содержание | LEY1: Обратно в содержание | LFA1: Обратно в содержание | LFC1: Обратно в содержание | LFE1: Обратно в содержание | LFG1: Обратно в содержание | LFI1: Обратно в содержание | LFK1: Обратно в содержание | LFM1: Обратно в содержание | LFO1: Обратно в содержание | LFQ1: Обратно в содержание | LFS1: Обратно в содержание | LFU1: Обратно в содержание | LFW1: Обратно в содержание | LFY1: Обратно в содержание | LGA1: Обратно в содержание | LGC1: Обратно в содержание | LGE1: Обратно в содержание | LGG1: Обратно в содержание | LGI1: Обратно в содержание | LGK1: Обратно в содержание | LGM1: Обратно в содержание | LGO1: Обратно в содержание | LGQ1: Обратно в содержание | LGS1: Обратно в содержание | LGU1: Обратно в содержание | LGW1: Обратно в содержание | LGY1: Обратно в содержание | LHA1: Обратно в содержание | LHC1: Обратно в содержание | LHE1: Обратно в содержание | LHG1: Обратно в содержание | LHI1: Обратно в содержание | LHK1: Обратно в содержание | LHM1: Обратно в содержание | LHO1: Обратно в содержание | LHQ1: Обратно в содержание | LHS1: Обратно в содержание | LHU1: Обратно в содержание | LHW1: Обратно в содержание | LHY1: Обратно в содержание | LIA1: Обратно в содержание | LIC1: Обратно в содержание | LIE1: Обратно в содержание | LIG1: Обратно в содержание | LII1: Обратно в содержание | LIK1: Обратно в содержание | LIM1: Обратно в содержание | LIO1: Обратно в содержание | LIQ1: Обратно в содержание | LIS1: Обратно в содержание | LIU1: Обратно в содержание | LIW1: Обратно в содержание | LIY1: Обратно в содержание | LJA1: Обратно в содержание | LJC1: Обратно в содержание | LJE1: Обратно в содержание | LJG1: Обратно в содержание | LJI1: Обратно в содержание | LJK1: Обратно в содержание | LJM1: Обратно в содержание | LJO1: Обратно в содержание | LJQ1: Обратно в содержание | LJS1: Обратно в содержание | LJU1: Обратно в содержание | LJW1: Обратно в содержание | LJY1: Обратно в содержание | LKA1: Обратно в содержание | LKC1: Обратно в содержание | LKE1: Обратно в содержание | LKG1: Обратно в содержание | LKI1: Обратно в содержание | LKK1: Обратно в содержание | LKM1: Обратно в содержание | LKO1: Обратно в содержание | LKQ1: Обратно в содержание | LKS1: Обратно в содержание | LKU1: Обратно в содержание | LKW1: Обратно в содержание | LKY1: Обратно в содержание | LLA1: Обратно в содержание | LLC1: Обратно в содержание | LLE1: Обратно в содержание | LLG1: Обратно в содержание | LLI1: Обратно в содержание | LLK1: Обратно в содержание | LLM1: Обратно в содержание | LLO1: Обратно в содержание | LLQ1: Обратно в содержание | LLS1: Обратно в содержание | LLU1: Обратно в содержание | LLW1: Обратно в содержание | LLY1: Обратно в содержание | LMA1: Обратно в содержание | LMC1: Обратно в содержание | LME1: Обратно в содержание | LMG1: Обратно в содержание | LMI1: Обратно в содержание | LMK1: Обратно в содержание | LMM1: Обратно в содержание | LMO1: Обратно в содержание | LMQ1: Обратно в содержание | LMS1: Обратно в содержание | LMU1: Обратно в содержание | LMW1: Обратно в содержание | LMY1: Обратно в содержание | LNA1: Обратно в содержание | LNC1: Обратно в содержание | LNE1: Обратно в содержание | LNG1: Обратно в содержание | LNI1: Обратно в содержание | LNK1: Обратно в содержание | LNM1: Обратно в содержание | LNO1: Обратно в содержание | LNQ1: Обратно в содержание | LNS1: Обратно в содержание | LNU1: Обратно в содержание | LNW1: Обратно в содержание | LNY1: Обратно в содержание | LOA1: Обратно в содержание | LOC1: Обратно в содержание | LOE1: Обратно в содержание | LOG1: Обратно в содержание | LOI1: Обратно в содержание | LOK1: Обратно в содержание | LOM1: Обратно в содержание | LOO1: Обратно в содержание | LOQ1: Обратно в содержание | LOS1: Обратно в содержание | LOU1: Обратно в содержание | LOW1: Обратно в содержание | LOY1: Обратно в содержание | LPA1: Обратно в содержание | LPC1: Обратно в содержание | LPE1: Обратно в содержание | LPG1: Обратно в содержание | LPI1: Обратно в содержание | LPK1: Обратно в содержание | LPM1: Обратно в содержание | LPO1: Обратно в содержание | LPQ1: Обратно в содержание | LPS1: Обратно в содержание | LPU1: Обратно в содержание | LPW1: Обратно в содержание | LPY1: Обратно в содержание | LQA1: Обратно в содержание | LQC1: Обратно в содержание | LQE1: Обратно в содержание | LQG1: Обратно в содержание | LQI1: Обратно в содержание | LQK1: Обратно в содержание | LQM1: Обратно в содержание | LQO1: Обратно в содержание | LQQ1: Обратно в содержание | LQS1: Обратно в содержание | LQU1: Обратно в содержание | LQW1: Обратно в содержание | LQY1: Обратно в содержание | LRA1: Обратно в содержание | LRC1: Обратно в содержание | LRE1: Обратно в содержание | LRG1: Обратно в содержание | LRI1: Обратно в содержание | LRK1: Обратно в содержание | LRM1: Обратно в содержание | LRO1: Обратно в содержание | LRQ1: Обратно в содержание | LRS1: Обратно в содержание | LRU1: Обратно в содержание | LRW1: Обратно в содержание | LRY1: Обратно в содержание | LSA1: Обратно в содержание | LSC1: Обратно в содержание | LSE1: Обратно в содержание | LSG1: Обратно в содержание | LSI1: Обратно в содержание | LSK1: Обратно в содержание | LSM1: Обратно в содержание | LSO1: Обратно в содержание | LSQ1: Обратно в содержание | LSS1: Обратно в содержание | LSU1: Обратно в содержание | LSW1: Обратно в содержание | LSY1: Обратно в содержание | LTA1: Обратно в содержание | LTC1: Обратно в содержание | LTE1: Обратно в содержание | LTG1: Обратно в содержание | LTI1: Обратно в содержание | LTK1: Обратно в содержание | LTM1: Обратно в содержание | LTO1: Обратно в содержание | LTQ1: Обратно в содержание | LTS1: Обратно в содержание | LTU1: Обратно в содержание | LTW1: Обратно в содержание | LTY1: Обратно в содержание | LUA1: Обратно в содержание | LUC1: Обратно в содержание | LUE1: Обратно в содержание | LUG1: Обратно в содержание | LUI1: Обратно в содержание | LUK1: Обратно в содержание | LUM1: Обратно в содержание | LUO1: Обратно в содержание | LUQ1: Обратно в содержание | LUS1: Обратно в содержание | LUU1: Обратно в содержание | LUW1: Обратно в содержание | LUY1: Обратно в содержание | LVA1: Обратно в содержание | LVC1: Обратно в содержание | LVE1: Обратно в содержание | LVG1: Обратно в содержание | LVI1: Обратно в содержание | LVK1: Обратно в содержание | LVM1: Обратно в содержание | LVO1: Обратно в содержание | LVQ1: Обратно в содержание | LVS1: Обратно в содержание | LVU1: Обратно в содержание | LVW1: Обратно в содержание | LVY1: Обратно в содержание | LWA1: Обратно в содержание | LWC1: Обратно в содержание | LWE1: Обратно в содержание | LWG1: Обратно в содержание | LWI1: Обратно в содержание | LWK1: Обратно в содержание | LWM1: Обратно в содержание | LWO1: Обратно в содержание | LWQ1: Обратно в содержание | LWS1: Обратно в содержание | LWU1: Обратно в содержание | LWW1: Обратно в содержание | LWY1: Обратно в содержание | LXA1: Обратно в содержание | LXC1: Обратно в содержание | LXE1: Обратно в содержание | LXG1: Обратно в содержание | LXI1: Обратно в содержание | LXK1: Обратно в содержание | LXM1: Обратно в содержание | LXO1: Обратно в содержание | LXQ1: Обратно в содержание | LXS1: Обратно в содержание | LXU1: Обратно в содержание | LXW1: Обратно в содержание | LXY1: Обратно в содержание | LYA1: Обратно в содержание | LYC1: Обратно в содержание | LYE1: Обратно в содержание | LYG1: Обратно в содержание | LYI1: Обратно в содержание | LYK1: Обратно в содержание | LYM1: Обратно в содержание | LYO1: Обратно в содержание | LYQ1: Обратно в содержание | LYS1: Обратно в содержание | LYU1: Обратно в содержание | LYW1: Обратно в содержание | LYY1: Обратно в содержание | LZA1: Обратно в содержание | LZC1: Обратно в содержание | LZE1: Обратно в содержание | LZG1: Обратно в содержание | LZI1: Обратно в содержание | LZK1: Обратно в содержание | LZM1: Обратно в содержание | LZO1: Обратно в содержание | LZQ1: Обратно в содержание | LZS1: Обратно в содержание | LZU1: Обратно в содержание | LZW1: Обратно в содержание | LZY1: Обратно в содержание | MAA1: Обратно в содержание | MAC1: Обратно в содержание | MAE1: Обратно в содержание | MAG1: Обратно в содержание | MAI1: Обратно в содержание | MAK1: Обратно в содержание | MAM1: Обратно в содержание | MAO1: Обратно в содержание | MAQ1: Обратно в содержание | MAS1: Обратно в содержание | MAU1: Обратно в содержание | MAW1: Обратно в содержание | MAY1: Обратно в содержание | MBA1: Обратно в содержание | MBC1: Обратно в содержание | MBE1: Обратно в содержание | MBG1: Обратно в содержание | MBI1: Обратно в содержание | MBK1: Обратно в содержание | MBM1: Обратно в содержание | MBO1: Обратно в содержание | MBQ1: Обратно в содержание | MBS1: Обратно в содержание | MBU1: Обратно в содержание | MBW1: Обратно в содержание | MBY1: Обратно в содержание | MCA1: Обратно в содержание | MCC1: Обратно в содержание | MCE1: Обратно в содержание | MCG1: Обратно в содержание | MCI1: Обратно в содержание | MCK1: Обратно в содержание | MCM1: Обратно в содержание | MCO1: Обратно в содержание | MCQ1: Обратно в содержание | MCS1: Обратно в содержание | MCU1: Обратно в содержание | MCW1: Обратно в содержание | MCY1: Обратно в содержание | MDA1: Обратно в содержание | MDC1: Обратно в содержание | MDE1: Обратно в содержание | MDG1: Обратно в содержание | MDI1: Обратно в содержание | MDK1: Обратно в содержание | MDM1: Обратно в содержание | MDO1: Обратно в содержание | MDQ1: Обратно в содержание | MDS1: Обратно в содержание | MDU1: Обратно в содержание | MDW1: Обратно в содержание | MDY1: Обратно в содержание | MEA1: Обратно в содержание | MEC1: Обратно в содержание | MEE1: Обратно в содержание | MEG1: Обратно в содержание | MEI1: Обратно в содержание | MEK1: Обратно в содержание | MEM1: Обратно в содержание | MEO1: Обратно в содержание | MEQ1: Обратно в содержание | MES1: Обратно в содержание | MEU1: Обратно в содержание | MEW1: Обратно в содержание | MEY1: Обратно в содержание | MFA1: Обратно в содержание | MFC1: Обратно в содержание | MFE1: Обратно в содержание | MFG1: Обратно в содержание | MFI1: Обратно в содержание | MFK1: Обратно в содержание | MFM1: Обратно в содержание | MFO1: Обратно в содержание | MFQ1: Обратно в содержание | MFS1: Обратно в содержание | MFU1: Обратно в содержание | MFW1: Обратно в содержание | MFY1: Обратно в содержание | MGA1: Обратно в содержание | MGC1: Обратно в содержание | MGE1: Обратно в содержание | MGG1: Обратно в содержание | MGI1: Обратно в содержание | MGK1: Обратно в содержание | MGM1: Обратно в содержание | MGO1: Обратно в содержание | MGQ1: Обратно в содержание | MGS1: Обратно в содержание | MGU1: Обратно в содержание | MGW1: Обратно в содержание | MGY1: Обратно в содержание | MHA1: Обратно в содержание | MHC1: Обратно в содержание | MHE1: Обратно в содержание | MHG1: Обратно в содержание | MHI1: Обратно в содержание | MHK1: Обратно в содержание | MHM1: Обратно в содержание | MHO1: Обратно в содержание | MHQ1: Обратно в содержание | MHS1: Обратно в содержание | MHU1: Обратно в содержание | MHW1: Обратно в содержание | MHY1: Обратно в содержание | MIA1: Обратно в содержание | MIC1: Обратно в содержание | MIE1: Обратно в содержание | MIG1: Обратно в содержание | MII1: Обратно в содержание | MIK1: Обратно в содержание | MIM1: Обратно в содержание | MIO1: Обратно в содержание | MIQ1: Обратно в содержание | MIS1: Обратно в содержание | MIU1: Обратно в содержание | MIW1: Обратно в содержание | MIY1: Обратно в содержание | MJA1: Обратно в содержание | MJC1: Обратно в содержание | MJE1: Обратно в содержание | MJG1: Обратно в содержание | MJI1: Обратно в содержание | MJK1: Обратно в содержание | MJM1: Обратно в содержание | MJO1: Обратно в содержание | MJQ1: Обратно в содержание | MJS1: Обратно в содержание | MJU1: Обратно в содержание | MJW1: Обратно в содержание | MJY1: Обратно в содержание | MKA1: Обратно в содержание | MKC1: Обратно в содержание | MKE1: Обратно в содержание | MKG1: Обратно в содержание | MKI1: Обратно в содержание | MKK1: Обратно в содержание | MKM1: Обратно в содержание | MKO1: Обратно в содержание | MKQ1: Обратно в содержание | MKS1: Обратно в содержание | MKU1: Обратно в содержание | MKW1: Обратно в содержание | MKY1: Обратно в содержание | MLA1: Обратно в содержание | MLC1: Обратно в содержание | MLE1: Обратно в содержание | MLG1: Обратно в содержание | MLI1: Обратно в содержание | MLK1: Обратно в содержание | MLM1: Обратно в содержание | MLO1: Обратно в содержание | MLQ1: Обратно в содержание | MLS1: Обратно в содержание | MLU1: Обратно в содержание | MLW1: Обратно в содержание | MLY1: Обратно в содержание | MMA1: Обратно в содержание | MMC1: Обратно в содержание | MME1: Обратно в содержание | MMG1: Обратно в содержание | MMI1: Обратно в содержание | MMK1: Обратно в содержание | MMM1: Обратно в содержание | MMO1: Обратно в содержание | MMQ1: Обратно в содержание | MMS1: Обратно в содержание | MMU1: Обратно в содержание | MMW1: Обратно в содержание | MMY1: Обратно в содержание | MNA1: Обратно в содержание | MNC1: Обратно в содержание | MNE1: Обратно в содержание | MNG1: Обратно в содержание | MNI1: Обратно в содержание | MNK1: Обратно в содержание | MNM1: Обратно в содержание | MNO1: Обратно в содержание | MNQ1: Обратно в содержание | MNS1: Обратно в содержание | MNU1: Обратно в содержание | MNW1: Обратно в содержание | MNY1: Обратно в содержание | MOA1: Обратно в содержание | MOC1: Обратно в содержание | MOE1: Обратно в содержание | MOG1: Обратно в содержание | MOI1: Обратно в содержание | MOK1: Обратно в содержание | MOM1: Обратно в содержание | MOO1: Обратно в содержание | MOQ1: Обратно в содержание | MOS1: Обратно в содержание | MOU1: Обратно в содержание | MOW1: Обратно в содержание | MOY1: Обратно в содержание | MPA1: Обратно в содержание | MPC1: Обратно в содержание | MPE1: Обратно в содержание | MPG1: Обратно в содержание | MPI1: Обратно в содержание | MPK1: Обратно в содержание | MPM1: Обратно в содержание | MPO1: Обратно в содержание | MPQ1: Обратно в содержание | MPS1: Обратно в содержание | MPU1: Обратно в содержание | MPW1: Обратно в содержание | MPY1: Обратно в содержание | MQA1: Обратно в содержание | MQC1: Обратно в содержание | MQE1: Обратно в содержание | MQG1: Обратно в содержание | MQI1: Обратно в содержание | MQK1: Обратно в содержание | MQM1: Обратно в содержание | MQO1: Обратно в содержание | MQQ1: Обратно в содержание | MQS1: Обратно в содержание | MQU1: Обратно в содержание | MQW1: Обратно в содержание | MQY1: Обратно в содержание | MRA1: Обратно в содержание | MRC1: Обратно в содержание | MRE1: Обратно в содержание | MRG1: Обратно в содержание | MRI1: Обратно в содержание | MRK1: Обратно в содержание | MRM1: Обратно в содержание | MRO1: Обратно в содержание | MRQ1: Обратно в содержание | MRS1: Обратно в содержание | MRU1: Обратно в содержание | MRW1: Обратно в содержание | MRY1: Обратно в содержание | MSA1: Обратно в содержание | MSC1: Обратно в содержание | MSE1: Обратно в содержание | MSG1: Обратно в содержание | MSI1: Обратно в содержание | MSK1: Обратно в содержание | MSM1: Обратно в содержание | MSO1: Обратно в содержание | MSQ1: Обратно в содержание | MSS1: Обратно в содержание | MSU1: Обратно в содержание | MSW1: Обратно в содержание | MSY1: Обратно в содержание | MTA1: Обратно в содержание | MTC1: Обратно в содержание | MTE1: Обратно в содержание | MTG1: Обратно в содержание | MTI1: Обратно в содержание | MTK1: Обратно в содержание | MTM1: Обратно в содержание | MTO1: Обратно в содержание | MTQ1: Обратно в содержание | MTS1: Обратно в содержание | MTU1: Обратно в содержание | MTW1: Обратно в содержание | MTY1: Обратно в содержание | MUA1: Обратно в содержание | MUC1: Обратно в содержание | MUE1: Обратно в содержание | MUG1: Обратно в содержание | MUI1: Обратно в содержание | MUK1: Обратно в содержание | MUM1: Обратно в содержание | MUO1: Обратно в содержание | MUQ1: Обратно в содержание | MUS1: Обратно в содержание | MUU1: Обратно в содержание | MUW1: Обратно в содержание | MUY1: Обратно в содержание | MVA1: Обратно в содержание | MVC1: Обратно в содержание | MVE1: Обратно в содержание | MVG1: Обратно в содержание | MVI1: Обратно в содержание | MVK1: Обратно в содержание | MVM1: Обратно в содержание | MVO1: Обратно в содержание | MVQ1: Обратно в содержание | MVS1: Обратно в содержание | MVU1: Обратно в содержание | MVW1: Обратно в содержание | MVY1: Обратно в содержание | MWA1: Обратно в содержание | MWC1: Обратно в содержание | MWE1: Обратно в содержание | MWG1: Обратно в содержание | MWI1: Обратно в содержание | MWK1: Обратно в содержание | MWM1: Обратно в содержание | MWO1: Обратно в содержание | MWQ1: Обратно в содержание | MWS1: Обратно в содержание | MWU1: Обратно в содержание | MWW1: Обратно в содержание | MWY1: Обратно в содержание | MXA1: Обратно в содержание | MXC1: Обратно в содержание | MXE1: Обратно в содержание | MXG1: Обратно в содержание | MXI1: Обратно в содержание | MXK1: Обратно в содержание | MXM1: Обратно в содержание | MXO1: Обратно в содержание | MXQ1: Обратно в содержание | MXS1: Обратно в содержание | MXU1: Обратно в содержание | MXW1: Обратно в содержание | MXY1: Обратно в содержание | MYA1: Обратно в содержание | MYC1: Обратно в содержание | MYE1: Обратно в содержание | MYG1: Обратно в содержание | MYI1: Обратно в содержание | MYK1: Обратно в содержание | MYM1: Обратно в содержание | MYO1: Обратно в содержание | MYQ1: Обратно в содержание | MYS1: Обратно в содержание | MYU1: Обратно в содержание | MYW1: Обратно в содержание | MYY1: Обратно в содержание | MZA1: Обратно в содержание | MZC1: Обратно в содержание | MZE1: Обратно в содержание | MZG1: Обратно в содержание | MZI1: Обратно в содержание | MZK1: Обратно в содержание | MZM1: Обратно в содержание | MZO1: Обратно в содержание | MZQ1: Обратно в содержание | MZS1: Обратно в содержание | MZU1: Обратно в содержание | MZW1: Обратно в содержание | MZY1: Обратно в содержание | NAA1: Обратно в содержание | NAC1: Обратно в содержание | NAE1: Обратно в содержание | NAG1: Обратно в содержание | NAI1: Обратно в содержание | NAK1: Обратно в содержание | NAM1: Обратно в содержание | NAO1: Обратно в содержание | NAQ1: Обратно в содержание | NAS1: Обратно в содержание | NAU1: Обратно в содержание | NAW1: Обратно в содержание | NAY1: Обратно в содержание | NBA1: Обратно в содержание | NBC1: Обратно в содержание | NBE1: Обратно в содержание | NBG1: Обратно в содержание | NBI1: Обратно в содержание | NBK1: Обратно в содержание | NBM1: Обратно в содержание | NBO1: Обратно в содержание | NBQ1: Обратно в содержание | NBS1: Обратно в содержание | NBU1: Обратно в содержание | NBW1: Обратно в содержание | NBY1: Обратно в содержание | NCA1: Обратно в содержание | NCC1: Обратно в содержание | NCE1: Обратно в содержание | NCG1: Обратно в содержание | NCI1: Обратно в содержание | NCK1: Обратно в содержание | NCM1: Обратно в содержание | NCO1: Обратно в содержание | NCQ1: Обратно в содержание | NCS1: Обратно в содержание | NCU1: Обратно в содержание | NCW1: Обратно в содержание | NCY1: Обратно в содержание | NDA1: Обратно в содержание | NDC1: Обратно в содержание | NDE1: Обратно в содержание | NDG1: Обратно в содержание | NDI1: Обратно в содержание | NDK1: Обратно в содержание | NDM1: Обратно в содержание | NDO1: Обратно в содержание | NDQ1: Обратно в содержание | NDS1: Обратно в содержание | NDU1: Обратно в содержание | NDW1: Обратно в содержание | NDY1: Обратно в содержание | NEA1: Обратно в содержание | NEC1: Обратно в содержание | NEE1: Обратно в содержание | NEG1: Обратно в содержание | NEI1: Обратно в содержание | NEK1: Обратно в содержание | NEM1: Обратно в содержание | NEO1: Обратно в содержание | NEQ1: Обратно в содержание | NES1: Обратно в содержание | NEU1: Обратно в содержание | NEW1: Обратно в содержание | NEY1: Обратно в содержание | NFA1: Обратно в содержание | NFC1: Обратно в содержание | NFE1: Обратно в содержание | NFG1: Обратно в содержание | NFI1: Обратно в содержание | NFK1: Обратно в содержание | NFM1: Обратно в содержание | NFO1: Обратно в содержание | NFQ1: Обратно в содержание | NFS1: Обратно в содержание | NFU1: Обратно в содержание | NFW1: Обратно в содержание | NFY1: Обратно в содержание | NGA1: Обратно в содержание | NGC1: Обратно в содержание | NGE1: Обратно в содержание | NGG1: Обратно в содержание | NGI1: Обратно в содержание | NGK1: Обратно в содержание | NGM1: Обратно в содержание | NGO1: Обратно в содержание | NGQ1: Обратно в содержание | NGS1: Обратно в содержание | NGU1: Обратно в содержание | NGW1: Обратно в содержание | NGY1: Обратно в содержание | NHA1: Обратно в содержание | NHC1: Обратно в содержание | NHE1: Обратно в содержание | NHG1: Обратно в содержание | NHI1: Обратно в содержание | NHK1: Обратно в содержание | NHM1: Обратно в содержание | NHO1: Обратно в содержание | NHQ1: Обратно в содержание | NHS1: Обратно в содержание | NHU1: Обратно в содержание | NHW1: Обратно в содержание | NHY1: Обратно в содержание | NIA1: Обратно в содержание | NIC1: Обратно в содержание | NIE1: Обратно в содержание | NIG1: Обратно в содержание | NII1: Обратно в содержание | NIK1: Обратно в содержание | NIM1: Обратно в содержание | NIO1: Обратно в содержание | NIQ1: Обратно в содержание | NIS1: Обратно в содержание | NIU1: Обратно в содержание | NIW1: Обратно в содержание | NIY1: Обратно в содержание | NJA1: Обратно в содержание | NJC1: Обратно в содержание | NJE1: Обратно в содержание | NJG1: Обратно в содержание | NJI1: Обратно в содержание | NJK1: Обратно в содержание | NJM1: Обратно в содержание | NJO1: Обратно в содержание | NJQ1: Обратно в содержание | NJS1: Обратно в содержание | NJU1: Обратно в содержание | NJW1: Обратно в содержание | NJY1: Обратно в содержание | NKA1: Обратно в содержание | NKC1: Обратно в содержание | NKE1: Обратно в содержание | NKG1: Обратно в содержание | NKI1: Обратно в содержание | NKK1: Обратно в содержание | NKM1: Обратно в содержание | NKO1: Обратно в содержание | NKQ1: Обратно в содержание | NKS1: Обратно в содержание | NKU1: Обратно в содержание | NKW1: Обратно в содержание | NKY1: Обратно в содержание | NLA1: Обратно в содержание | NLC1: Обратно в содержание | NLE1: Обратно в содержание | NLG1: Обратно в содержание | NLI1: Обратно в содержание | NLK1: Обратно в содержание | NLM1: Обратно в содержание | NLO1: Обратно в содержание | NLQ1: Обратно в содержание | NLS1: Обратно в содержание | NLU1: Обратно в содержание | NLW1: Обратно в содержание | NLY1: Обратно в содержание | NMA1: Обратно в содержание | NMC1: Обратно в содержание | NME1: Обратно в содержание | NMG1: Обратно в содержание | NMI1: Обратно в содержание | NMK1: Обратно в содержание | NMM1: Обратно в содержание | NMO1: Обратно в содержание | NMQ1: Обратно в содержание | NMS1: Обратно в содержание | NMU1: Обратно в содержание | NMW1: Обратно в содержание | NMY1: Обратно в содержание | NNA1: Обратно в содержание | NNC1: Обратно в содержание | NNE1: Обратно в содержание | NNG1: Обратно в содержание | NNI1: Обратно в содержание | NNK1: Обратно в содержание | NNM1: Обратно в содержание | NNO1: Обратно в содержание | NNQ1: Обратно в содержание | NNS1: Обратно в содержание | NNU1: Обратно в содержание | NNW1: Обратно в содержание | NNY1: Обратно в содержание | NOA1: Обратно в содержание | NOC1: Обратно в содержание | NOE1: Обратно в содержание | NOG1: Обратно в содержание | NOI1: Обратно в содержание | NOK1: Обратно в содержание | NOM1: Обратно в содержание | NOO1: Обратно в содержание | NOQ1: Обратно в содержание | NOS1: Обратно в содержание | NOU1: Обратно в содержание | NOW1: Обратно в содержание | NOY1: Обратно в содержание | NPA1: Обратно в содержание | NPC1: Обратно в содержание | NPE1: Обратно в содержание | NPG1: Обратно в содержание | NPI1: Обратно в содержание | NPK1: Обратно в содержание | NPM1: Обратно в содержание | NPO1: Обратно в содержание | NPQ1: Обратно в содержание | NPS1: Обратно в содержание | NPU1: Обратно в содержание | NPW1: Обратно в содержание | NPY1: Обратно в содержание | NQA1: Обратно в содержание | NQC1: Обратно в содержание | NQE1: Обратно в содержание | NQG1: Обратно в содержание | NQI1: Обратно в содержание | NQK1: Обратно в содержание | NQM1: Обратно в содержание | NQO1: Обратно в содержание | NQQ1: Обратно в содержание | NQS1: Обратно в содержание | NQU1: Обратно в содержание | NQW1: Обратно в содержание | NQY1: Обратно в содержание | NRA1: Обратно в содержание | NRC1: Обратно в содержание | NRE1: Обратно в содержание | NRG1: Обратно в содержание | NRI1: Обратно в содержание | NRK1: Обратно в содержание | NRM1: Обратно в содержание | NRO1: Обратно в содержание | NRQ1: Обратно в содержание | NRS1: Обратно в содержание | NRU1: Обратно в содержание | NRW1: Обратно в содержание | NRY1: Обратно в содержание | NSA1: Обратно в содержание | NSC1: Обратно в содержание | NSE1: Обратно в содержание | NSG1: Обратно в содержание | NSI1: Обратно в содержание | NSK1: Обратно в содержание | NSM1: Обратно в содержание | NSO1: Обратно в содержание | NSQ1: Обратно в содержание | NSS1: Обратно в содержание | NSU1: Обратно в содержание | NSW1: Обратно в содержание | NSY1: Обратно в содержание | NTA1: Обратно в содержание | NTC1: Обратно в содержание | NTE1: Обратно в содержание | NTG1: Обратно в содержание | NTI1: Обратно в содержание | NTK1: Обратно в содержание | NTM1: Обратно в содержание | NTO1: Обратно в содержание | NTQ1: Обратно в содержание | NTS1: Обратно в содержание | NTU1: Обратно в содержание | NTW1: Обратно в содержание | NTY1: Обратно в содержание | NUA1: Обратно в содержание | NUC1: Обратно в содержание | NUE1: Обратно в содержание | NUG1: Обратно в содержание | NUI1: Обратно в содержание | NUK1: Обратно в содержание | NUM1: Обратно в содержание | NUO1: Обратно в содержание | NUQ1: Обратно в содержание | NUS1: Обратно в содержание | NUU1: Обратно в содержание | NUW1: Обратно в содержание | NUY1: Обратно в содержание | NVA1: Обратно в содержание | NVC1: Обратно в содержание | NVE1: Обратно в содержание | NVG1: Обратно в содержание | NVI1: Обратно в содержание | NVK1: Обратно в содержание | NVM1: Обратно в содержание | NVO1: Обратно в содержание | NVQ1: Обратно в содержание | NVS1: Обратно в содержание | NVU1: Обратно в содержание | NVW1: Обратно в содержание | NVY1: Обратно в содержание | NWA1: Обратно в содержание | NWC1: Обратно в содержание | NWE1: Обратно в содержание | NWG1: Обратно в содержание | NWI1: Обратно в содержание | NWK1: Обратно в содержание | NWM1: Обратно в содержание | NWO1: Обратно в содержание | NWQ1: Обратно в содержание | NWS1: Обратно в содержание | NWU1: Обратно в содержание | NWW1: Обратно в содержание | NWY1: Обратно в содержание | NXA1: Обратно в содержание | NXC1: Обратно в содержание | NXE1: Обратно в содержание | NXG1: Обратно в содержание | NXI1: Обратно в содержание | NXK1: Обратно в содержание | NXM1: Обратно в содержание | NXO1: Обратно в содержание | NXQ1: Обратно в содержание | NXS1: Обратно в содержание | NXU1: Обратно в содержание | NXW1: Обратно в содержание | NXY1: Обратно в содержание | NYA1: Обратно в содержание | NYC1: Обратно в содержание | NYE1: Обратно в содержание | NYG1: Обратно в содержание | NYI1: Обратно в содержание | NYK1: Обратно в содержание | NYM1: Обратно в содержание | NYO1: Обратно в содержание | NYQ1: Обратно в содержание | NYS1: Обратно в содержание | NYU1: Обратно в содержание | NYW1: Обратно в содержание | NYY1: Обратно в содержание | NZA1: Обратно в содержание | NZC1: Обратно в содержание | NZE1: Обратно в содержание | NZG1: Обратно в содержание | NZI1: Обратно в содержание | NZK1: Обратно в содержание | NZM1: Обратно в содержание | NZO1: Обратно в содержание | NZQ1: Обратно в содержание | NZS1: Обратно в содержание | NZU1: Обратно в содержание | NZW1: Обратно в содержание | NZY1: Обратно в содержание | OAA1: Обратно в содержание | OAC1: Обратно в содержание | OAE1: Обратно в содержание | OAG1: Обратно в содержание | OAI1: Обратно в содержание | OAK1: Обратно в содержание | OAM1: Обратно в содержание | OAO1: Обратно в содержание | OAQ1: Обратно в содержание | OAS1: Обратно в содержание | OAU1: Обратно в содержание | OAW1: Обратно в содержание | OAY1: Обратно в содержание | OBA1: Обратно в содержание | OBC1: Обратно в содержание | OBE1: Обратно в содержание | OBG1: Обратно в содержание | OBI1: Обратно в содержание | OBK1: Обратно в содержание | OBM1: Обратно в содержание | OBO1: Обратно в содержание | OBQ1: Обратно в содержание | OBS1: Обратно в содержание | OBU1: Обратно в содержание | OBW1: Обратно в содержание | OBY1: Обратно в содержание | OCA1: Обратно в содержание | OCC1: Обратно в содержание | OCE1: Обратно в содержание | OCG1: Обратно в содержание | OCI1: Обратно в содержание | OCK1: Обратно в содержание | OCM1: Обратно в содержание | OCO1: Обратно в содержание | OCQ1: Обратно в содержание | OCS1: Обратно в содержание | OCU1: Обратно в содержание | OCW1: Обратно в содержание | OCY1: Обратно в содержание | ODA1: Обратно в содержание | ODC1: Обратно в содержание | ODE1: Обратно в содержание | ODG1: Обратно в содержание | ODI1: Обратно в содержание | ODK1: Обратно в содержание | ODM1: Обратно в содержание | ODO1: Обратно в содержание | ODQ1: Обратно в содержание | ODS1: Обратно в содержание | ODU1: Обратно в содержание | ODW1: Обратно в содержание | ODY1: Обратно в содержание | OEA1: Обратно в содержание | OEC1: Обратно в содержание | OEE1: Обратно в содержание | OEG1: Обратно в содержание | OEI1: Обратно в содержание | OEK1: Обратно в содержание | OEM1: Обратно в содержание | OEO1: Обратно в содержание | OEQ1: Обратно в содержание | OES1: Обратно в содержание | OEU1: Обратно в содержание | OEW1: Обратно в содержание | OEY1: Обратно в содержание | OFA1: Обратно в содержание | OFC1: Обратно в содержание | OFE1: Обратно в содержание | OFG1: Обратно в содержание | OFI1: Обратно в содержание | OFK1: Обратно в содержание | OFM1: Обратно в содержание | OFO1: Обратно в содержание | OFQ1: Обратно в содержание | OFS1: Обратно в содержание | OFU1: Обратно в содержание | OFW1: Обратно в содержание | OFY1: Обратно в содержание | OGA1: Обратно в содержание | OGC1: Обратно в содержание | OGE1: Обратно в содержание | OGG1: Обратно в содержание | OGI1: Обратно в содержание | OGK1: Обратно в содержание | OGM1: Обратно в содержание | OGO1: Обратно в содержание | OGQ1: Обратно в содержание | OGS1: Обратно в содержание | OGU1: Обратно в содержание | OGW1: Обратно в содержание | OGY1: Обратно в содержание | OHA1: Обратно в содержание | OHC1: Обратно в содержание | OHE1: Обратно в содержание | OHG1: Обратно в содержание | OHI1: Обратно в содержание | OHK1: Обратно в содержание | OHM1: Обратно в содержание | OHO1: Обратно в содержание | OHQ1: Обратно в содержание | OHS1: Обратно в содержание | OHU1: Обратно в содержание | OHW1: Обратно в содержание | OHY1: Обратно в содержание | OIA1: Обратно в содержание | OIC1: Обратно в содержание | OIE1: Обратно в содержание | OIG1: Обратно в содержание | OII1: Обратно в содержание | OIK1: Обратно в содержание | OIM1: Обратно в содержание | OIO1: Обратно в содержание | OIQ1: Обратно в содержание | OIS1: Обратно в содержание | OIU1: Обратно в содержание | OIW1: Обратно в содержание | OIY1: Обратно в содержание | OJA1: Обратно в содержание | OJC1: Обратно в содержание | OJE1: Обратно в содержание | OJG1: Обратно в содержание | OJI1: Обратно в содержание | OJK1: Обратно в содержание | OJM1: Обратно в содержание | OJO1: Обратно в содержание | OJQ1: Обратно в содержание | OJS1: Обратно в содержание | OJU1: Обратно в содержание | OJW1: Обратно в содержание | OJY1: Обратно в содержание | OKA1: Обратно в содержание | OKC1: Обратно в содержание | OKE1: Обратно в содержание | OKG1: Обратно в содержание | OKI1: Обратно в содержание | OKK1: Обратно в содержание | OKM1: Обратно в содержание | OKO1: Обратно в содержание | OKQ1: Обратно в содержание | OKS1: Обратно в содержание | OKU1: Обратно в содержание | OKW1: Обратно в содержание | OKY1: Обратно в содержание | OLA1: Обратно в содержание | OLC1: Обратно в содержание | OLE1: Обратно в содержание | OLG1: Обратно в содержание | OLI1: Обратно в содержание | OLK1: Обратно в содержание | OLM1: Обратно в содержание | OLO1: Обратно в содержание | OLQ1: Обратно в содержание | OLS1: Обратно в содержание | OLU1: Обратно в содержание | OLW1: Обратно в содержание | OLY1: Обратно в содержание | OMA1: Обратно в содержание | OMC1: Обратно в содержание | OME1: Обратно в содержание | OMG1: Обратно в содержание | OMI1: Обратно в содержание | OMK1: Обратно в содержание | OMM1: Обратно в содержание | OMO1: Обратно в содержание | OMQ1: Обратно в содержание | OMS1: Обратно в содержание | OMU1: Обратно в содержание | OMW1: Обратно в содержание | OMY1: Обратно в содержание | ONA1: Обратно в содержание | ONC1: Обратно в содержание | ONE1: Обратно в содержание | ONG1: Обратно в содержание | ONI1: Обратно в содержание | ONK1: Обратно в содержание | ONM1: Обратно в содержание | ONO1: Обратно в содержание | ONQ1: Обратно в содержание | ONS1: Обратно в содержание | ONU1: Обратно в содержание | ONW1: Обратно в содержание | ONY1: Обратно в содержание | OOA1: Обратно в содержание | OOC1: Обратно в содержание | OOE1: Обратно в содержание | OOG1: Обратно в содержание | OOI1: Обратно в содержание | OOK1: Обратно в содержание | OOM1: Обратно в содержание | OOO1: Обратно в содержание | OOQ1: Обратно в содержание | OOS1: Обратно в содержание | OOU1: Обратно в содержание | OOW1: Обратно в содержание | OOY1: Обратно в содержание | OPA1: Обратно в содержание | OPC1: Обратно в содержание | OPE1: Обратно в содержание | OPG1: Обратно в содержание | OPI1: Обратно в содержание | OPK1: Обратно в содержание | OPM1: Обратно в содержание | OPO1: Обратно в содержание | OPQ1: Обратно в содержание | OPS1: Обратно в содержание | OPU1: Обратно в содержание | OPW1: Обратно в содержание | OPY1: Обратно в содержание | OQA1: Обратно в содержание | OQC1: Обратно в содержание | OQE1: Обратно в содержание | OQG1: Обратно в содержание | OQI1: Обратно в содержание | OQK1: Обратно в содержание | OQM1: Обратно в содержание | OQO1: Обратно в содержание | OQQ1: Обратно в содержание | OQS1: Обратно в содержание | OQU1: Обратно в содержание | OQW1: Обратно в содержание | OQY1: Обратно в содержание | ORA1: Обратно в содержание | ORC1: Обратно в содержание | ORE1: Обратно в содержание | ORG1: Обратно в содержание | ORI1: Обратно в содержание | ORK1: Обратно в содержание | ORM1: Обратно в содержание | ORO1: Обратно в содержание | ORQ1: Обратно в содержание | ORS1: Обратно в содержание | ORU1: Обратно в содержание | ORW1: Обратно в содержание | ORY1: Обратно в содержание | OSA1: Обратно в содержание | OSC1: Обратно в содержание | OSE1: Обратно в содержание | OSG1: Обратно в содержание | OSI1: Обратно в содержание | OSK1: Обратно в содержание | OSM1: Обратно в содержание | OSO1: Обратно в содержание | OSQ1: Обратно в содержание | OSS1: Обратно в содержание | OSU1: Обратно в содержание | OSW1: Обратно в содержание | OSY1: Обратно в содержание | OTA1: Обратно в содержание | OTC1: Обратно в содержание | OTE1: Обратно в содержание | OTG1: Обратно в содержание | OTI1: Обратно в содержание | OTK1: Обратно в содержание | OTM1: Обратно в содержание | OTO1: Обратно в содержание | OTQ1: Обратно в содержание | OTS1: Обратно в содержание | OTU1: Обратно в содержание | OTW1: Обратно в содержание | OTY1: Обратно в содержание | OUA1: Обратно в содержание | OUC1: Обратно в содержание | OUE1: Обратно в содержание | OUG1: Обратно в содержание | OUI1: Обратно в содержание | OUK1: Обратно в содержание | OUM1: Обратно в содержание | OUO1: Обратно в содержание | OUQ1: Обратно в содержание | OUS1: Обратно в содержание | OUU1: Обратно в содержание | OUW1: Обратно в содержание | OUY1: Обратно в содержание | OVA1: Обратно в содержание | OVC1: Обратно в содержание | OVE1: Обратно в содержание | OVG1: Обратно в содержание | OVI1: Обратно в содержание | OVK1: Обратно в содержание | OVM1: Обратно в содержание | OVO1: Обратно в содержание | OVQ1: Обратно в содержание | OVS1: Обратно в содержание | OVU1: Обратно в содержание | OVW1: Обратно в содержание | OVY1: Обратно в содержание | OWA1: Обратно в содержание | OWC1: Обратно в содержание | OWE1: Обратно в содержание | OWG1: Обратно в содержание | OWI1: Обратно в содержание | OWK1: Обратно в содержание | OWM1: Обратно в содержание | OWO1: Обратно в содержание | OWQ1: Обратно в содержание | OWS1: Обратно в содержание | OWU1: Обратно в содержание | OWW1: Обратно в содержание | OWY1: Обратно в содержание | OXA1: Обратно в содержание | OXC1: Обратно в содержание | OXE1: Обратно в содержание | OXG1: Обратно в содержание | OXI1: Обратно в содержание | OXK1: Обратно в содержание | OXM1: Обратно в содержание | OXO1: Обратно в содержание | OXQ1: Обратно в содержание | OXS1: Обратно в содержание | OXU1: Обратно в содержание | OXW1: Обратно в содержание | OXY1: Обратно в содержание | OYA1: Обратно в содержание | OYC1: Обратно в содержание | OYE1: Обратно в содержание | OYG1: Обратно в содержание | OYI1: Обратно в содержание | OYK1: Обратно в содержание | OYM1: Обратно в содержание | OYO1: Обратно в содержание | OYQ1: Обратно в содержание | OYS1: Обратно в содержание | OYU1: Обратно в содержание | OYW1: Обратно в содержание | OYY1: Обратно в содержание | OZA1: Обратно в содержание | OZC1: Обратно в содержание | OZE1: Обратно в содержание | OZG1: Обратно в содержание | OZI1: Обратно в содержание | OZK1: Обратно в содержание | OZM1: Обратно в содержание | OZO1: Обратно в содержание | OZQ1: Обратно в содержание | OZS1: Обратно в содержание | OZU1: Обратно в содержание | OZW1: Обратно в содержание | OZY1: Обратно в содержание | PAA1: Обратно в содержание | PAC1: Обратно в содержание | PAE1: Обратно в содержание | PAG1: Обратно в содержание | PAI1: Обратно в содержание | PAK1: Обратно в содержание | PAM1: Обратно в содержание | PAO1: Обратно в содержание | PAQ1: Обратно в содержание | PAS1: Обратно в содержание | PAU1: Обратно в содержание | PAW1: Обратно в содержание | PAY1: Обратно в содержание | PBA1: Обратно в содержание | PBC1: Обратно в содержание | PBE1: Обратно в содержание | PBG1: Обратно в содержание | PBI1: Обратно в содержание | PBK1: Обратно в содержание | PBM1: Обратно в содержание | PBO1: Обратно в содержание | PBQ1: Обратно в содержание | PBS1: Обратно в содержание | PBU1: Обратно в содержание | PBW1: Обратно в содержание | PBY1: Обратно в содержание | PCA1: Обратно в содержание | PCC1: Обратно в содержание | PCE1: Обратно в содержание | PCG1: Обратно в содержание | PCI1: Обратно в содержание | PCK1: Обратно в содержание | PCM1: Обратно в содержание | PCO1: Обратно в содержание | PCQ1: Обратно в содержание | PCS1: Обратно в содержание | PCU1: Обратно в содержание | PCW1: Обратно в содержание | PCY1: Обратно в содержание | PDA1: Обратно в содержание | PDC1: Обратно в содержание | PDE1: Обратно в содержание | PDG1: Обратно в содержание | PDI1: Обратно в содержание | PDK1: Обратно в содержание | PDM1: Обратно в содержание | PDO1: Обратно в содержание | PDQ1: Обратно в содержание | PDS1: Обратно в содержание | PDU1: Обратно в содержание | PDW1: Обратно в содержание | PDY1: Обратно в содержание | PEA1: Обратно в содержание | PEC1: Обратно в содержание | PEE1: Обратно в содержание | PEG1: Обратно в содержание | PEI1: Обратно в содержание | PEK1: Обратно в содержание | PEM1: Обратно в содержание | PEO1: Обратно в содержание | PEQ1: Обратно в содержание | PES1: Обратно в содержание | PEU1: Обратно в содержание | PEW1: Обратно в содержание | PEY1: Обратно в содержание | PFA1: Обратно в содержание | PFC1: Обратно в содержание | PFE1: Обратно в содержание | PFG1: Обратно в содержание | PFI1: Обратно в содержание | PFK1: Обратно в содержание | PFM1: Обратно в содержание | PFO1: Обратно в содержание | PFQ1: Обратно в содержание | PFS1: Обратно в содержание | PFU1: Обратно в содержание | PFW1: Обратно в содержание | PFY1: Обратно в содержание | PGA1: Обратно в содержание | PGC1: Обратно в содержание | PGE1: Обратно в содержание | PGG1: Обратно в содержание | PGI1: Обратно в содержание | PGK1: Обратно в содержание | PGM1: Обратно в содержание | PGO1: Обратно в содержание | PGQ1: Обратно в содержание | PGS1: Обратно в содержание | PGU1: Обратно в содержание | PGW1: Обратно в содержание | PGY1: Обратно в содержание | PHA1: Обратно в содержание | PHC1: Обратно в содержание | PHE1: Обратно в содержание | PHG1: Обратно в содержание | PHI1: Обратно в содержание | PHK1: Обратно в содержание | PHM1: Обратно в содержание | PHO1: Обратно в содержание | PHQ1: Обратно в содержание | PHS1: Обратно в содержание | PHU1: Обратно в содержание | PHW1: Обратно в содержание | PHY1: Обратно в содержание | PIA1: Обратно в содержание | PIC1: Обратно в содержание | PIE1: Обратно в содержание | PIG1: Обратно в содержание | PII1: Обратно в содержание | PIK1: Обратно в содержание | PIM1: Обратно в содержание | PIO1: Обратно в содержание | PIQ1: Обратно в содержание | PIS1: Обратно в содержание | PIU1: Обратно в содержание | PIW1: Обратно в содержание | PIY1: Обратно в содержание | PJA1: Обратно в содержание | PJC1: Обратно в содержание | PJE1: Обратно в содержание | PJG1: Обратно в содержание | PJI1: Обратно в содержание | PJK1: Обратно в содержание | PJM1: Обратно в содержание | PJO1: Обратно в содержание | PJQ1: Обратно в содержание | PJS1: Обратно в содержание | PJU1: Обратно в содержание | PJW1: Обратно в содержание | PJY1: Обратно в содержание | PKA1: Обратно в содержание | PKC1: Обратно в содержание | PKE1: Обратно в содержание | PKG1: Обратно в содержание | PKI1: Обратно в содержание | PKK1: Обратно в содержание | PKM1: Обратно в содержание | PKO1: Обратно в содержание | PKQ1: Обратно в содержание | PKS1: Обратно в содержание | PKU1: Обратно в содержание | PKW1: Обратно в содержание | PKY1: Обратно в содержание | PLA1: Обратно в содержание | PLC1: Обратно в содержание | PLE1: Обратно в содержание | PLG1: Обратно в содержание | PLI1: Обратно в содержание | PLK1: Обратно в содержание | PLM1: Обратно в содержание | PLO1: Обратно в содержание | PLQ1: Обратно в содержание | PLS1: Обратно в содержание | PLU1: Обратно в содержание | PLW1: Обратно в содержание | PLY1: Обратно в содержание | PMA1: Обратно в содержание | PMC1: Обратно в содержание | PME1: Обратно в содержание | PMG1: Обратно в содержание | PMI1: Обратно в содержание | PMK1: Обратно в содержание | PMM1: Обратно в содержание | PMO1: Обратно в содержание | PMQ1: Обратно в содержание | PMS1: Обратно в содержание | PMU1: Обратно в содержание | PMW1: Обратно в содержание | PMY1: Обратно в содержание | PNA1: Обратно в содержание | PNC1: Обратно в содержание | PNE1: Обратно в содержание | PNG1: Обратно в содержание | PNI1: Обратно в содержание | PNK1: Обратно в содержание | PNM1: Обратно в содержание | PNO1: Обратно в содержание | PNQ1: Обратно в содержание | PNS1: Обратно в содержание | PNU1: Обратно в содержание | PNW1: Обратно в содержание | PNY1: Обратно в содержание | POA1: Обратно в содержание | POC1: Обратно в содержание | POE1: Обратно в содержание | POG1: Обратно в содержание | POI1: Обратно в содержание | POK1: Обратно в содержание | POM1: Обратно в содержание | POO1: Обратно в содержание | POQ1: Обратно в содержание | POS1: Обратно в содержание | POU1: Обратно в содержание | POW1: Обратно в содержание | POY1: Обратно в содержание | PPA1: Обратно в содержание | PPC1: Обратно в содержание | PPE1: Обратно в содержание | PPG1: Обратно в содержание | PPI1: Обратно в содержание | PPK1: Обратно в содержание | PPM1: Обратно в содержание | PPO1: Обратно в содержание | PPQ1: Обратно в содержание | PPS1: Обратно в содержание | PPU1: Обратно в содержание | PPW1: Обратно в содержание | PPY1: Обратно в содержание | PQA1: Обратно в содержание | PQC1: Обратно в содержание | PQE1: Обратно в содержание | PQG1: Обратно в содержание | PQI1: Обратно в содержание | PQK1: Обратно в содержание | PQM1: Обратно в содержание | PQO1: Обратно в содержание | PQQ1: Обратно в содержание | PQS1: Обратно в содержание | PQU1: Обратно в содержание | PQW1: Обратно в содержание | PQY1: Обратно в содержание | PRA1: Обратно в содержание | PRC1: Обратно в содержание | PRE1: Обратно в содержание | PRG1: Обратно в содержание | PRI1: Обратно в содержание | PRK1: Обратно в содержание | PRM1: Обратно в содержание | PRO1: Обратно в содержание | PRQ1: Обратно в содержание | PRS1: Обратно в содержание | PRU1: Обратно в содержание | PRW1: Обратно в содержание | PRY1: Обратно в содержание | PSA1: Обратно в содержание | PSC1: Обратно в содержание | PSE1: Обратно в содержание | PSG1: Обратно в содержание | PSI1: Обратно в содержание | PSK1: Обратно в содержание | PSM1: Обратно в содержание | PSO1: Обратно в содержание | PSQ1: Обратно в содержание | PSS1: Обратно в содержание | PSU1: Обратно в содержание | PSW1: Обратно в содержание | PSY1: Обратно в содержание | PTA1: Обратно в содержание | PTC1: Обратно в содержание | PTE1: Обратно в содержание | PTG1: Обратно в содержание | PTI1: Обратно в содержание | PTK1: Обратно в содержание | PTM1: Обратно в содержание | PTO1: Обратно в содержание | PTQ1: Обратно в содержание | PTS1: Обратно в содержание | PTU1: Обратно в содержание | PTW1: Обратно в содержание | PTY1: Обратно в содержание | PUA1: Обратно в содержание | PUC1: Обратно в содержание | PUE1: Обратно в содержание | PUG1: Обратно в содержание | PUI1: Обратно в содержание | PUK1: Обратно в содержание | PUM1: Обратно в содержание | PUO1: Обратно в содержание | PUQ1: Обратно в содержание | PUS1: Обратно в содержание | PUU1: Обратно в содержание | PUW1: Обратно в содержание | PUY1: Обратно в содержание | PVA1: Обратно в содержание | PVC1: Обратно в содержание | PVE1: Обратно в содержание | PVG1: Обратно в содержание | PVI1: Обратно в содержание | PVK1: Обратно в содержание | PVM1: Обратно в содержание | PVO1: Обратно в содержание | PVQ1: Обратно в содержание | PVS1: Обратно в содержание | PVU1: Обратно в содержание | PVW1: Обратно в содержание | PVY1: Обратно в содержание | PWA1: Обратно в содержание | PWC1: Обратно в содержание | PWE1: Обратно в содержание | PWG1: Обратно в содержание | PWI1: Обратно в содержание | PWK1: Обратно в содержание | PWM1: Обратно в содержание | PWO1: Обратно в содержание | PWQ1: Обратно в содержание | PWS1: Обратно в содержание | PWU1: Обратно в содержание | PWW1: Обратно в содержание | PWY1: Обратно в содержание | PXA1: Обратно в содержание | PXC1: Обратно в содержание | PXE1: Обратно в содержание | PXG1: Обратно в содержание | PXI1: Обратно в содержание | PXK1: Обратно в содержание | PXM1: Обратно в содержание | PXO1: Обратно в содержание | PXQ1: Обратно в содержание | PXS1: Обратно в содержание | PXU1: Обратно в содержание | PXW1: Обратно в содержание | PXY1: Обратно в содержание | PYA1: Обратно в содержание | PYC1: Обратно в содержание | PYE1: Обратно в содержание | PYG1: Обратно в содержание | PYI1: Обратно в содержание | PYK1: Обратно в содержание | PYM1: Обратно в содержание | PYO1: Обратно в содержание | PYQ1: Обратно в содержание | PYS1: Обратно в содержание | PYU1: Обратно в содержание | PYW1: Обратно в содержание | PYY1: Обратно в содержание | PZA1: Обратно в содержание | PZC1: Обратно в содержание | PZE1: Обратно в содержание | PZG1: Обратно в содержание | PZI1: Обратно в содержание | PZK1: Обратно в содержание | PZM1: Обратно в содержание | PZO1: Обратно в содержание | PZQ1: Обратно в содержание | PZS1: Обратно в содержание | PZU1: Обратно в содержание | PZW1: Обратно в содержание | PZY1: Обратно в содержание | QAA1: Обратно в содержание | QAC1: Обратно в содержание | QAE1: Обратно в содержание | QAG1: Обратно в содержание | QAI1: Обратно в содержание | QAK1: Обратно в содержание | QAM1: Обратно в содержание | QAO1: Обратно в содержание | QAQ1: Обратно в содержание | QAS1: Обратно в содержание | QAU1: Обратно в содержание | QAW1: Обратно в содержание | QAY1: Обратно в содержание | QBA1: Обратно в содержание | QBC1: Обратно в содержание | QBE1: Обратно в содержание | QBG1: Обратно в содержание | QBI1: Обратно в содержание | QBK1: Обратно в содержание | QBM1: Обратно в содержание | QBO1: Обратно в содержание | QBQ1: Обратно в содержание | QBS1: Обратно в содержание | QBU1: Обратно в содержание | QBW1: Обратно в содержание | QBY1: Обратно в содержание | QCA1: Обратно в содержание | QCC1: Обратно в содержание | QCE1: Обратно в содержание | QCG1: Обратно в содержание | QCI1: Обратно в содержание | QCK1: Обратно в содержание | QCM1: Обратно в содержание | QCO1: Обратно в содержание | QCQ1: Обратно в содержание | QCS1: Обратно в содержание | QCU1: Обратно в содержание | QCW1: Обратно в содержание | QCY1: Обратно в содержание | QDA1: Обратно в содержание | QDC1: Обратно в содержание | QDE1: Обратно в содержание | QDG1: Обратно в содержание | QDI1: Обратно в содержание | QDK1: Обратно в содержание | QDM1: Обратно в содержание | QDO1: Обратно в содержание | QDQ1: Обратно в содержание | QDS1: Обратно в содержание | QDU1: Обратно в содержание | QDW1: Обратно в содержание | QDY1: Обратно в содержание | QEA1: Обратно в содержание | QEC1: Обратно в содержание | QEE1: Обратно в содержание | QEG1: Обратно в содержание | QEI1: Обратно в содержание | QEK1: Обратно в содержание | QEM1: Обратно в содержание | QEO1: Обратно в содержание | QEQ1: Обратно в содержание | QES1: Обратно в содержание | QEU1: Обратно в содержание | QEW1: Обратно в содержание | QEY1: Обратно в содержание | QFA1: Обратно в содержание | QFC1: Обратно в содержание | QFE1: Обратно в содержание | QFG1: Обратно в содержание | QFI1: Обратно в содержание | QFK1: Обратно в содержание | QFM1: Обратно в содержание | QFO1: Обратно в содержание | QFQ1: Обратно в содержание | QFS1: Обратно в содержание | QFU1: Обратно в содержание | QFW1: Обратно в содержание | QFY1: Обратно в содержание | QGA1: Обратно в содержание | QGC1: Обратно в содержание | QGE1: Обратно в содержание | QGG1: Обратно в содержание | QGI1: Обратно в содержание | QGK1: Обратно в содержание | QGM1: Обратно в содержание | QGO1: Обратно в содержание | QGQ1: Обратно в содержание | QGS1: Обратно в содержание | QGU1: Обратно в содержание | QGW1: Обратно в содержание | QGY1: Обратно в содержание | QHA1: Обратно в содержание | QHC1: Обратно в содержание | QHE1: Обратно в содержание | QHG1: Обратно в содержание | QHI1: Обратно в содержание | QHK1: Обратно в содержание | QHM1: Обратно в содержание | QHO1: Обратно в содержание | QHQ1: Обратно в содержание | QHS1: Обратно в содержание | QHU1: Обратно в содержание | QHW1: Обратно в содержание | QHY1: Обратно в содержание | QIA1: Обратно в содержание | QIC1: Обратно в содержание | QIE1: Обратно в содержание | QIG1: Обратно в содержание | QII1: Обратно в содержание | QIK1: Обратно в содержание | QIM1: Обратно в содержание | QIO1: Обратно в содержание | QIQ1: Обратно в содержание | QIS1: Обратно в содержание | QIU1: Обратно в содержание | QIW1: Обратно в содержание | QIY1: Обратно в содержание | QJA1: Обратно в содержание | QJC1: Обратно в содержание | QJE1: Обратно в содержание | QJG1: Обратно в содержание | QJI1: Обратно в содержание | QJK1: Обратно в содержание | QJM1: Обратно в содержание | QJO1: Обратно в содержание | QJQ1: Обратно в содержание | QJS1: Обратно в содержание | QJU1: Обратно в содержание | QJW1: Обратно в содержание | QJY1: Обратно в содержание | QKA1: Обратно в содержание | QKC1: Обратно в содержание | QKE1: Обратно в содержание | QKG1: Обратно в содержание | QKI1: Обратно в содержание | QKK1: Обратно в содержание | QKM1: Обратно в содержание | QKO1: Обратно в содержание | QKQ1: Обратно в содержание | QKS1: Обратно в содержание | QKU1: Обратно в содержание | QKW1: Обратно в содержание | QKY1: Обратно в содержание | QLA1: Обратно в содержание | QLC1: Обратно в содержание | QLE1: Обратно в содержание | QLG1: Обратно в содержание | QLI1: Обратно в содержание | QLK1: Обратно в содержание | QLM1: Обратно в содержание | QLO1: Обратно в содержание | QLQ1: Обратно в содержание | QLS1: Обратно в содержание | QLU1: Обратно в содержание | QLW1: Обратно в содержание | QLY1: Обратно в содержание | QMA1: Обратно в содержание | QMC1: Обратно в содержание | QME1: Обратно в содержание | QMG1: Обратно в содержание | QMI1: Обратно в содержание | QMK1: Обратно в содержание | QMM1: Обратно в содержание | QMO1: Обратно в содержание | QMQ1: Обратно в содержание | QMS1: Обратно в содержание | QMU1: Обратно в содержание | QMW1: Обратно в содержание | QMY1: Обратно в содержание | QNA1: Обратно в содержание | QNC1: Обратно в содержание | QNE1: Обратно в содержание | QNG1: Обратно в содержание | QNI1: Обратно в содержание | QNK1: Обратно в содержание | QNM1: Обратно в содержание | QNO1: Обратно в содержание | QNQ1: Обратно в содержание | QNS1: Обратно в содержание | QNU1: Обратно в содержание | QNW1: Обратно в содержание | QNY1: Обратно в содержание | QOA1: Обратно в содержание | QOC1: Обратно в содержание | QOE1: Обратно в содержание | QOG1: Обратно в содержание | QOI1: Обратно в содержание | QOK1: Обратно в содержание | QOM1: Обратно в содержание | QOO1: Обратно в содержание | QOQ1: Обратно в содержание | QOS1: Обратно в содержание | QOU1: Обратно в содержание | QOW1: Обратно в содержание | QOY1: Обратно в содержание | QPA1: Обратно в содержание | QPC1: Обратно в содержание | QPE1: Обратно в содержание | QPG1: Обратно в содержание | QPI1: Обратно в содержание | QPK1: Обратно в содержание | QPM1: Обратно в содержание | QPO1: Обратно в содержание | QPQ1: Обратно в содержание | QPS1: Обратно в содержание | QPU1: Обратно в содержание | QPW1: Обратно в содержание | QPY1: Обратно в содержание | QQA1: Обратно в содержание | QQC1: Обратно в содержание | QQE1: Обратно в содержание | QQG1: Обратно в содержание | QQI1: Обратно в содержание | QQK1: Обратно в содержание | QQM1: Обратно в содержание | QQO1: Обратно в содержание | QQQ1: Обратно в содержание | QQS1: Обратно в содержание | QQU1: Обратно в содержание | QQW1: Обратно в содержание | QQY1: Обратно в содержание | QRA1: Обратно в содержание | QRC1: Обратно в содержание | QRE1: Обратно в содержание | QRG1: Обратно в содержание | QRI1: Обратно в содержание | QRK1: Обратно в содержание | QRM1: Обратно в содержание | QRO1: Обратно в содержание | QRQ1: Обратно в содержание | QRS1: Обратно в содержание | QRU1: Обратно в содержание | QRW1: Обратно в содержание | QRY1: Обратно в содержание | QSA1: Обратно в содержание | QSC1: Обратно в содержание | QSE1: Обратно в содержание | QSG1: Обратно в содержание | QSI1: Обратно в содержание | QSK1: Обратно в содержание | QSM1: Обратно в содержание | QSO1: Обратно в содержание | QSQ1: Обратно в содержание | QSS1: Обратно в содержание | QSU1: Обратно в содержание | QSW1: Обратно в содержание | QSY1: Обратно в содержание | QTA1: Обратно в содержание | QTC1: Обратно в содержание | QTE1: Обратно в содержание | QTG1: Обратно в содержание | QTI1: Обратно в содержание | QTK1: Обратно в содержание | QTM1: Обратно в содержание | QTO1: Обратно в содержание | QTQ1: Обратно в содержание | QTS1: Обратно в содержание | QTU1: Обратно в содержание | QTW1: Обратно в содержание | QTY1: Обратно в содержание | QUA1: Обратно в содержание | QUC1: Обратно в содержание | QUE1: Обратно в содержание | QUG1: Обратно в содержание | QUI1: Обратно в содержание | QUK1: Обратно в содержание | QUM1: Обратно в содержание | QUO1: Обратно в содержание | QUQ1: Обратно в содержание | QUS1: Обратно в содержание | QUU1: Обратно в содержание | QUW1: Обратно в содержание | QUY1: Обратно в содержание | QVA1: Обратно в содержание | QVC1: Обратно в содержание | QVE1: Обратно в содержание | QVG1: Обратно в содержание | QVI1: Обратно в содержание | QVK1: Обратно в содержание | QVM1: Обратно в содержание | QVO1: Обратно в содержание | QVQ1: Обратно в содержание | QVS1: Обратно в содержание | QVU1: Обратно в содержание | QVW1: Обратно в содержание | QVY1: Обратно в содержание | QWA1: Обратно в содержание | QWC1: Обратно в содержание | QWE1: Обратно в содержание | QWG1: Обратно в содержание | QWI1: Обратно в содержание | QWK1: Обратно в содержание | QWM1: Обратно в содержание | QWO1: Обратно в содержание | QWQ1: Обратно в содержание | QWS1: Обратно в содержание | QWU1: Обратно в содержание | QWW1: Обратно в содержание | QWY1: Обратно в содержание | QXA1: Обратно в содержание | QXC1: Обратно в содержание | QXE1: Обратно в содержание | QXG1: Обратно в содержание | QXI1: Обратно в содержание | QXK1: Обратно в содержание | QXM1: Обратно в содержание | QXO1: Обратно в содержание | QXQ1: Обратно в содержание | QXS1: Обратно в содержание | QXU1: Обратно в содержание | QXW1: Обратно в содержание | QXY1: Обратно в содержание | QYA1: Обратно в содержание | QYC1: Обратно в содержание | QYE1: Обратно в содержание | QYG1: Обратно в содержание | QYI1: Обратно в содержание | QYK1: Обратно в содержание | QYM1: Обратно в содержание | QYO1: Обратно в содержание | QYQ1: Обратно в содержание | QYS1: Обратно в содержание | QYU1: Обратно в содержание | QYW1: Обратно в содержание | QYY1: Обратно в содержание | QZA1: Обратно в содержание | QZC1: Обратно в содержание | QZE1: Обратно в содержание | QZG1: Обратно в содержание | QZI1: Обратно в содержание | QZK1: Обратно в содержание | QZM1: Обратно в содержание | QZO1: Обратно в содержание | QZQ1: Обратно в содержание | QZS1: Обратно в содержание | QZU1: Обратно в содержание | QZW1: Обратно в содержание | QZY1: Обратно в содержание | RAA1: Обратно в содержание | RAC1: Обратно в содержание | RAE1: Обратно в содержание | RAG1: Обратно в содержание | RAI1: Обратно в содержание | RAK1: Обратно в содержание | RAM1: Обратно в содержание | RAO1: Обратно в содержание | RAQ1: Обратно в содержание | RAS1: Обратно в содержание | RAU1: Обратно в содержание | RAW1: Обратно в содержание | RAY1: Обратно в содержание | RBA1: Обратно в содержание | RBC1: Обратно в содержание | RBE1: Обратно в содержание | RBG1: Обратно в содержание | RBI1: Обратно в содержание | RBK1: Обратно в содержание | RBM1: Обратно в содержание | RBO1: Обратно в содержание | RBQ1: Обратно в содержание | RBS1: Обратно в содержание | RBU1: Обратно в содержание | RBW1: Обратно в содержание | RBY1: Обратно в содержание | RCA1: Обратно в содержание | RCC1: Обратно в содержание | RCE1: Обратно в содержание | RCG1: Обратно в содержание | RCI1: Обратно в содержание | RCK1: Обратно в содержание | RCM1: Обратно в содержание | RCO1: Обратно в содержание | RCQ1: Обратно в содержание | RCS1: Обратно в содержание | RCU1: Обратно в содержание | RCW1: Обратно в содержание | RCY1: Обратно в содержание | RDA1: Обратно в содержание | RDC1: Обратно в содержание | RDE1: Обратно в содержание | RDG1: Обратно в содержание | RDI1: Обратно в содержание | RDK1: Обратно в содержание | RDM1: Обратно в содержание | RDO1: Обратно в содержание | RDQ1: Обратно в содержание | RDS1: Обратно в содержание | RDU1: Обратно в содержание | RDW1: Обратно в содержание | RDY1: Обратно в содержание | REA1: Обратно в содержание | REC1: Обратно в содержание | REE1: Обратно в содержание | REG1: Обратно в содержание | REI1: Обратно в содержание | REK1: Обратно в содержание | REM1: Обратно в содержание | REO1: Обратно в содержание | REQ1: Обратно в содержание | RES1: Обратно в содержание | REU1: Обратно в содержание | REW1: Обратно в содержание | REY1: Обратно в содержание | RFA1: Обратно в содержание | RFC1: Обратно в содержание | RFE1: Обратно в содержание | RFG1: Обратно в содержание | RFI1: Обратно в содержание | RFK1: Обратно в содержание | RFM1: Обратно в содержание | RFO1: Обратно в содержание | RFQ1: Обратно в содержание | RFS1: Обратно в содержание | RFU1: Обратно в содержание | RFW1: Обратно в содержание | RFY1: Обратно в содержание | RGA1: Обратно в содержание | RGC1: Обратно в содержание | RGE1: Обратно в содержание | RGG1: Обратно в содержание | RGI1: Обратно в содержание | RGK1: Обратно в содержание | RGM1: Обратно в содержание | RGO1: Обратно в содержание | RGQ1: Обратно в содержание | RGS1: Обратно в содержание | RGU1: Обратно в содержание | RGW1: Обратно в содержание | RGY1: Обратно в содержание | RHA1: Обратно в содержание | RHC1: Обратно в содержание | RHE1: Обратно в содержание | RHG1: Обратно в содержание | RHI1: Обратно в содержание | RHK1: Обратно в содержание | RHM1: Обратно в содержание | RHO1: Обратно в содержание | RHQ1: Обратно в содержание | RHS1: Обратно в содержание | RHU1: Обратно в содержание | RHW1: Обратно в содержание | RHY1: Обратно в содержание | RIA1: Обратно в содержание | RIC1: Обратно в содержание | RIE1: Обратно в содержание | RIG1: Обратно в содержание | RII1: Обратно в содержание | RIK1: Обратно в содержание | RIM1: Обратно в содержание | RIO1: Обратно в содержание | RIQ1: Обратно в содержание | RIS1: Обратно в содержание | RIU1: Обратно в содержание | RIW1: Обратно в содержание | RIY1: Обратно в содержание | RJA1: Обратно в содержание | RJC1: Обратно в содержание | RJE1: Обратно в содержание | RJG1: Обратно в содержание | RJI1: Обратно в содержание | RJK1: Обратно в содержание | RJM1: Обратно в содержание | RJO1: Обратно в содержание | RJQ1: Обратно в содержание | RJS1: Обратно в содержание | RJU1: Обратно в содержание | RJW1: Обратно в содержание | RJY1: Обратно в содержание | RKA1: Обратно в содержание | RKC1: Обратно в содержание | RKE1: Обратно в содержание | RKG1: Обратно в содержание | RKI1: Обратно в содержание | RKK1: Обратно в содержание | RKM1: Обратно в содержание | RKO1: Обратно в содержание | RKQ1: Обратно в содержание | RKS1: Обратно в содержание | RKU1: Обратно в содержание | RKW1: Обратно в содержание | RKY1: Обратно в содержание | RLA1: Обратно в содержание | RLC1: Обратно в содержание | RLE1: Обратно в содержание | RLG1: Обратно в содержание | RLI1: Обратно в содержание | RLK1: Обратно в содержание | RLM1: Обратно в содержание | RLO1: Обратно в содержание | RLQ1: Обратно в содержание | RLS1: Обратно в содержание | RLU1: Обратно в содержание | RLW1: Обратно в содержание | RLY1: Обратно в содержание | RMA1: Обратно в содержание | RMC1: Обратно в содержание | RME1: Обратно в содержание | RMG1: Обратно в содержание | RMI1: Обратно в содержание | RMK1: Обратно в содержание | RMM1: Обратно в содержание | RMO1: Обратно в содержание | RMQ1: Обратно в содержание | RMS1: Обратно в содержание | RMU1: Обратно в содержание | RMW1: Обратно в содержание | RMY1: Обратно в содержание | RNA1: Обратно в содержание | RNC1: Обратно в содержание | RNE1: Обратно в содержание | RNG1: Обратно в содержание | RNI1: Обратно в содержание | RNK1: Обратно в содержание | RNM1: Обратно в содержание | RNO1: Обратно в содержание | RNQ1: Обратно в содержание | RNS1: Обратно в содержание | RNU1: Обратно в содержание | RNW1: Обратно в содержание | RNY1: Обратно в содержание | ROA1: Обратно в содержание | ROC1: Обратно в содержание | ROE1: Обратно в содержание | ROG1: Обратно в содержание | ROI1: Обратно в содержание | ROK1: Обратно в содержание | ROM1: Обратно в содержание | ROO1: Обратно в содержание | ROQ1: Обратно в содержание | ROS1: Обратно в содержание | ROU1: Обратно в содержание | ROW1: Обратно в содержание | ROY1: Обратно в содержание | RPA1: Обратно в содержание | RPC1: Обратно в содержание | RPE1: Обратно в содержание | RPG1: Обратно в содержание | RPI1: Обратно в содержание | RPK1: Обратно в содержание | RPM1: Обратно в содержание | RPO1: Обратно в содержание | RPQ1: Обратно в содержание | RPS1: Обратно в содержание | RPU1: Обратно в содержание | RPW1: Обратно в содержание | RPY1: Обратно в содержание | RQA1: Обратно в содержание | RQC1: Обратно в содержание | RQE1: Обратно в содержание | RQG1: Обратно в содержание | RQI1: Обратно в содержание | RQK1: Обратно в содержание | RQM1: Обратно в содержание | RQO1: Обратно в содержание | RQQ1: Обратно в содержание | RQS1: Обратно в содержание | RQU1: Обратно в содержание | RQW1: Обратно в содержание | RQY1: Обратно в содержание | RRA1: Обратно в содержание | RRC1: Обратно в содержание | RRE1: Обратно в содержание | RRG1: Обратно в содержание | RRI1: Обратно в содержание | RRK1: Обратно в содержание | RRM1: Обратно в содержание | RRO1: Обратно в содержание | RRQ1: Обратно в содержание | RRS1: Обратно в содержание | RRU1: Обратно в содержание | RRW1: Обратно в содержание | RRY1: Обратно в содержание | RSA1: Обратно в содержание | RSC1: Обратно в содержание | RSE1: Обратно в содержание | RSG1: Обратно в содержание | RSI1: Обратно в содержание | RSK1: Обратно в содержание | RSM1: Обратно в содержание | RSO1: Обратно в содержание | RSQ1: Обратно в содержание | RSS1: Обратно в содержание | RSU1: Обратно в содержание | RSW1: Обратно в содержание | RSY1: Обратно в содержание | RTA1: Обратно в содержание | RTC1: Обратно в содержание | RTE1: Обратно в содержание | RTG1: Обратно в содержание | RTI1: Обратно в содержание | RTK1: Обратно в содержание | RTM1: Обратно в содержание | RTO1: Обратно в содержание | RTQ1: Обратно в содержание | RTS1: Обратно в содержание | RTU1: Обратно в содержание | RTW1: Обратно в содержание | RTY1: Обратно в содержание | RUA1: Обратно в содержание | RUC1: Обратно в содержание | RUE1: Обратно в содержание | RUG1: Обратно в содержание | RUI1: Обратно в содержание | RUK1: Обратно в содержание | RUM1: Обратно в содержание | RUO1: Обратно в содержание | RUQ1: Обратно в содержание | RUS1: Обратно в содержание | RUU1: Обратно в содержание | RUW1: Обратно в содержание | RUY1: Обратно в содержание | RVA1: Обратно в содержание | RVC1: Обратно в содержание | RVE1: Обратно в содержание | RVG1: Обратно в содержание | RVI1: Обратно в содержание | RVK1: Обратно в содержание | RVM1: Обратно в содержание | RVO1: Обратно в содержание | RVQ1: Обратно в содержание | RVS1: Обратно в содержание | RVU1: Обратно в содержание | RVW1: Обратно в содержание | RVY1: Обратно в содержание | RWA1: Обратно в содержание | RWC1: Обратно в содержание | RWE1: Обратно в содержание | RWG1: Обратно в содержание | RWI1: Обратно в содержание | RWK1: Обратно в содержание | RWM1: Обратно в содержание | RWO1: Обратно в содержание | RWQ1: Обратно в содержание | RWS1: Обратно в содержание | RWU1: Обратно в содержание | RWW1: Обратно в содержание | RWY1: Обратно в содержание | RXA1: Обратно в содержание | RXC1: Обратно в содержание | RXE1: Обратно в содержание | RXG1: Обратно в содержание | RXI1: Обратно в содержание | RXK1: Обратно в содержание | RXM1: Обратно в содержание | RXO1: Обратно в содержание | RXQ1: Обратно в содержание | RXS1: Обратно в содержание | RXU1: Обратно в содержание | RXW1: Обратно в содержание | RXY1: Обратно в содержание | RYA1: Обратно в содержание | RYC1: Обратно в содержание | RYE1: Обратно в содержание | RYG1: Обратно в содержание | RYI1: Обратно в содержание | RYK1: Обратно в содержание | RYM1: Обратно в содержание | RYO1: Обратно в содержание | RYQ1: Обратно в содержание | RYS1: Обратно в содержание | RYU1: Обратно в содержание | RYW1: Обратно в содержание | RYY1: Обратно в содержание | RZA1: Обратно в содержание | RZC1: Обратно в содержание | RZE1: Обратно в содержание | RZG1: Обратно в содержание | RZI1: Обратно в содержание | RZK1: Обратно в содержание | RZM1: Обратно в содержание | RZO1: Обратно в содержание | RZQ1: Обратно в содержание | RZS1: Обратно в содержание | RZU1: Обратно в содержание | RZW1: Обратно в содержание | RZY1: Обратно в содержание | SAA1: Обратно в содержание | SAC1: Обратно в содержание | SAE1: Обратно в содержание | SAG1: Обратно в содержание | SAI1: Обратно в содержание | SAK1: Обратно в содержание | SAM1: Обратно в содержание | SAO1: Обратно в содержание | SAQ1: Обратно в содержание | SAS1: Обратно в содержание | SAU1: Обратно в содержание | SAW1: Обратно в содержание | SAY1: Обратно в содержание | SBA1: Обратно в содержание | SBC1: Обратно в содержание | SBE1: Обратно в содержание | SBG1: Обратно в содержание | SBI1: Обратно в содержание | SBK1: Обратно в содержание | SBM1: Обратно в содержание | SBO1: Обратно в содержание | SBQ1: Обратно в содержание | SBS1: Обратно в содержание | SBU1: Обратно в содержание | SBW1: Обратно в содержание | SBY1: Обратно в содержание | SCA1: Обратно в содержание | SCC1: Обратно в содержание | SCE1: Обратно в содержание | SCG1: Обратно в содержание | SCI1: Обратно в содержание | SCK1: Обратно в содержание | SCM1: Обратно в содержание | SCO1: Обратно в содержание | SCQ1: Обратно в содержание | SCS1: Обратно в содержание | SCU1: Обратно в содержание | SCW1: Обратно в содержание | SCY1: Обратно в содержание | SDA1: Обратно в содержание | SDC1: Обратно в содержание | SDE1: Обратно в содержание | SDG1: Обратно в содержание | SDI1: Обратно в содержание | SDK1: Обратно в содержание | SDM1: Обратно в содержание | SDO1: Обратно в содержание | SDQ1: Обратно в содержание | SDS1: Обратно в содержание | SDU1: Обратно в содержание | SDW1: Обратно в содержание | SDY1: Обратно в содержание | SEA1: Обратно в содержание | SEC1: Обратно в содержание | SEE1: Обратно в содержание | SEG1: Обратно в содержание | SEI1: Обратно в содержание | SEK1: Обратно в содержание | SEM1: Обратно в содержание | SEO1: Обратно в содержание | SEQ1: Обратно в содержание | SES1: Обратно в содержание | SEU1: Обратно в содержание | SEW1: Обратно в содержание | SEY1: Обратно в содержание | SFA1: Обратно в содержание | SFC1: Обратно в содержание | SFE1: Обратно в содержание | SFG1: Обратно в содержание | SFI1: Обратно в содержание | SFK1: Обратно в содержание | SFM1: Обратно в содержание | SFO1: Обратно в содержание | SFQ1: Обратно в содержание | SFS1: Обратно в содержание | SFU1: Обратно в содержание | SFW1: Обратно в содержание | SFY1: Обратно в содержание | SGA1: Обратно в содержание | SGC1: Обратно в содержание | SGE1: Обратно в содержание | SGG1: Обратно в содержание | SGI1: Обратно в содержание | SGK1: Обратно в содержание | SGM1: Обратно в содержание | SGO1: Обратно в содержание | SGQ1: Обратно в содержание | SGS1: Обратно в содержание | SGU1: Обратно в содержание | SGW1: Обратно в содержание | SGY1: Обратно в содержание | SHA1: Обратно в содержание | SHC1: Обратно в содержание | SHE1: Обратно в содержание | SHG1: Обратно в содержание | SHI1: Обратно в содержание | SHK1: Обратно в содержание | SHM1: Обратно в содержание | SHO1: Обратно в содержание | SHQ1: Обратно в содержание | SHS1: Обратно в содержание | SHU1: Обратно в содержание | SHW1: Обратно в содержание | SHY1: Обратно в содержание | SIA1: Обратно в содержание | SIC1: Обратно в содержание | SIE1: Обратно в содержание | SIG1: Обратно в содержание | SII1: Обратно в содержание | SIK1: Обратно в содержание | SIM1: Обратно в содержание | SIO1: Обратно в содержание | SIQ1: Обратно в содержание | SIS1: Обратно в содержание | SIU1: Обратно в содержание | SIW1: Обратно в содержание | SIY1: Обратно в содержание | SJA1: Обратно в содержание | SJC1: Обратно в содержание | SJE1: Обратно в содержание | SJG1: Обратно в содержание | SJI1: Обратно в содержание | SJK1: Обратно в содержание | SJM1: Обратно в содержание | SJO1: Обратно в содержание | SJQ1: Обратно в содержание | SJS1: Обратно в содержание | SJU1: Обратно в содержание | SJW1: Обратно в содержание | SJY1: Обратно в содержание | SKA1: Обратно в содержание | SKC1: Обратно в содержание | SKE1: Обратно в содержание | SKG1: Обратно в содержание | SKI1: Обратно в содержание | SKK1: Обратно в содержание | SKM1: Обратно в содержание | SKO1: Обратно в содержание | SKQ1: Обратно в содержание | SKS1: Обратно в содержание | SKU1: Обратно в содержание | SKW1: Обратно в содержание | SKY1: Обратно в содержание | SLA1: Обратно в содержание | SLC1: Обратно в содержание | SLE1: Обратно в содержание | SLG1: Обратно в содержание | SLI1: Обратно в содержание | SLK1: Обратно в содержание | SLM1: Обратно в содержание | SLO1: Обратно в содержание | SLQ1: Обратно в содержание | SLS1: Обратно в содержание | SLU1: Обратно в содержание | SLW1: Обратно в содержание | SLY1: Обратно в содержание | SMA1: Обратно в содержание | SMC1: Обратно в содержание | SME1: Обратно в содержание | SMG1: Обратно в содержание | SMI1: Обратно в содержание | SMK1: Обратно в содержание | SMM1: Обратно в содержание | SMO1: Обратно в содержание | SMQ1: Обратно в содержание | SMS1: Обратно в содержание | SMU1: Обратно в содержание | SMW1: Обратно в содержание | SMY1: Обратно в содержание | SNA1: Обратно в содержание | SNC1: Обратно в содержание | SNE1: Обратно в содержание | SNG1: Обратно в содержание | SNI1: Обратно в содержание | SNK1: Обратно в содержание | SNM1: Обратно в содержание | SNO1: Обратно в содержание | SNQ1: Обратно в содержание | SNS1: Обратно в содержание | SNU1: Обратно в содержание | SNW1: Обратно в содержание | SNY1: Обратно в содержание | SOA1: Обратно в содержание | SOC1: Обратно в содержание | SOE1: Обратно в содержание | SOG1: Обратно в содержание | SOI1: Обратно в содержание | SOK1: Обратно в содержание | SOM1: Обратно в содержание | SOO1: Обратно в содержание | SOQ1: Обратно в содержание | SOS1: Обратно в содержание | SOU1: Обратно в содержание | SOW1: Обратно в содержание | SOY1: Обратно в содержание | SPA1: Обратно в содержание | SPC1: Обратно в содержание | SPE1: Обратно в содержание | SPG1: Обратно в содержание | SPI1: Обратно в содержание | SPK1: Обратно в содержание | SPM1: Обратно в содержание | SPO1: Обратно в содержание | SPQ1: Обратно в содержание | SPS1: Обратно в содержание | SPU1: Обратно в содержание | SPW1: Обратно в содержание | SPY1: Обратно в содержание | SQA1: Обратно в содержание | SQC1: Обратно в содержание | SQE1: Обратно в содержание | SQG1: Обратно в содержание | SQI1: Обратно в содержание | SQK1: Обратно в содержание | SQM1: Обратно в содержание | SQO1: Обратно в содержание | SQQ1: Обратно в содержание | SQS1: Обратно в содержание | SQU1: Обратно в содержание | SQW1: Обратно в содержание | SQY1: Обратно в содержание | SRA1: Обратно в содержание | SRC1: Обратно в содержание | SRE1: Обратно в содержание | SRG1: Обратно в содержание | SRI1: Обратно в содержание | SRK1: Обратно в содержание | SRM1: Обратно в содержание | SRO1: Обратно в содержание | SRQ1: Обратно в содержание | SRS1: Обратно в содержание | SRU1: Обратно в содержание | SRW1: Обратно в содержание | SRY1: Обратно в содержание | SSA1: Обратно в содержание | SSC1: Обратно в содержание | SSE1: Обратно в содержание | SSG1: Обратно в содержание | SSI1: Обратно в содержание | SSK1: Обратно в содержание | SSM1: Обратно в содержание | SSO1: Обратно в содержание | SSQ1: Обратно в содержание | SSS1: Обратно в содержание | SSU1: Обратно в содержание | SSW1: Обратно в содержание | SSY1: Обратно в содержание | STA1: Обратно в содержание | STC1: Обратно в содержание | STE1: Обратно в содержание | STG1: Обратно в содержание | STI1: Обратно в содержание | STK1: Обратно в содержание | STM1: Обратно в содержание | STO1: Обратно в содержание | STQ1: Обратно в содержание | STS1: Обратно в содержание | STU1: Обратно в содержание | STW1: Обратно в содержание | STY1: Обратно в содержание | SUA1: Обратно в содержание | SUC1: Обратно в содержание | SUE1: Обратно в содержание | SUG1: Обратно в содержание | SUI1: Обратно в содержание | SUK1: Обратно в содержание | SUM1: Обратно в содержание | SUO1: Обратно в содержание | SUQ1: Обратно в содержание | SUS1: Обратно в содержание | SUU1: Обратно в содержание | SUW1: Обратно в содержание | SUY1: Обратно в содержание | SVA1: Обратно в содержание | SVC1: Обратно в содержание | SVE1: Обратно в содержание | SVG1: Обратно в содержание | SVI1: Обратно в содержание | SVK1: Обратно в содержание | SVM1: Обратно в содержание | SVO1: Обратно в содержание | SVQ1: Обратно в содержание | SVS1: Обратно в содержание | SVU1: Обратно в содержание | SVW1: Обратно в содержание | SVY1: Обратно в содержание | SWA1: Обратно в содержание | SWC1: Обратно в содержание | SWE1: Обратно в содержание | SWG1: Обратно в содержание | SWI1: Обратно в содержание | SWK1: Обратно в содержание | SWM1: Обратно в содержание | SWO1: Обратно в содержание | SWQ1: Обратно в содержание | SWS1: Обратно в содержание | SWU1: Обратно в содержание | SWW1: Обратно в содержание | SWY1: Обратно в содержание | SXA1: Обратно в содержание | SXC1: Обратно в содержание | SXE1: Обратно в содержание | SXG1: Обратно в содержание | SXI1: Обратно в содержание | SXK1: Обратно в содержание | SXM1: Обратно в содержание | SXO1: Обратно в содержание | SXQ1: Обратно в содержание | SXS1: Обратно в содержание | SXU1: Обратно в содержание | SXW1: Обратно в содержание | SXY1: Обратно в содержание | SYA1: Обратно в содержание | SYC1: Обратно в содержание | SYE1: Обратно в содержание | SYG1: Обратно в содержание | SYI1: Обратно в содержание | SYK1: Обратно в содержание | SYM1: Обратно в содержание | SYO1: Обратно в содержание | SYQ1: Обратно в содержание | SYS1: Обратно в содержание | SYU1: Обратно в содержание | SYW1: Обратно в содержание | SYY1: Обратно в содержание | SZA1: Обратно в содержание | SZC1: Обратно в содержание | SZE1: Обратно в содержание | SZG1: Обратно в содержание | SZI1: Обратно в содержание | SZK1: Обратно в содержание | SZM1: Обратно в содержание | SZO1: Обратно в содержание | SZQ1: Обратно в содержание | SZS1: Обратно в содержание | SZU1: Обратно в содержание | SZW1: Обратно в содержание | SZY1: Обратно в содержание | TAA1: Обратно в содержание | TAC1: Обратно в содержание | TAE1: Обратно в содержание | TAG1: Обратно в содержание | TAI1: Обратно в содержание | TAK1: Обратно в содержание | TAM1: Обратно в содержание | TAO1: Обратно в содержание | TAQ1: Обратно в содержание | TAS1: Обратно в содержание | TAU1: Обратно в содержание | TAW1: Обратно в содержание | TAY1: Обратно в содержание | TBA1: Обратно в содержание | TBC1: Обратно в содержание | TBE1: Обратно в содержание | TBG1: Обратно в содержание | TBI1: Обратно в содержание | TBK1: Обратно в содержание | TBM1: Обратно в содержание | TBO1: Обратно в содержание | TBQ1: Обратно в содержание | TBS1: Обратно в содержание | TBU1: Обратно в содержание | TBW1: Обратно в содержание | TBY1: Обратно в содержание | TCA1: Обратно в содержание | TCC1: Обратно в содержание | TCE1: Обратно в содержание | TCG1: Обратно в содержание | TCI1: Обратно в содержание | TCK1: Обратно в содержание | TCM1: Обратно в содержание | TCO1: Обратно в содержание | TCQ1: Обратно в содержание | TCS1: Обратно в содержание | TCU1: Обратно в содержание | TCW1: Обратно в содержание | TCY1: Обратно в содержание | TDA1: Обратно в содержание | TDC1: Обратно в содержание | TDE1: Обратно в содержание | TDG1: Обратно в содержание | TDI1: Обратно в содержание | TDK1: Обратно в содержание | TDM1: Обратно в содержание | TDO1: Обратно в содержание | TDQ1: Обратно в содержание | TDS1: Обратно в содержание | TDU1: Обратно в содержание | TDW1: Обратно в содержание | TDY1: Обратно в содержание | TEA1: Обратно в содержание | TEC1: Обратно в содержание | TEE1: Обратно в содержание | TEG1: Обратно в содержание | TEI1: Обратно в содержание | TEK1: Обратно в содержание | TEM1: Обратно в содержание | TEO1: Обратно в содержание | TEQ1: Обратно в содержание | TES1: Обратно в содержание | TEU1: Обратно в содержание | TEW1: Обратно в содержание | TEY1: Обратно в содержание | TFA1: Обратно в содержание | TFC1: Обратно в содержание | TFE1: Обратно в содержание | TFG1: Обратно в содержание | TFI1: Обратно в содержание | TFK1: Обратно в содержание | TFM1: Обратно в содержание | TFO1: Обратно в содержание | TFQ1: Обратно в содержание | TFS1: Обратно в содержание | TFU1: Обратно в содержание | TFW1: Обратно в содержание | TFY1: Обратно в содержание | TGA1: Обратно в содержание | TGC1: Обратно в содержание | TGE1: Обратно в содержание | TGG1: Обратно в содержание | TGI1: Обратно в содержание | TGK1: Обратно в содержание | TGM1: Обратно в содержание | TGO1: Обратно в содержание | TGQ1: Обратно в содержание | TGS1: Обратно в содержание | TGU1: Обратно в содержание | TGW1: Обратно в содержание | TGY1: Обратно в содержание | THA1: Обратно в содержание | THC1: Обратно в содержание | THE1: Обратно в содержание | THG1: Обратно в содержание | THI1: Обратно в содержание | THK1: Обратно в содержание | THM1: Обратно в содержание | THO1: Обратно в содержание | THQ1: Обратно в содержание | THS1: Обратно в содержание | THU1: Обратно в содержание | THW1: Обратно в содержание | THY1: Обратно в содержание | TIA1: Обратно в содержание | TIC1: Обратно в содержание | TIE1: Обратно в содержание | TIG1: Обратно в содержание | TII1: Обратно в содержание | TIK1: Обратно в содержание | TIM1: Обратно в содержание | TIO1: Обратно в содержание | TIQ1: Обратно в содержание | TIS1: Обратно в содержание | TIU1: Обратно в содержание | TIW1: Обратно в содержание | TIY1: Обратно в содержание | TJA1: Обратно в содержание | TJC1: Обратно в содержание | TJE1: Обратно в содержание | TJG1: Обратно в содержание | TJI1: Обратно в содержание | TJK1: Обратно в содержание | TJM1: Обратно в содержание | TJO1: Обратно в содержание | TJQ1: Обратно в содержание | TJS1: Обратно в содержание | TJU1: Обратно в содержание | TJW1: Обратно в содержание | TJY1: Обратно в содержание | TKA1: Обратно в содержание | TKC1: Обратно в содержание | TKE1: Обратно в содержание | TKG1: Обратно в содержание | TKI1: Обратно в содержание | TKK1: Обратно в содержание | TKM1: Обратно в содержание | TKO1: Обратно в содержание | TKQ1: Обратно в содержание | TKS1: Обратно в содержание | TKU1: Обратно в содержание | TKW1: Обратно в содержание | TKY1: Обратно в содержание | TLA1: Обратно в содержание | TLC1: Обратно в содержание | TLE1: Обратно в содержание | TLG1: Обратно в содержание | TLI1: Обратно в содержание | TLK1: Обратно в содержание | TLM1: Обратно в содержание | TLO1: Обратно в содержание | TLQ1: Обратно в содержание | TLS1: Обратно в содержание | TLU1: Обратно в содержание | TLW1: Обратно в содержание | TLY1: Обратно в содержание | TMA1: Обратно в содержание | TMC1: Обратно в содержание | TME1: Обратно в содержание | TMG1: Обратно в содержание | TMI1: Обратно в содержание | TMK1: Обратно в содержание | TMM1: Обратно в содержание | TMO1: Обратно в содержание | TMQ1: Обратно в содержание | TMS1: Обратно в содержание | TMU1: Обратно в содержание | TMW1: Обратно в содержание | TMY1: Обратно в содержание | TNA1: Обратно в содержание | TNC1: Обратно в содержание | TNE1: Обратно в содержание | TNG1: Обратно в содержание | TNI1: Обратно в содержание | TNK1: Обратно в содержание | TNM1: Обратно в содержание | TNO1: Обратно в содержание | TNQ1: Обратно в содержание | TNS1: Обратно в содержание | TNU1: Обратно в содержание | TNW1: Обратно в содержание | TNY1: Обратно в содержание | TOA1: Обратно в содержание | TOC1: Обратно в содержание | TOE1: Обратно в содержание | TOG1: Обратно в содержание | TOI1: Обратно в содержание | TOK1: Обратно в содержание | TOM1: Обратно в содержание | TOO1: Обратно в содержание | TOQ1: Обратно в содержание | TOS1: Обратно в содержание | TOU1: Обратно в содержание | TOW1: Обратно в содержание | TOY1: Обратно в содержание | TPA1: Обратно в содержание | TPC1: Обратно в содержание | TPE1: Обратно в содержание | TPG1: Обратно в содержание | TPI1: Обратно в содержание | TPK1: Обратно в содержание | TPM1: Обратно в содержание | TPO1: Обратно в содержание | TPQ1: Обратно в содержание | TPS1: Обратно в содержание | TPU1: Обратно в содержание | TPW1: Обратно в содержание | TPY1: Обратно в содержание | TQA1: Обратно в содержание | TQC1: Обратно в содержание | TQE1: Обратно в содержание | TQG1: Обратно в содержание | TQI1: Обратно в содержание | TQK1: Обратно в содержание | TQM1: Обратно в содержание | TQO1: Обратно в содержание | TQQ1: Обратно в содержание | TQS1: Обратно в содержание | TQU1: Обратно в содержание | TQW1: Обратно в содержание | TQY1: Обратно в содержание | TRA1: Обратно в содержание | TRC1: Обратно в содержание | TRE1: Обратно в содержание | TRG1: Обратно в содержание | TRI1: Обратно в содержание | TRK1: Обратно в содержание | TRM1: Обратно в содержание | TRO1: Обратно в содержание | TRQ1: Обратно в содержание | TRS1: Обратно в содержание | TRU1: Обратно в содержание | TRW1: Обратно в содержание | TRY1: Обратно в содержание | TSA1: Обратно в содержание | TSC1: Обратно в содержание | TSE1: Обратно в содержание | TSG1: Обратно в содержание | TSI1: Обратно в содержание | TSK1: Обратно в содержание | TSM1: Обратно в содержание | TSO1: Обратно в содержание | TSQ1: Обратно в содержание | TSS1: Обратно в содержание | TSU1: Обратно в содержание | TSW1: Обратно в содержание | TSY1: Обратно в содержание | TTA1: Обратно в содержание | TTC1: Обратно в содержание | TTE1: Обратно в содержание | TTG1: Обратно в содержание | TTI1: Обратно в содержание | TTK1: Обратно в содержание | TTM1: Обратно в содержание | TTO1: Обратно в содержание | TTQ1: Обратно в содержание | TTS1: Обратно в содержание | TTU1: Обратно в содержание | TTW1: Обратно в содержание | TTY1: Обратно в содержание | TUA1: Обратно в содержание | TUC1: Обратно в содержание | TUE1: Обратно в содержание | TUG1: Обратно в содержание | TUI1: Обратно в содержание | TUK1: Обратно в содержание | TUM1: Обратно в содержание | TUO1: Обратно в содержание | TUQ1: Обратно в содержание | TUS1: Обратно в содержание | TUU1: Обратно в содержание | TUW1: Обратно в содержание | TUY1: Обратно в содержание | TVA1: Обратно в содержание | TVC1: Обратно в содержание | TVE1: Обратно в содержание | TVG1: Обратно в содержание | TVI1: Обратно в содержание | TVK1: Обратно в содержание | TVM1: Обратно в содержание | TVO1: Обратно в содержание | TVQ1: Обратно в содержание | TVS1: Обратно в содержание | TVU1: Обратно в содержание | TVW1: Обратно в содержание | TVY1: Обратно в содержание | TWA1: Обратно в содержание | TWC1: Обратно в содержание | TWE1: Обратно в содержание | TWG1: Обратно в содержание | TWI1: Обратно в содержание | TWK1: Обратно в содержание | TWM1: Обратно в содержание | TWO1: Обратно в содержание | TWQ1: Обратно в содержание | TWS1: Обратно в содержание | TWU1: Обратно в содержание | TWW1: Обратно в содержание | TWY1: Обратно в содержание | TXA1: Обратно в содержание | TXC1: Обратно в содержание | TXE1: Обратно в содержание | TXG1: Обратно в содержание | TXI1: Обратно в содержание | TXK1: Обратно в содержание | TXM1: Обратно в содержание | TXO1: Обратно в содержание | TXQ1: Обратно в содержание | TXS1: Обратно в содержание | TXU1: Обратно в содержание | TXW1: Обратно в содержание | TXY1: Обратно в содержание | TYA1: Обратно в содержание | TYC1: Обратно в содержание | TYE1: Обратно в содержание | TYG1: Обратно в содержание | TYI1: Обратно в содержание | TYK1: Обратно в содержание | TYM1: Обратно в содержание | TYO1: Обратно в содержание | TYQ1: Обратно в содержание | TYS1: Обратно в содержание | TYU1: Обратно в содержание | TYW1: Обратно в содержание | TYY1: Обратно в содержание | TZA1: Обратно в содержание | TZC1: Обратно в содержание | TZE1: Обратно в содержание | TZG1: Обратно в содержание | TZI1: Обратно в содержание | TZK1: Обратно в содержание | TZM1: Обратно в содержание | TZO1: Обратно в содержание | TZQ1: Обратно в содержание | TZS1: Обратно в содержание | TZU1: Обратно в содержание | TZW1: Обратно в содержание | TZY1: Обратно в содержание | UAA1: Обратно в содержание | UAC1: Обратно в содержание | UAE1: Обратно в содержание | UAG1: Обратно в содержание | UAI1: Обратно в содержание | UAK1: Обратно в содержание | UAM1: Обратно в содержание | UAO1: Обратно в содержание | UAQ1: Обратно в содержание | UAS1: Обратно в содержание | UAU1: Обратно в содержание | UAW1: Обратно в содержание | UAY1: Обратно в содержание | UBA1: Обратно в содержание | UBC1: Обратно в содержание | UBE1: Обратно в содержание | UBG1: Обратно в содержание | UBI1: Обратно в содержание | UBK1: Обратно в содержание | UBM1: Обратно в содержание | UBO1: Обратно в содержание | UBQ1: Обратно в содержание | UBS1: Обратно в содержание | UBU1: Обратно в содержание | UBW1: Обратно в содержание | UBY1: Обратно в содержание | UCA1: Обратно в содержание | UCC1: Обратно в содержание | UCE1: Обратно в содержание | UCG1: Обратно в содержание | UCI1: Обратно в содержание | UCK1: Обратно в содержание | UCM1: Обратно в содержание | UCO1: Обратно в содержание | UCQ1: Обратно в содержание | UCS1: Обратно в содержание | UCU1: Обратно в содержание | UCW1: Обратно в содержание | UCY1: Обратно в содержание | UDA1: Обратно в содержание | UDC1: Обратно в содержание | UDE1: Обратно в содержание | UDG1: Обратно в содержание | UDI1: Обратно в содержание | UDK1: Обратно в содержание | UDM1: Обратно в содержание | UDO1: Обратно в содержание | UDQ1: Обратно в содержание | UDS1: Обратно в содержание | UDU1: Обратно в содержание | UDW1: Обратно в содержание | UDY1: Обратно в содержание | UEA1: Обратно в содержание | UEC1: Обратно в содержание | UEE1: Обратно в содержание | UEG1: Обратно в содержание | UEI1: Обратно в содержание | UEK1: Обратно в содержание | UEM1: Обратно в содержание | UEO1: Обратно в содержание | UEQ1: Обратно в содержание | UES1: Обратно в содержание | UEU1: Обратно в содержание | UEW1: Обратно в содержание | UEY1: Обратно в содержание | UFA1: Обратно в содержание | UFC1: Обратно в содержание | UFE1: Обратно в содержание | UFG1: Обратно в содержание | UFI1: Обратно в содержание | UFK1: Обратно в содержание | UFM1: Обратно в содержание | UFO1: Обратно в содержание | UFQ1: Обратно в содержание | UFS1: Обратно в содержание | UFU1: Обратно в содержание | UFW1: Обратно в содержание | UFY1: Обратно в содержание | UGA1: Обратно в содержание | UGC1: Обратно в содержание | UGE1: Обратно в содержание | UGG1: Обратно в содержание | UGI1: Обратно в содержание | UGK1: Обратно в содержание | UGM1: Обратно в содержание | UGO1: Обратно в содержание | UGQ1: Обратно в содержание | UGS1: Обратно в содержание | UGU1: Обратно в содержание | UGW1: Обратно в содержание | UGY1: Обратно в содержание | UHA1: Обратно в содержание | UHC1: Обратно в содержание | UHE1: Обратно в содержание | UHG1: Обратно в содержание | UHI1: Обратно в содержание | UHK1: Обратно в содержание | UHM1: Обратно в содержание | UHO1: Обратно в содержание | UHQ1: Обратно в содержание | UHS1: Обратно в содержание | UHU1: Обратно в содержание | UHW1: Обратно в содержание | UHY1: Обратно в содержание | UIA1: Обратно в содержание | UIC1: Обратно в содержание | UIE1: Обратно в содержание | UIG1: Обратно в содержание | UII1: Обратно в содержание | UIK1: Обратно в содержание | UIM1: Обратно в содержание | UIO1: Обратно в содержание | UIQ1: Обратно в содержание | UIS1: Обратно в содержание | UIU1: Обратно в содержание | UIW1: Обратно в содержание | UIY1: Обратно в содержание | UJA1: Обратно в содержание | UJC1: Обратно в содержание | UJE1: Обратно в содержание | UJG1: Обратно в содержание | UJI1: Обратно в содержание | UJK1: Обратно в содержание | UJM1: Обратно в содержание | UJO1: Обратно в содержание | UJQ1: Обратно в содержание | UJS1: Обратно в содержание | UJU1: Обратно в содержание | UJW1: Обратно в содержание | UJY1: Обратно в содержание | UKA1: Обратно в содержание | UKC1: Обратно в содержание | UKE1: Обратно в содержание | UKG1: Обратно в содержание | UKI1: Обратно в содержание | UKK1: Обратно в содержание | UKM1: Обратно в содержание | UKO1: Обратно в содержание | UKQ1: Обратно в содержание | UKS1: Обратно в содержание | UKU1: Обратно в содержание | UKW1: Обратно в содержание | UKY1: Обратно в содержание | ULA1: Обратно в содержание | ULC1: Обратно в содержание | ULE1: Обратно в содержание | ULG1: Обратно в содержание | ULI1: Обратно в содержание | ULK1: Обратно в содержание | ULM1: Обратно в содержание | ULO1: Обратно в содержание | ULQ1: Обратно в содержание | ULS1: Обратно в содержание | ULU1: Обратно в содержание | ULW1: Обратно в содержание | ULY1: Обратно в содержание | UMA1: Обратно в содержание | UMC1: Обратно в содержание | UME1: Обратно в содержание | UMG1: Обратно в содержание | UMI1: Обратно в содержание | UMK1: Обратно в содержание | UMM1: Обратно в содержание | UMO1: Обратно в содержание | UMQ1: Обратно в содержание | UMS1: Обратно в содержание | UMU1: Обратно в содержание | UMW1: Обратно в содержание | UMY1: Обратно в содержание | UNA1: Обратно в содержание | UNC1: Обратно в содержание | UNE1: Обратно в содержание | UNG1: Обратно в содержание | UNI1: Обратно в содержание | UNK1: Обратно в содержание | UNM1: Обратно в содержание | UNO1: Обратно в содержание | UNQ1: Обратно в содержание | UNS1: Обратно в содержание | UNU1: Обратно в содержание | UNW1: Обратно в содержание | UNY1: Обратно в содержание | UOA1: Обратно в содержание | UOC1: Обратно в содержание | UOE1: Обратно в содержание | UOG1: Обратно в содержание | UOI1: Обратно в содержание | UOK1: Обратно в содержание | UOM1: Обратно в содержание | UOO1: Обратно в содержание | UOQ1: Обратно в содержание | UOS1: Обратно в содержание | UOU1: Обратно в содержание | UOW1: Обратно в содержание | UOY1: Обратно в содержание | UPA1: Обратно в содержание | UPC1: Обратно в содержание | UPE1: Обратно в содержание | UPG1: Обратно в содержание | UPI1: Обратно в содержание | UPK1: Обратно в содержание | UPM1: Обратно в содержание | UPO1: Обратно в содержание | UPQ1: Обратно в содержание | UPS1: Обратно в содержание | UPU1: Обратно в содержание | UPW1: Обратно в содержание | UPY1: Обратно в содержание | UQA1: Обратно в содержание | UQC1: Обратно в содержание | UQE1: Обратно в содержание | UQG1: Обратно в содержание | UQI1: Обратно в содержание | UQK1: Обратно в содержание | UQM1: Обратно в содержание | UQO1: Обратно в содержание | UQQ1: Обратно в содержание | UQS1: Обратно в содержание | UQU1: Обратно в содержание | UQW1: Обратно в содержание | UQY1: Обратно в содержание | URA1: Обратно в содержание | URC1: Обратно в содержание | URE1: Обратно в содержание | URG1: Обратно в содержание | URI1: Обратно в содержание | URK1: Обратно в содержание | URM1: Обратно в содержание | URO1: Обратно в содержание | URQ1: Обратно в содержание | URS1: Обратно в содержание | URU1: Обратно в содержание | URW1: Обратно в содержание | URY1: Обратно в содержание | USA1: Обратно в содержание | USC1: Обратно в содержание | USE1: Обратно в содержание | USG1: Обратно в содержание | USI1: Обратно в содержание | USK1: Обратно в содержание | USM1: Обратно в содержание | USO1: Обратно в содержание | USQ1: Обратно в содержание | USS1: Обратно в содержание | USU1: Обратно в содержание | USW1: Обратно в содержание | USY1: Обратно в содержание | UTA1: Обратно в содержание | UTC1: Обратно в содержание | UTE1: Обратно в содержание | UTG1: Обратно в содержание | UTI1: Обратно в содержание | UTK1: Обратно в содержание | UTM1: Обратно в содержание | UTO1: Обратно в содержание | UTQ1: Обратно в содержание | UTS1: Обратно в содержание | UTU1: Обратно в содержание | UTW1: Обратно в содержание | UTY1: Обратно в содержание | UUA1: Обратно в содержание | UUC1: Обратно в содержание | UUE1: Обратно в содержание | UUG1: Обратно в содержание | UUI1: Обратно в содержание | UUK1: Обратно в содержание | UUM1: Обратно в содержание | UUO1: Обратно в содержание | UUQ1: Обратно в содержание | UUS1: Обратно в содержание | UUU1: Обратно в содержание | UUW1: Обратно в содержание | UUY1: Обратно в содержание | UVA1: Обратно в содержание | UVC1: Обратно в содержание | UVE1: Обратно в содержание | UVG1: Обратно в содержание | UVI1: Обратно в содержание | UVK1: Обратно в содержание | UVM1: Обратно в содержание | UVO1: Обратно в содержание | UVQ1: Обратно в содержание | UVS1: Обратно в содержание | UVU1: Обратно в содержание | UVW1: Обратно в содержание | UVY1: Обратно в содержание | UWA1: Обратно в содержание | UWC1: Обратно в содержание | UWE1: Обратно в содержание | UWG1: Обратно в содержание | UWI1: Обратно в содержание | UWK1: Обратно в содержание | UWM1: Обратно в содержание | UWO1: Обратно в содержание | UWQ1: Обратно в содержание | UWS1: Обратно в содержание | UWU1: Обратно в содержание | UWW1: Обратно в содержание | UWY1: Обратно в содержание | UXA1: Обратно в содержание | UXC1: Обратно в содержание | UXE1: Обратно в содержание | UXG1: Обратно в содержание | UXI1: Обратно в содержание | UXK1: Обратно в содержание | UXM1: Обратно в содержание | UXO1: Обратно в содержание | UXQ1: Обратно в содержание | UXS1: Обратно в содержание | UXU1: Обратно в содержание | UXW1: Обратно в содержание | UXY1: Обратно в содержание | UYA1: Обратно в содержание | UYC1: Обратно в содержание | UYE1: Обратно в содержание | UYG1: Обратно в содержание | UYI1: Обратно в содержание | UYK1: Обратно в содержание | UYM1: Обратно в содержание | UYO1: Обратно в содержание | UYQ1: Обратно в содержание | UYS1: Обратно в содержание | UYU1: Обратно в содержание | UYW1: Обратно в содержание | UYY1: Обратно в содержание | UZA1: Обратно в содержание | UZC1: Обратно в содержание | UZE1: Обратно в содержание | UZG1: Обратно в содержание | UZI1: Обратно в содержание | UZK1: Обратно в содержание | UZM1: Обратно в содержание | UZO1: Обратно в содержание | UZQ1: Обратно в содержание | UZS1: Обратно в содержание | UZU1: Обратно в содержание | UZW1: Обратно в содержание | UZY1: Обратно в содержание | VAA1: Обратно в содержание | VAC1: Обратно в содержание | VAE1: Обратно в содержание | VAG1: Обратно в содержание | VAI1: Обратно в содержание | VAK1: Обратно в содержание | VAM1: Обратно в содержание | VAO1: Обратно в содержание | VAQ1: Обратно в содержание | VAS1: Обратно в содержание | VAU1: Обратно в содержание | VAW1: Обратно в содержание | VAY1: Обратно в содержание | VBA1: Обратно в содержание | VBC1: Обратно в содержание | VBE1: Обратно в содержание | VBG1: Обратно в содержание | VBI1: Обратно в содержание | VBK1: Обратно в содержание | VBM1: Обратно в содержание | VBO1: Обратно в содержание | VBQ1: Обратно в содержание | VBS1: Обратно в содержание | VBU1: Обратно в содержание | VBW1: Обратно в содержание | VBY1: Обратно в содержание | VCA1: Обратно в содержание | VCC1: Обратно в содержание | VCE1: Обратно в содержание | VCG1: Обратно в содержание | VCI1: Обратно в содержание | VCK1: Обратно в содержание | VCM1: Обратно в содержание | VCO1: Обратно в содержание | VCQ1: Обратно в содержание | VCS1: Обратно в содержание | VCU1: Обратно в содержание | VCW1: Обратно в содержание | VCY1: Обратно в содержание | VDA1: Обратно в содержание | VDC1: Обратно в содержание | VDE1: Обратно в содержание | VDG1: Обратно в содержание | VDI1: Обратно в содержание | VDK1: Обратно в содержание | VDM1: Обратно в содержание | VDO1: Обратно в содержание | VDQ1: Обратно в содержание | VDS1: Обратно в содержание | VDU1: Обратно в содержание | VDW1: Обратно в содержание | VDY1: Обратно в содержание | VEA1: Обратно в содержание | VEC1: Обратно в содержание | VEE1: Обратно в содержание | VEG1: Обратно в содержание | VEI1: Обратно в содержание | VEK1: Обратно в содержание | VEM1: Обратно в содержание | VEO1: Обратно в содержание | VEQ1: Обратно в содержание | VES1: Обратно в содержание | VEU1: Обратно в содержание | VEW1: Обратно в содержание | VEY1: Обратно в содержание | VFA1: Обратно в содержание | VFC1: Обратно в содержание | VFE1: Обратно в содержание | VFG1: Обратно в содержание | VFI1: Обратно в содержание | VFK1: Обратно в содержание | VFM1: Обратно в содержание | VFO1: Обратно в содержание | VFQ1: Обратно в содержание | VFS1: Обратно в содержание | VFU1: Обратно в содержание | VFW1: Обратно в содержание | VFY1: Обратно в содержание | VGA1: Обратно в содержание | VGC1: Обратно в содержание | VGE1: Обратно в содержание | VGG1: Обратно в содержание | VGI1: Обратно в содержание | VGK1: Обратно в содержание | VGM1: Обратно в содержание | VGO1: Обратно в содержание | VGQ1: Обратно в содержание | VGS1: Обратно в содержание | VGU1: Обратно в содержание | VGW1: Обратно в содержание | VGY1: Обратно в содержание | VHA1: Обратно в содержание | VHC1: Обратно в содержание | VHE1: Обратно в содержание | VHG1: Обратно в содержание | VHI1: Обратно в содержание | VHK1: Обратно в содержание | VHM1: Обратно в содержание | VHO1: Обратно в содержание | VHQ1: Обратно в содержание | VHS1: Обратно в содержание | VHU1: Обратно в содержание | VHW1: Обратно в содержание | VHY1: Обратно в содержание | VIA1: Обратно в содержание | VIC1: Обратно в содержание | VIE1: Обратно в содержание | VIG1: Обратно в содержание | VII1: Обратно в содержание | VIK1: Обратно в содержание | VIM1: Обратно в содержание | VIO1: Обратно в содержание | VIQ1: Обратно в содержание | VIS1: Обратно в содержание | VIU1: Обратно в содержание | VIW1: Обратно в содержание | VIY1: Обратно в содержание | VJA1: Обратно в содержание | VJC1: Обратно в содержание | VJE1: Обратно в содержание | VJG1: Обратно в содержание | VJI1: Обратно в содержание | VJK1: Обратно в содержание | VJM1: Обратно в содержание | VJO1: Обратно в содержание | VJQ1: Обратно в содержание | VJS1: Обратно в содержание | VJU1: Обратно в содержание | VJW1: Обратно в содержание | VJY1: Обратно в содержание | VKA1: Обратно в содержание | VKC1: Обратно в содержание | VKE1: Обратно в содержание | VKG1: Обратно в содержание | VKI1: Обратно в содержание | VKK1: Обратно в содержание | VKM1: Обратно в содержание | VKO1: Обратно в содержание | VKQ1: Обратно в содержание | VKS1: Обратно в содержание | VKU1: Обратно в содержание | VKW1: Обратно в содержание | VKY1: Обратно в содержание | VLA1: Обратно в содержание | VLC1: Обратно в содержание | VLE1: Обратно в содержание | VLG1: Обратно в содержание | VLI1: Обратно в содержание | VLK1: Обратно в содержание | VLM1: Обратно в содержание | VLO1: Обратно в содержание | VLQ1: Обратно в содержание | VLS1: Обратно в содержание | VLU1: Обратно в содержание | VLW1: Обратно в содержание | VLY1: Обратно в содержание | VMA1: Обратно в содержание | VMC1: Обратно в содержание | VME1: Обратно в содержание | VMG1: Обратно в содержание | VMI1: Обратно в содержание | VMK1: Обратно в содержание | VMM1: Обратно в содержание | VMO1: Обратно в содержание | VMQ1: Обратно в содержание | VMS1: Обратно в содержание | VMU1: Обратно в содержание | VMW1: Обратно в содержание | VMY1: Обратно в содержание | VNA1: Обратно в содержание | VNC1: Обратно в содержание | VNE1: Обратно в содержание | VNG1: Обратно в содержание | VNI1: Обратно в содержание | VNK1: Обратно в содержание | VNM1: Обратно в содержание | VNO1: Обратно в содержание | VNQ1: Обратно в содержание | VNS1: Обратно в содержание | VNU1: Обратно в содержание | VNW1: Обратно в содержание | VNY1: Обратно в содержание | VOA1: Обратно в содержание | VOC1: Обратно в содержание | VOE1: Обратно в содержание | VOG1: Обратно в содержание | VOI1: Обратно в содержание | VOK1: Обратно в содержание | VOM1: Обратно в содержание | VOO1: Обратно в содержание | VOQ1: Обратно в содержание | VOS1: Обратно в содержание | VOU1: Обратно в содержание | VOW1: Обратно в содержание | VOY1: Обратно в содержание | VPA1: Обратно в содержание | VPC1: Обратно в содержание | VPE1: Обратно в содержание | VPG1: Обратно в содержание | VPI1: Обратно в содержание | VPK1: Обратно в содержание | VPM1: Обратно в содержание | VPO1: Обратно в содержание | VPQ1: Обратно в содержание | VPS1: Обратно в содержание | VPU1: Обратно в содержание | VPW1: Обратно в содержание | VPY1: Обратно в содержание | VQA1: Обратно в содержание | VQC1: Обратно в содержание | VQE1: Обратно в содержание | VQG1: Обратно в содержание | VQI1: Обратно в содержание | VQK1: Обратно в содержание | VQM1: Обратно в содержание | VQO1: Обратно в содержание | VQQ1: Обратно в содержание | VQS1: Обратно в содержание | VQU1: Обратно в содержание | VQW1: Обратно в содержание | VQY1: Обратно в содержание | VRA1: Обратно в содержание | VRC1: Обратно в содержание | VRE1: Обратно в содержание | VRG1: Обратно в содержание | VRI1: Обратно в содержание | VRK1: Обратно в содержание | VRM1: Обратно в содержание | VRO1: Обратно в содержание | VRQ1: Обратно в содержание | VRS1: Обратно в содержание | VRU1: Обратно в содержание | VRW1: Обратно в содержание | VRY1: Обратно в содержание | VSA1: Обратно в содержание | VSC1: Обратно в содержание | VSE1: Обратно в содержание | VSG1: Обратно в содержание | VSI1: Обратно в содержание | VSK1: Обратно в содержание | VSM1: Обратно в содержание | VSO1: Обратно в содержание | VSQ1: Обратно в содержание | VSS1: Обратно в содержание | VSU1: Обратно в содержание | VSW1: Обратно в содержание | VSY1: Обратно в содержание | VTA1: Обратно в содержание | VTC1: Обратно в содержание | VTE1: Обратно в содержание | VTG1: Обратно в содержание | VTI1: Обратно в содержание | VTK1: Обратно в содержание | VTM1: Обратно в содержание | VTO1: Обратно в содержание | VTQ1: Обратно в содержание | VTS1: Обратно в содержание | VTU1: Обратно в содержание | VTW1: Обратно в содержание | VTY1: Обратно в содержание | VUA1: Обратно в содержание | VUC1: Обратно в содержание | VUE1: Обратно в содержание | VUG1: Обратно в содержание | VUI1: Обратно в содержание | VUK1: Обратно в содержание | VUM1: Обратно в содержание | VUO1: Обратно в содержание | VUQ1: Обратно в содержание | VUS1: Обратно в содержание | VUU1: Обратно в содержание | VUW1: Обратно в содержание | VUY1: Обратно в содержание | VVA1: Обратно в содержание | VVC1: Обратно в содержание | VVE1: Обратно в содержание | VVG1: Обратно в содержание | VVI1: Обратно в содержание | VVK1: Обратно в содержание | VVM1: Обратно в содержание | VVO1: Обратно в содержание | VVQ1: Обратно в содержание | VVS1: Обратно в содержание | VVU1: Обратно в содержание | VVW1: Обратно в содержание | VVY1: Обратно в содержание | VWA1: Обратно в содержание | VWC1: Обратно в содержание | VWE1: Обратно в содержание | VWG1: Обратно в содержание | VWI1: Обратно в содержание | VWK1: Обратно в содержание | VWM1: Обратно в содержание | VWO1: Обратно в содержание | VWQ1: Обратно в содержание | VWS1: Обратно в содержание | VWU1: Обратно в содержание | VWW1: Обратно в содержание | VWY1: Обратно в содержание | VXA1: Обратно в содержание | VXC1: Обратно в содержание | VXE1: Обратно в содержание | VXG1: Обратно в содержание | VXI1: Обратно в содержание | VXK1: Обратно в содержание | VXM1: Обратно в содержание | VXO1: Обратно в содержание | VXQ1: Обратно в содержание | VXS1: Обратно в содержание | VXU1: Обратно в содержание | VXW1: Обратно в содержание | VXY1: Обратно в содержание | VYA1: Обратно в содержание | VYC1: Обратно в содержание | VYE1: Обратно в содержание | VYG1: Обратно в содержание | VYI1: Обратно в содержание | VYK1: Обратно в содержание | VYM1: Обратно в содержание | VYO1: Обратно в содержание | VYQ1: Обратно в содержание | VYS1: Обратно в содержание | VYU1: Обратно в содержание | VYW1: Обратно в содержание | VYY1: Обратно в содержание | VZA1: Обратно в содержание | VZC1: Обратно в содержание | VZE1: Обратно в содержание | VZG1: Обратно в содержание | VZI1: Обратно в содержание | VZK1: Обратно в содержание | VZM1: Обратно в содержание | VZO1: Обратно в содержание | VZQ1: Обратно в содержание | VZS1: Обратно в содержание | VZU1: Обратно в содержание | VZW1: Обратно в содержание | VZY1: Обратно в содержание | WAA1: Обратно в содержание | WAC1: Обратно в содержание | WAE1: Обратно в содержание | WAG1: Обратно в содержание | WAI1: Обратно в содержание | WAK1: Обратно в содержание | WAM1: Обратно в содержание | WAO1: Обратно в содержание | WAQ1: Обратно в содержание | WAS1: Обратно в содержание | WAU1: Обратно в содержание | WAW1: Обратно в содержание | WAY1: Обратно в содержание | WBA1: Обратно в содержание | WBC1: Обратно в содержание | WBE1: Обратно в содержание | WBG1: Обратно в содержание | WBI1: Обратно в содержание | WBK1: Обратно в содержание | WBM1: Обратно в содержание | WBO1: Обратно в содержание | WBQ1: Обратно в содержание | WBS1: Обратно в содержание | WBU1: Обратно в содержание | WBW1: Обратно в содержание | WBY1: Обратно в содержание | WCA1: Обратно в содержание | WCC1: Обратно в содержание | WCE1: Обратно в содержание | WCG1: Обратно в содержание | WCI1: Обратно в содержание | WCK1: Обратно в содержание | WCM1: Обратно в содержание | WCO1: Обратно в содержание | WCQ1: Обратно в содержание | WCS1: Обратно в содержание | WCU1: Обратно в содержание | WCW1: Обратно в содержание | WCY1: Обратно в содержание | WDA1: Обратно в содержание | WDC1: Обратно в содержание | WDE1: Обратно в содержание | WDG1: Обратно в содержание | WDI1: Обратно в содержание | WDK1: Обратно в содержание | WDM1: Обратно в содержание | WDO1: Обратно в содержание | WDQ1: Обратно в содержание | WDS1: Обратно в содержание | WDU1: Обратно в содержание | WDW1: Обратно в содержание | WDY1: Обратно в содержание | WEA1: Обратно в содержание | WEC1: Обратно в содержание | WEE1: Обратно в содержание | WEG1: Обратно в содержание | WEI1: Обратно в содержание | WEK1: Обратно в содержание | WEM1: Обратно в содержание | WEO1: Обратно в содержание | WEQ1: Обратно в содержание | WES1: Обратно в содержание | WEU1: Обратно в содержание | WEW1: Обратно в содержание | WEY1: Обратно в содержание | WFA1: Обратно в содержание | WFC1: Обратно в содержание | WFE1: Обратно в содержание | WFG1: Обратно в содержание | WFI1: Обратно в содержание | WFK1: Обратно в содержание | WFM1: Обратно в содержание | WFO1: Обратно в содержание | WFQ1: Обратно в содержание | WFS1: Обратно в содержание | WFU1: Обратно в содержание | WFW1: Обратно в содержание | WFY1: Обратно в содержание | WGA1: Обратно в содержание | WGC1: Обратно в содержание | WGE1: Обратно в содержание | WGG1: Обратно в содержание | WGI1: Обратно в содержание | WGK1: Обратно в содержание | WGM1: Обратно в содержание | WGO1: Обратно в содержание | WGQ1: Обратно в содержание | WGS1: Обратно в содержание | WGU1: Обратно в содержание | WGW1: Обратно в содержание | WGY1: Обратно в содержание | WHA1: Обратно в содержание | WHC1: Обратно в содержание | WHE1: Обратно в содержание | WHG1: Обратно в содержание | WHI1: Обратно в содержание | WHK1: Обратно в содержание | WHM1: Обратно в содержание | WHO1: Обратно в содержание | WHQ1: Обратно в содержание | WHS1: Обратно в содержание | WHU1: Обратно в содержание | WHW1: Обратно в содержание | WHY1: Обратно в содержание | WIA1: Обратно в содержание | WIC1: Обратно в содержание | WIE1: Обратно в содержание | WIG1: Обратно в содержание | WII1: Обратно в содержание | WIK1: Обратно в содержание | WIM1: Обратно в содержание | WIO1: Обратно в содержание | WIQ1: Обратно в содержание | WIS1: Обратно в содержание | WIU1: Обратно в содержание | WIW1: Обратно в содержание | WIY1: Обратно в содержание | WJA1: Обратно в содержание | WJC1: Обратно в содержание | WJE1: Обратно в содержание | WJG1: Обратно в содержание | WJI1: Обратно в содержание | WJK1: Обратно в содержание | WJM1: Обратно в содержание | WJO1: Обратно в содержание | WJQ1: Обратно в содержание | WJS1: Обратно в содержание | WJU1: Обратно в содержание | WJW1: Обратно в содержание | WJY1: Обратно в содержание | WKA1: Обратно в содержание | WKC1: Обратно в содержание | WKE1: Обратно в содержание | WKG1: Обратно в содержание | WKI1: Обратно в содержание | WKK1: Обратно в содержание | WKM1: Обратно в содержание | WKO1: Обратно в содержание | WKQ1: Обратно в содержание | WKS1: Обратно в содержание | WKU1: Обратно в содержание | WKW1: Обратно в содержание | WKY1: Обратно в содержание | WLA1: Обратно в содержание | WLC1: Обратно в содержание | WLE1: Обратно в содержание | WLG1: Обратно в содержание | WLI1: Обратно в содержание | WLK1: Обратно в содержание | WLM1: Обратно в содержание | WLO1: Обратно в содержание | WLQ1: Обратно в содержание | WLS1: Обратно в содержание | WLU1: Обратно в содержание | WLW1: Обратно в содержание | WLY1: Обратно в содержание | WMA1: Обратно в содержание | WMC1: Обратно в содержание | WME1: Обратно в содержание | WMG1: Обратно в содержание | WMI1: Обратно в содержание | WMK1: Обратно в содержание | WMM1: Обратно в содержание | WMO1: Обратно в содержание | WMQ1: Обратно в содержание | WMS1: Обратно в содержание | WMU1: Обратно в содержание | WMW1: Обратно в содержание | WMY1: Обратно в содержание | WNA1: Обратно в содержание | WNC1: Обратно в содержание | WNE1: Обратно в содержание | WNG1: Обратно в содержание | WNI1: Обратно в содержание | WNK1: Обратно в содержание | WNM1: Обратно в содержание | WNO1: Обратно в содержание | WNQ1: Обратно в содержание | WNS1: Обратно в содержание | WNU1: Обратно в содержание | WNW1: Обратно в содержание | WNY1: Обратно в содержание | WOA1: Обратно в содержание | WOC1: Обратно в содержание | WOE1: Обратно в содержание | WOG1: Обратно в содержание | WOI1: Обратно в содержание | WOK1: Обратно в содержание | WOM1: Обратно в содержание | WOO1: Обратно в содержание | WOQ1: Обратно в содержание | WOS1: Обратно в содержание | WOU1: Обратно в содержание | WOW1: Обратно в содержание | WOY1: Обратно в содержание | WPA1: Обратно в содержание | WPC1: Обратно в содержание | WPE1: Обратно в содержание | WPG1: Обратно в содержание | WPI1: Обратно в содержание | WPK1: Обратно в содержание | WPM1: Обратно в содержание | WPO1: Обратно в содержание | WPQ1: Обратно в содержание | WPS1: Обратно в содержание | WPU1: Обратно в содержание | WPW1: Обратно в содержание | WPY1: Обратно в содержание | WQA1: Обратно в содержание | WQC1: Обратно в содержание | WQE1: Обратно в содержание | WQG1: Обратно в содержание | WQI1: Обратно в содержание | WQK1: Обратно в содержание | WQM1: Обратно в содержание | WQO1: Обратно в содержание | WQQ1: Обратно в содержание | WQS1: Обратно в содержание | WQU1: Обратно в содержание | WQW1: Обратно в содержание | WQY1: Обратно в содержание | WRA1: Обратно в содержание | WRC1: Обратно в содержание | WRE1: Обратно в содержание | WRG1: Обратно в содержание | WRI1: Обратно в содержание | WRK1: Обратно в содержание | WRM1: Обратно в содержание | WRO1: Обратно в содержание | WRQ1: Обратно в содержание | WRS1: Обратно в содержание | WRU1: Обратно в содержание | WRW1: Обратно в содержание | WRY1: Обратно в содержание | WSA1: Обратно в содержание | WSC1: Обратно в содержание | WSE1: Обратно в содержание | WSG1: Обратно в содержание | WSI1: Обратно в содержание | WSK1: Обратно в содержание | WSM1: Обратно в содержание | WSO1: Обратно в содержание | WSQ1: Обратно в содержание | WSS1: Обратно в содержание | WSU1: Обратно в содержание | WSW1: Обратно в содержание | WSY1: Обратно в содержание | WTA1: Обратно в содержание | WTC1: Обратно в содержание | WTE1: Обратно в содержание | WTG1: Обратно в содержание | WTI1: Обратно в содержание | WTK1: Обратно в содержание | WTM1: Обратно в содержание | WTO1: Обратно в содержание | WTQ1: Обратно в содержание | WTS1: Обратно в содержание | WTU1: Обратно в содержание | WTW1: Обратно в содержание | WTY1: Обратно в содержание | WUA1: Обратно в содержание | WUC1: Обратно в содержание | WUE1: Обратно в содержание | WUG1: Обратно в содержание | WUI1: Обратно в содержание | WUK1: Обратно в содержание | WUM1: Обратно в содержание | WUO1: Обратно в содержание | WUQ1: Обратно в содержание | WUS1: Обратно в содержание | WUU1: Обратно в содержание | WUW1: Обратно в содержание | WUY1: Обратно в содержание | WVA1: Обратно в содержание | WVC1: Обратно в содержание | WVE1: Обратно в содержание | WVG1: Обратно в содержание | WVI1: Обратно в содержание | WVK1: Обратно в содержание | WVM1: Обратно в содержание | WVO1: Обратно в содержание | WVQ1: Обратно в содержание | WVS1: Обратно в содержание | WVU1: Обратно в содержание | WVW1: Обратно в содержание | WVY1: Обратно в содержание | WWA1: Обратно в содержание | WWC1: Обратно в содержание | WWE1: Обратно в содержание | WWG1: Обратно в содержание | WWI1: Обратно в содержание | WWK1: Обратно в содержание | WWM1: Обратно в содержание | WWO1: Обратно в содержание | WWQ1: Обратно в содержание | WWS1: Обратно в содержание | WWU1: Обратно в содержание | WWW1: Обратно в содержание | WWY1: Обратно в содержание | WXA1: Обратно в содержание | WXC1: Обратно в содержание | WXE1: Обратно в содержание | WXG1: Обратно в содержание | WXI1: Обратно в содержание | WXK1: Обратно в содержание | WXM1: Обратно в содержание | WXO1: Обратно в содержание | WXQ1: Обратно в содержание | WXS1: Обратно в содержание | WXU1: Обратно в содержание | WXW1: Обратно в содержание | WXY1: Обратно в содержание | WYA1: Обратно в содержание | WYC1: Обратно в содержание | WYE1: Обратно в содержание | WYG1: Обратно в содержание | WYI1: Обратно в содержание | WYK1: Обратно в содержание | WYM1: Обратно в содержание | WYO1: Обратно в содержание | WYQ1: Обратно в содержание | WYS1: Обратно в содержание | WYU1: Обратно в содержание | WYW1: Обратно в содержание | WYY1: Обратно в содержание | WZA1: Обратно в содержание | WZC1: Обратно в содержание | WZE1: Обратно в содержание | WZG1: Обратно в содержание | WZI1: Обратно в содержание | WZK1: Обратно в содержание | WZM1: Обратно в содержание | WZO1: Обратно в содержание | WZQ1: Обратно в содержание | WZS1: Обратно в содержание | WZU1: Обратно в содержание | WZW1: Обратно в содержание | WZY1: Обратно в содержание | XAA1: Обратно в содержание | XAC1: Обратно в содержание | XAE1: Обратно в содержание | XAG1: Обратно в содержание | XAI1: Обратно в содержание | XAK1: Обратно в содержание | XAM1: Обратно в содержание | XAO1: Обратно в содержание | XAQ1: Обратно в содержание | XAS1: Обратно в содержание | XAU1: Обратно в содержание | XAW1: Обратно в содержание | XAY1: Обратно в содержание | XBA1: Обратно в содержание | XBC1: Обратно в содержание | XBE1: Обратно в содержание | XBG1: Обратно в содержание | XBI1: Обратно в содержание | XBK1: Обратно в содержание | XBM1: Обратно в содержание | XBO1: Обратно в содержание | XBQ1: Обратно в содержание | XBS1: Обратно в содержание | XBU1: Обратно в содержание | XBW1: Обратно в содержание | XBY1: Обратно в содержание | XCA1: Обратно в содержание | XCC1: Обратно в содержание | XCE1: Обратно в содержание | XCG1: Обратно в содержание | XCI1: Обратно в содержание | XCK1: Обратно в содержание | XCM1: Обратно в содержание | XCO1: Обратно в содержание | XCQ1: Обратно в содержание | XCS1: Обратно в содержание | XCU1: Обратно в содержание | XCW1: Обратно в содержание | XCY1: Обратно в содержание | XDA1: Обратно в содержание | XDC1: Обратно в содержание | XDE1: Обратно в содержание | XDG1: Обратно в содержание | XDI1: Обратно в содержание | XDK1: Обратно в содержание | XDM1: Обратно в содержание | XDO1: Обратно в содержание | XDQ1: Обратно в содержание | XDS1: Обратно в содержание | XDU1: Обратно в содержание | XDW1: Обратно в содержание | XDY1: Обратно в содержание | XEA1: Обратно в содержание | XEC1: Обратно в содержание | XEE1: Обратно в содержание | XEG1: Обратно в содержание | XEI1: Обратно в содержание | XEK1: Обратно в содержание | XEM1: Обратно в содержание | XEO1: Обратно в содержание | XEQ1: Обратно в содержание | XES1: Обратно в содержание | XEU1: Обратно в содержание | XEW1: Обратно в содержание | XEY1: Обратно в содержание | XFA1: Обратно в содержание | XFC1: Обратно в содержание
A2: 2-таблица: 2026-жылдын январь-февралында рыноктук кызмат көрсөтүүлөрдүн аймактар
A3: боюнча көлөмү
A4: Объем рыночных услуг по территории в январе- феврале 2026г.
B6: Млн. сом | D6: Пайыз менен
B7: бардыгы всего | C7: анын ичинде калкка в т.ч. населению | D7: В процентах
D8: мурунку жылдын тийиштүү мезгилине карата | F8: жыйынтыкка карата
D9: соответствующему периоду предыдущего года | F9: к итогу
D10: бардыгы всего | E10: анын ичинде элге в т.ч. населению | F10: бардыгы всего | G10: анын ичинде элге в т.ч. населению
A12: Кыргыз Республикасы | B12: 437 049,7 | C12: 198 388,6 | D12: 110.2 | E12: 113.5 | F12: 100.0 | G12: 100.0 | H12: Кыргызская Республика
A13: Баткен облусу | B13: 6,494.1 | C13: 5,448.0 | D13: 111.8 | E13: 103.8 | F13: 1.5 | G13: 2.7 | H13: Баткенская область
A14: Жалал-Абад облусу | B14: 17,201.5 | C14: 12,916.1 | D14: 124.9 | E14: 111.4 | F14: 3.9 | G14: 6.5 | H14: Джалал-Абадская область
A15: Ысык-Көл облусу | B15: 7,420.5 | C15: 6,242.4 | D15: 119.1 | E15: 120.2 | F15: 1.7 | G15: 3.1 | H15: Иссык-Кульская область
A16: Нарын облусу | B16: 3,854.9 | C16: 3,413.5 | D16: 110.1 | E16: 100.4 | F16: 0.9 | G16: 1.7 | H16: Нарынская область
A17: Ош облусу | B17: 18,349.6 | C17: 15,137.0 | D17: 117.0 | E17: 109.4 | F17: 4.2 | G17: 7.6 | H17: Ошская область
A18: Талас облусу | B18: 4,163.5 | C18: 2,793.7 | D18: 112.3 | E18: 115.3 | F18: 1.0 | G18: 1.4 | H18: Таласская область
A19: Чүй облусу | B19: 37,037.3 | C19: 25,986.9 | D19: 67.7 | E19: 109.8 | F19: 8.5 | G19: 13.1 | H19: Чуйская область
A20: Бишкек ш. | B20: 314,810.8 | C20: 107,148.5 | D20: 117.7 | E20: 116.8 | F20: 72.0 | G20: 54.0 | H20: г.Бишкек
A21: Ош ш. | B21: 27,717.5 | C21: 19,302.5 | D21: 122.0 | E21: 110.3 | F21: 6.3 | G21: 9.7 | H21: г.Ош

Sheet таб3
E1: Обратно в содержание
A2: 3-таблица: Январь-февралында дүң жана чекене соода сооданын,
A3: автоунааларды жана мотоциклдерди оңдоонун жүгүртүүсү
A4: Оборот оптовой и розничной торговли, ремонта автомобилей
A5: и мотоциклов в январе-феврале
B6: Млн. сом | D6: Мурунку жылдын тийиштүү мезгилине карата пайыз менен
D7: В процентах к соответствующему периоду предыдущего года
B8: 2025 | C8: 2026 | D8: 2025 | E8: 2026
A10: Бардыгы | B10: 250,263.2 | C10: 303,397.2 | D10: 126.8 | E10: 111.4 | F10: Всего
A11: анын ичинде: | F11: в том числе:
A12: автоунаалардын жана мотоциклдердин, автотетиктердин, түйүндөрдүн жана шаймандардын соодасы | B12: 6,907.4 | C12: 8,960.8 | D12: 143.7 | E12: 126.6 | F12: торговли автомобилями и мотоциклами, авто деталями, узлами
A13: автоунааны техникалык жактан тейлөө жана оңдоо | B13: 720.6 | C13: 948.8 | D13: 77.8 | E13: 123.5 | F13: технического обслуживания и ремонта автомобилей
A14: автоунаалардын жана мотоциклдердин соодасын кошпогондогу дүң соода | B14: 145,378.8 | C14: 171,908.0 | D14: 148.8 | E14: 109.1 | F14: оптовой торговли, кроме торговли автомобилями и мотоциклами
A15: мотор майын чекене сатуу | B15: 22,931.5 | C15: 29,512.3 | D15: 117.3 | E15: 112.2 | F15: розничной торговли моторным топливом
A16: автоунаалардын жана мотоциклдердин соодасын кошпогондогу чекене соода | B16: 74,324.8 | C16: 92,067.3 | D16: 107.1 | E16: 114.3 | F16: розничной торговли, кроме торговли автомобилями и мотоциклами

Sheet таб 4
E1: Обратно в содержание
A2: 4-таблица: Январь-февралында аймактар боюнча дүң жана чекене сооданын, автоунааларды жана мотоциклдерди оңдоонун жүгүртүүсү
A3: Оборот оптовой и розничной торговли, ремонта автомобилей и мотоциклов по территории в январе-феврале
B5: Млн. сом | D5: Мурунку жылдын тийиштүү мезгилине карата пайыз менен
D6: В процентах к соответствующему периоду предыдущего года
B7: 2025 | C7: 2026 | D7: 2025 | E7: 2026
A9: Кыргыз Республикасы | B9: 250,263.2 | C9: 303,397.2 | D9: 126.8 | E9: 111.4 | F9: Кыргызская Республика
A10: Ысык-Көл облусу | B10: 4,056.2 | C10: 5,583.2 | D10: 108.8 | E10: 122.0 | F10: Исcык-Кульская область
A11: Жалал-Абад облусу | B11: 9,822.2 | C11: 13,914.6 | D11: 104.6 | E11: 131.1 | F11: Джалал-Абадская область
A12: Нарын облусу | B12: 1,952.3 | C12: 2,413.3 | D12: 120.0 | E12: 112.6 | F12: Нарынская область
A13: Баткен облусу | B13: 3,808.8 | C13: 4,781.4 | D13: 110.8 | E13: 113.0 | F13: Баткенская область
A14: Ош облусу | B14: 12,526.0 | C14: 16,096.0 | D14: 126.1 | E14: 118.3 | F14: Ошская область
A15: Талас облусу | B15: 2,219.6 | C15: 2,744.5 | D15: 115.1 | E15: 114.2 | F15: Таласская область
A16: Чүй облусу | B16: 46,602.8 | C16: 33,374.1 | D16: 166.3 | E16: 65.6 | F16: Чуйская область
A17: Бишкек ш. | B17: 153,808.0 | C17: 203,093.2 | D17: 108.7 | E17: 121.8 | F17: г.Бишкек
A18: Ош ш. | B18: 15,467.3 | C18: 21,396.9 | D18: 125.2 | E18: 124.8 | F18: г.Ош

Sheet таб 5
E1: Обратно в содержание
A2: 5-таблица: Январь-февралында мотор майларын чекене сатуунун аймактар боюнча
A3: жүгүртүлүшү
A4: Оборот розничной торговли моторным топливом по территории
A5: в январе-феврале
B7: Млн. сом | D7: Мурунку жылдын тийиштүү мезгилине карата пайыз менен
D8: В процентах к соответствующему периоду предыдущего года
B9: 2025 | C9: 2026 | D9: 2025 | E9: 2026
A11: Кыргыз Республикасы | B11: 22,931.5 | C11: 29,512.3 | D11: 117.3 | E11: 112.2 | F11: Кыргызская Республика
A12: Ысык-Көл облусу | B12: 1,644.4 | C12: 2,268.1 | D12: 82.2 | E12: 120.8 | F12: Исcык-Кульская область
A13: Жалал-Абад облусу | B13: 1,547.2 | C13: 2,053.2 | D13: 137.5 | E13: 115.8 | F13: Джалал-Абадская область
A14: Нарын облусу | B14: 785.3 | C14: 739.7 | D14: 123.7 | E14: 81.6 | F14: Нарынская область
A15: Баткен облусу | B15: 1,501.0 | C15: 1,756.3 | D15: 114.4 | E15: 100.6 | F15: Баткенская область
A16: Ош облусу | B16: 1,773.3 | C16: 2,799.8 | D16: 147.8 | E16: 138.7 | F16: Ошская область
A17: Талас облусу | B17: 331.9 | C17: 429.9 | D17: 121.4 | E17: 112.5 | F17: Таласская область
A18: Чүй облусу | B18: 6,402.3 | C18: 7,366.8 | D18: 117.5 | E18: 101.1 | F18: Чуйская область
A19: Бишкек ш. | B19: 7,029.3 | C19: 9,534.0 | D19: 128.6 | E19: 117.7 | F19: г.Бишкек
A20: Ош ш. | B20: 1,916.8 | C20: 2,564.5 | D20: 221.0 | E20: 115.5 | F20: г.Ош

Sheet таб 6
E1: Обратно в содержание
A2: 6-таблица: Автоунааларды жана мотоциклдерди сатууну кошпогондогу чекене сооданын
A3: жүгүртүлүшү
A4: Оборот розничной торговли, кроме торговли автомобилями и мотоциклами
B6: Млн. сом | D6: Мурунку жылдын тийиштүү мезгилине карата пайыз менен
D7: В процентах к соответствующему периоду предыдущего года
B8: 2025 | C8: 2026 | D8: 2025 | E8: 2026
A10: Январь | B10: 37,806.20 | C10: 46,634.10 | D10: 139.1 | E10: 113.9 | F10: Январь
A11: Февраль | B11: 36,518.60 | C11: 45,433.20 | D11: 123.3 | E11: 114.6 | F11: Февраль

Sheet таб 7
E1: Обратно в содержание
A2: 7-таблица: Январь-февралында автоунааларды жана мотоциклдерди сатууну
A3: кошпогондогу чекене сооданын аймактар боюнча жүгүртүлүшү
A4: Оборот розничной торговли, кроме торговли автомобилями и мотоциклами
A5: по территории в январе-феврале
B7: Млн. сом | D7: Мурунку жылдын тийиштүү мезгилине карата пайыз менен В процентах к соответствующему периоду предыдущего года
B8: 2025 | C8: 2026 | D8: 2025 | E8: 2026
A10: Кыргыз Республикасы | B10: 74,324.8 | C10: 92,067.3 | D10: 107.1 | E10: 114.3 | F10: Кыргызская Республика
A11: Ысык-Көл облусу | B11: 1,620.5 | C11: 2,281.6 | D11: 132.3 | E11: 125.5 | F11: Исcык-Кульская область
A12: Жалал-Абад облусу | B12: 6,462.8 | C12: 7,988.7 | D12: 98.2 | E12: 115.4 | F12: Джалал-Абадская область
A13: Нарын облусу | B13: 981.6 | C13: 1,410.2 | D13: 108.5 | E13: 133.7 | F13: Нарынская область
A14: Баткен облусу | B14: 1,915.3 | C14: 2,124.1 | D14: 104.1 | E14: 102.5 | F14: Баткенская область
A15: Ош облусу | B15: 9,476.2 | C15: 10,679.8 | D15: 122.8 | E15: 104.7 | F15: Ошская область
A16: Талас облусу | B16: 1,223.8 | C16: 1,500.4 | D16: 113.7 | E16: 114.4 | F16: Таласская область
A17: Чүй облусу | B17: 11,932.3 | C17: 14,873.7 | D17: 136.7 | E17: 115.3 | F17: Чуйская область
A18: Бишкек ш. | B18: 31 587,0 | C18: 39,769.3 | D18: 130.8 | E18: 116.2 | F18: г.Бишкек
A19: Ош ш. | B19: 9,125.3 | C19: 11,439.5 | D19: 138.5 | E19: 114.0 | F19: г.Ош

Sheet таб 8,9
E1: Обратно в содержание
A2: 8-таблица: Тамактануу ишканаларынын жүгүртүүсүн кошкондогу чекене
A3: сооданын жүгүртүлүшү
A4: Оборот розничной торговли, включая оборот предприятий питания
B6: Азык-түлүк товарлары Продовольственные товары | E6: Азык-түлүк эмес товарлар Непродовольственные товары
B7: млн.сом | C7: пайыз менен в процентах | E7: млн.сом | F7: пайыз менен в процентах
C8: мурунку жылдын тийиштүү айына карата | D8: мурунку айга карата | F8: мурунку жылдын тийиштүү айына каратта | G8: мурунку айга карата
C9: к соответст-вующему месяцу предыдущего года | D9: к предыдущему месяцу | F9: к соответст-вующему месяцу предыдущего года | G9: к предыдущему месяцу
A11: Январь | B11: 34,689.7 | C11: 100.7 | D11: 74.3 | E11: 33,329.4 | F11: 130.7 | G11: 24.3
A12: Февраль | B12: 34,633.9 | C12: 104.3 | D12: 97.4 | E12: 34,495.7 | F12: 133.7 | G12: 95.7
A14: 9-таблица: Январь-февралында тамактануу ишканаларынын жүгүртүүсүн кошкондогу
A15: азык-түлүк жана азык-түлүк эмес товарлардын чекене сооданын жүгүртүлүшү
A16: Оборот розничной торговли, включая оборот предприятий питания,
A17: продовольственными и непродовольственными товарами в январе-феврале
B19: Млн. сом | D19: мурунку жылдын тийиштүү мезгилине карата пайыз менен в процентах к соответствующему периоду предыдущего года
B20: 2025 | C20: 2026 | D20: 2025 | F20: 2026
A21: Бардыгы Всего | B21: 109,570.6 | C21: 137,148.7 | D21: 126.0 | F21: 117.6
B22: 61,800.6 | C22: 69,323.7 | L22: 47,770.00 | M22: 67,825.00 | N22: 101.8 | O22: 137.2
A23: азык-түлүк товарлары продовольственные товары | B23: 61,800.6 | C23: 69,323.7 | D23: 158.0 | F23: 102.5
A24: азык-түлүк эмес товарлар непродовольственные товары | B24: 47,770.0 | C24: 67,825.0 | D24: 101.8 | F24: 137.2

Sheet таб 10
A1: 10-таблица: 2026-жылдын январь-февралында тамактануу ишканаларынын жүгүртүүсүн
A2: кошкондогу сатуунун каналдары боюнча чекене сооданын жүгүртүлүшү
A3: Оборот розничной торговли, включая оборот предприятий питания,
A4: по каналам реализации в январе -феврале 2026 года
B6: Млн. сом | C6: Мурунку жылдын тийиштүү мезгилине карата | D6: Жыйынтыкка карата
C7: пайыз менен в процентах к
C8: соответствующему периоду предыдущего года | D8: итогу
A10: Бардыгы | B10: 137,148.7 | C10: 114.5 | D10: 100.0 | E10: Всего
A11: анын ичинде: | E11: в том числе:
A12: соода уюмдары | B12: 103,059.6 | C12: 127.1 | D12: 75.1 | E12: торгующих организаций
A13: буюм-терим, аралаш жана азык-түлүк базарлары | B13: 34,089.1 | C13: 90.5 | D13: 24.9 | E13: вещевых, смешанныхи продовольственных рынков

Sheet таб 11.
E1: Обратно в содержание
A2: 11-таблица: Январь-февралында мейманканалардын жана ресторандардын кызмат
A3: көрсөтүүлөрүнүн көлөмү
A4: Объем услуг, предоставленных гостиницами и ресторанами
A5: в январе-феврале
B6: Млн. сом | D6: Мурунку жылдын тийиштүү мезгилине карата пайыз менен В процентах к соответствующему периоду предыдущего года
B7: 2024 | C7: 2025 | D7: 2024 | E7: 2025
A9: Бардыгы | B9: 4,221.9 | C9: 6,174.7 | D9: 116.8 | E9: 137.2 | F9: Всего
A10: анын ичинде: | F10: в том числе:
A11: мейманканалар, ошондой эле туристтик жашоо жана кыска мөөнөткө жашоо үчүн башка орундар | B11: 536.7 | C11: 716.6 | D11: 125 | E11: 130.9 | F11: гостиницами, а также прочими местами для туристического и краткосрочного проживания
A12: ресторандар, барлар, тамак-аш менен камсыздоо боюнча мобилдүү жана башка кызмат көрсөтүүлөр | B12: 3,685.20 | C12: 5,458.10 | D12: 116.1 | E12: 138.1 | F12: ресторанами, барами, мобильных и прочих услуг по обеспечению пищей

Sheet таб 12.
E1: Обратно в содержание
A2: 12-таблица: Январь-февралында мейманканалардын жана ресторандардын
A3: кызмат көрсөтүүлөрүнүн аймактар боюнча көлөмү
A4: Объем услуг, предоставленных гостиницами и ресторанами
A5: по территории в январе-феврале
B7: Млн. сом | D7: Мурунку жылдын тийиштүү мезгилине карата пайыз менен В процентах к соответствующему периоду предыдущего года
B8: 2024 | C8: 2025 | D8: 2024 | E8: 2025
A10: Кыргыз Республикасы | B10: 6,117.4 | C10: 7,614.3 | D10: 119.4 | E10: 113.2 | F10: Кыргызская Республика
A11: Баткен облусу | B11: 183.4 | C11: 308.7 | D11: 150.1 | E11: 150.3 | F11: Баткенская область
A12: Жалал-Абад облусу | B12: 279.8 | C12: 280.9 | D12: 103.7 | E12: 91.4 | F12: Джалал-Абадская область
A13: Ысык-Көл облусу | B13: 19.9 | C13: 28.4 | D13: 287.9 | E13: 133.1 | F13: Исcык-Кульская область
A14: Нарын облусу | B14: 292.4 | C14: 325.8 | D14: 96.6 | E14: 101.9 | F14: Нарынская область
A15: Ош облусу | B15: 351.9 | C15: 389.2 | D15: 128.7 | E15: 101.8 | F15: Ошская область
A16: Талас облусу | B16: 61.1 | C16: 75.5 | D16: 113.3 | E16: 115.3 | F16: Таласская область
A17: Чүй облусу | B17: 476.2 | C17: 544.3 | D17: 153.8 | E17: 103.2 | F17: Чуйская область
A18: Бишкек ш. | B18: 3,711.6 | C18: 4,827.3 | D18: 147.7 | E18: 118.4 | F18: г.Бишкек
A19: Ош ш. | B19: 741.1 | C19: 834.2 | D19: 127.1 | E19: 102.2 | F19: г.Ош

Sheet таб 13.
E1: Обратно в содержание
A2: 13-таблица: Январь-февралында транспорттун бардык түрү менен
A3: жүктөрдүн ташылышы
A4: Перевозки грузов всеми видами транспорта в январе -феврале
B7: Млн. сом | D7: Мурунку жылдын тийиштүү мезгилине карата пайыз менен В процентах к соответствующему периоду предыдущего года
B8: 2024 | C8: 2025 | D8: 2024 | E8: 2025
A10: Бардыгы | B10: 8,576.4 | C10: 9,181.5 | D10: 110.3 | E10: 107.1 | F10: Всего
A11: Жерде жүрүүчү транспорт | F11: Наземный транспорт
A12: Темир жол | B12: 1,700.4 | C12: 1,760.5 | D12: 125.5 | E12: 103.5 | F12: Железнодорожный транспорт
A13: жөнөтүү | B13: 711.5 | C13: 641.9 | D13: 146.5 | E13: 90.2 | F13: отправление
A14: келүү | B14: 1,436.9 | C14: 1,447.9 | D14: 132.1 | E14: 132.1 | F14: прибытие
A15: Автоунаа | B15: 6,738.8 | C15: 7,283.2 | D15: 107.0 | E15: 108.1 | F15: Автомобильный
A16: Түтүк өткөрүү транспорту | B16: 133.5 | C16: 134.8 | D16: 114.0 | E16: 101.0 | F16: Трубопроводный транспорт
A17: Аба транспорту | B17: 3.7 | C17: 3.0 | D17: 127.6 | E17: 81.1 | F17: Воздушный транспорт

Sheet таб 14.
E1: Обратно в содержание
A2: 14-таблица: Январь-февралында аймактар боюнча транспорттун бардык
A3: түрү менен жүктөрдүн ташылышы
A4: Перевозки грузов всеми видами транспорта по территории
A5: в январе-феврале
B7: Млн. сом | D7: Мурунку жылдын тийиштүү мезгилине карата пайыз менен В процентах к соответствующему периоду предыдущего года
B8: 2024 | C8: 2025 | D8: 2024 | E8: 2025
A10: Кыргыз Республикасы | B10: 8,576.4 | C10: 9,181.5 | D10: 110.3 | E10: 107.1 | F10: Кыргызская Республика
A11: Баткен облусу | B11: 230.1 | C11: 241.5 | D11: 102.6 | E11: 104.9 | F11: Баткенская область
A12: Жалал-Абад облусу | B12: 242.0 | C12: 250.5 | D12: 103.9 | E12: 103.5 | F12: Джалал-Абадская область
A13: Ысык-Көл облусу | B13: 309.4 | C13: 343.6 | D13: 102.6 | E13: 111.1 | F13: Исcык-Кульская область
A14: Нарын облусу | B14: 262.9 | C14: 275.0 | D14: 114.4 | E14: 104.6 | F14: Нарынская область
A15: Ош облусу | B15: 608.2 | C15: 664.7 | D15: 103.0 | E15: 109.3 | F15: Ошская область
A16: Талас облусу | B16: 2,708.1 | C16: 2,994.9 | D16: 120.3 | E16: 110.6 | F16: Таласская область
A17: Чүй облусу | B17: 1,350.6 | C17: 1,412.4 | D17: 101.5 | E17: 104.6 | F17: Чуйская область
A18: Бишкек ш. | B18: 2,751.1 | C18: 2,864.9 | D18: 109.6 | E18: 104.1 | F18: г.Бишкек
A19: Ош ш. | B19: 114.0 | C19: 134.0 | D19: 107.8 | E19: 117.5 | F19: г.Ош

Sheet таб 15.
E1: Обратно в содержание
A2: 15-таблица: Январь-февралында транспорттун бардык түрү менен жүк ташуунун
A3: жүгүртүлүшүнүн көлөмү
A4: Объем грузооборота, выполненного всеми видами транспорта
A5: в январе-феврале
B7: Млн. сом | D7: Мурунку жылдын тийиштүү мезгилине карата пайыз менен В процентах к соответствующему периоду предыдущего года
B8: 2024 | C8: 2025 | D8: 2024 | E8: 2025
A10: Бардыгы | B10: 582.1 | C10: 596.3 | D10: 109.6 | E10: 102.4 | F10: Всего
A11: Жерде жүрүүчү транспорт | F11: Наземный транспорт
A12: Темир жол | B12: 207.3 | C12: 203.3 | D12: 127.9 | E12: 98.1 | F12: Железнодорожный
A13: Автоунаа | B13: 235.8 | C13: 264.4 | D13: 107.4 | E13: 112.1 | F13: Автомобильный
A14: Түтүк өткөрүү транспорту | B14: 96.7 | C14: 97.6 | D14: 113.9 | E14: 100.9 | F14: Трубопроводный транспорт
A15: Аба транспорту | B15: 42.3 | C15: 31 | D15: 65.7 | E15: 73.3 | F15: Воздушный транспорт

Sheet таб 16.
E1: Обратно в содержание
A2: 16-таблица: Январь-февралында транспорттун бардык түрү менен
A3: жүргүнчүлөрдүн ташылышы
A4: Перевозки пассажиров всеми видами транспорта в январе-феврале
B7: Млн. сом | D7: Мурунку жылдын тийиштүү мезгилине карата пайыз менен В процентах к соответствующему периоду предыдущего года
B8: 2025 | C8: 2026 | D8: 2025 | E8: 2026
A10: Бардыгы | B10: 110,063.4 | C10: 116,066.4 | D10: 118.9 | E10: 105.5 | F10: Всего
A11: Жерде жүрүүчү транспорт | F11: Наземный транспорт
A12: Темир жол | B12: 41.7 | C12: 53.4 | D12: 123.0 | E12: 128.1 | F12: Железнодорожный
A13: Автобустар, микроавтобустар | B13: 102,944.1 | C13: 108,787.4 | D13: 124.1 | E13: 105.7 | F13: Автобусы
A14: Такси | B14: 5,704.0 | C14: 6,113.7 | D14: 101.4 | E14: 107.2 | F14: Такси
A15: Троллейбустар | B15: 1,120.0 | C15: 841.1 | D15: 29.4 | E15: 75.1 | F15: Троллейбусы
A16: Аба транспорту | B16: 253.6 | C16: 270.8 | D16: 142.5 | E16: 106.8 | F16: Воздушный транспорт

Sheet таб 17.
E1: Обратно в содержание
A2: 17-таблица: Январь-февралында аймактар боюнча транспорттун бардык түрү
A3: менен жүргүнчүлөрдүн ташылышы
A4: Перевозки пассажиров всеми видами транспорта по территории
A5: в январе-феврале
B7: Млн. сом | D7: Мурунку жылдын тийиштүү мезгилине карата пайыз менен В процентах к соответствующему периоду предыдущего года
B8: 2025 | C8: 2026 | D8: 2025 | E8: 2026
A10: Кыргыз Республикасы | B10: 110,063.4 | C10: 116,066.4 | D10: 118.9 | E10: 105.5 | F10: Кыргызская Республика
A11: Баткен облусу | B11: 2,099.5 | C11: 2,429.1 | D11: 112.6 | E11: 115.7 | F11: Баткенская область
A12: Жалал-Абад облусу | B12: 3,837.0 | C12: 3,893.3 | D12: 114.2 | E12: 101.5 | F12: Джалал-Абадская область
A13: Ысык-Көл облусу | B13: 1,825.5 | C13: 2,427.2 | D13: 107.2 | E13: 133.0 | F13: Исcык-Кульская область
A14: Нарын облусу | B14: 1,655.2 | C14: 1,902.9 | D14: 113.2 | E14: 115.0 | F14: Нарынская область
A15: Ош облусу | B15: 3,266.8 | C15: 3,575.3 | D15: 107.0 | E15: 109.4 | F15: Ошская область
A16: Талас облусу | B16: 1,247.0 | C16: 1,295.6 | D16: 107.8 | E16: 103.9 | F16: Таласская область
A17: Чүй облусу | B17: 21,636.0 | C17: 22,303.7 | D17: 106.0 | E17: 103.1 | F17: Чуйская область
A18: Бишкек ш. | B18: 69,732.2 | C18: 73,364.0 | D18: 125.9 | E18: 105.2 | F18: г.Бишкек
A19: Ош ш. | B19: 4,764.2 | C19: 4,875.3 | D19: 113.9 | E19: 102.3 | F19: г.Ош

Sheet таб 18.
E1: Обратно в содержание
A2: 18-таблица: Январь-февралында аймактар боюнча жүргүнчүлөрдүн автобустар,
A3: микроавтобустар менен ташылышы
A4: Перевозки пассажиров автобусами и микроавтобусами
A5: по территории в январе-феврале
B7: Млн. сом | D7: Мурунку жылдын тийиштүү мезгилине карата пайыз менен В процентах к соответствующему периоду предыдущего года
B8: 2025 | C8: 2026 | D8: 2025 | E8: 2026
A10: Кыргыз Республикасы | B10: 102,944.1 | C10: 108,787.4 | D10: 124.1 | E10: 105.7 | F10: Кыргызская Республика
A11: Баткен облусу | B11: 2,028.2 | C11: 2,341.8 | D11: 113.0 | E11: 115.5 | F11: Баткенская область
A12: Жалал-Абад облусу | B12: 3,617.0 | C12: 3,661.5 | D12: 115.0 | E12: 101.2 | F12: Джалал-Абадская область
A13: Ысык-Көл облусу | B13: 1,570.4 | C13: 2,137.7 | D13: 107.9 | E13: 136.1 | F13: Исcык-Кульская область
A14: Нарын облусу | B14: 369.0 | C14: 493.3 | D14: 117.1 | E14: 133.7 | F14: Нарынская область
A15: Ош облусу | B15: 2,847.5 | C15: 2,904.0 | D15: 106.5 | E15: 102.0 | F15: Ошская область
A16: Талас облусу | B16: 959.1 | C16: 993.4 | D16: 105.1 | E16: 103.6 | F16: Таласская область
A17: Чүй облусу | B17: 20,983.8 | C17: 21,628.9 | D17: 106.1 | E17: 103.1 | F17: Чуйская область
A18: Бишкек ш. | B18: 66,966.0 | C18: 70,639.8 | D18: 135.4 | E18: 105.5 | F18: г.Бишкек
A19: Ош ш. | B19: 3,603.1 | C19: 3,987.0 | D19: 105.0 | E19: 110.7 | F19: г.Ош

Sheet таб 19.
E1: Обратно в содержание
A2: 19-таблица: Январь-февралында транспорттун бардык түрү менен жүргүнчүлөрдү
A3: ташуунун жүгүртүү көлөмү
A4: Объем пассажирооборота, выполненного всеми видами транспорта
A5: в январе-феврале
B7: Млн. сом | D7: Мурунку жылдын тийиштүү мезгилине карата пайыз менен В процентах к соответствующему периоду предыдущего года
B8: 2025 | C8: 2026 | D8: 2025 | E8: 2026
A10: Бардыгы | B10: 1,642.4 | C10: 1,716.2 | D10: 107.8 | E10: 104.5 | F10: Всего
A11: Жерде жүрүүчү транспорт | F11: Наземный транспорт
A12: Темир жол | B12: 3.1 | C12: 4.0 | D12: 124.0 | E12: 129.0 | F12: Железнодорожный
A13: Автобустар, микроавтобустар | B13: 1,148.0 | C13: 1,203.2 | D13: 104.8 | E13: 104.8 | F13: Автобусы
A14: Троллейбустар | B14: 170.5 | C14: 197.8 | D14: 116.3 | E14: 116.0 | F14: Троллейбусы
A15: Такси | B15: 4.7 | C15: 3.5 | D15: 30.1 | E15: 74.5 | F15: Такси
A16: Аба транспорту | B16: 316.1 | C16: 307.7 | D16: 119.9 | E16: 97.3 | F16: Воздушный транспорт

Sheet таб 20.
D1: Обратно в содержание
A2: 20-таблица: 2026-жылдын январь-февралында дүң жана чекене сооданын, автоунааларды
A4: Оборот оптовой и розничной торговли, ремонта автомобилей и мотоциклов
A5: в январе - феврале 2026г.
B6: Млн. сом Млн сомов | C6: Пайыз менен В процентах
C7: жыйынтыкка карата1 к итогу всего1 | D7: мурунку жылдын тийиштүү мезгилине карата к соответ-ствующему периоду предыдущего года
B9: Кыргыз Республикасы
A10: Бардыгы | B10: 303,397.2 | C10: 100.0 | D10: 111.4 | E10: Всего
A11: Автоунааларды жана мотоциклдерди, тетиктерин жана шаймандарын сатуу | B11: 8,960.8 | C11: =B11/B10*100 -> 3.0 | D11: 126.6 | E11: Торговля автомобилями и мотоциклами, автодеталями, узлами и принадлежностями
A12: Автоунааны техникалык жактан тейлөө жана оңдоо | B12: 948.8 | C12: =B12/B10*100 -> 0.3 | D12: 123.5 | E12: Техническое обслуживание и ремонт автомобилей
A13: Дүң сода2 | B13: 171,908.0 | C13: =B13/B10*100 -> 56.7 | D13: 109.1 | E13: Оптовая торговля2
A14: Мотор майын чекене сатуу | B14: 29,512.3 | C14: =B14/B10*100 -> 9.7 | D14: 112.2 | E14: Розничная торговля моторным топливом
A15: Чекене соода3 | B15: 92,067.3 | C15: =B15/B10*100 -> 30.3 | D15: 114.3 | E15: Розничная торговля3
B16: Баткен облусу
A17: Бардыгы | B17: 4,781.4 | C17: =B17/B10*100 -> 1.6 | D17: 113.0 | E17: Всего
A18: Автоунааларды жана мотоциклдерди, тетиктерин жана шаймандарын сатуу | B18: 8.3 | C18: =B18/B17*100 -> 0.2 | D18: 102.9 | E18: Торговля автомобилями и мотоциклами, автодеталями, узлами и принадлежностями
A19: Автоунааны техникалык жактан тейлөө жана оңдоо | B19: 31.0 | C19: =B19/B17*100 -> 0.6 | D19: 100.2 | E19: Техническое обслуживание и ремонт автомобилей
A20: Дүң сода2 | B20: 861.7 | C20: =B20/B17*100 -> 18.0 | D20: 222.6 | E20: Оптовая торговля2
A21: Мотор майын чекене сатуу | B21: 1,756.3 | C21: =B21/B17*100 -> 36.7 | D21: 100.6 | E21: Розничная торговля моторным топливом
A22: Чекене соода3 | B22: 2,124.1 | C22: =B22/B17*100 -> 44.4 | D22: 102.5 | E22: Розничная торговля3
B23: Жалал-Абад облусу
A24: Бардыгы | B24: 13,914.6 | C24: =B24/B10*100 -> 4.6 | D24: 131.1 | E24: Всего
A25: Автоунааларды жана мотоциклдерди, тетиктерин жана шаймандарын сатуу | B25: 94.7 | C25: =B25/B24*100 -> 0.7 | D25: 64.3 | E25: Торговля автомобилями и мотоциклами, автодеталями, узлами и принадлежностями
A26: Автоунааны техникалык жактан тейлөө жана оңдоо | B26: 50.0 | C26: =B26/B24*100 -> 0.4 | D26: 122.9 | E26: Техническое обслуживание и ремонт автомобилей
A27: Дүң сода2 | B27: 3,728.0 | C27: =B27/B24*100 -> 26.8 | D27: 213.9 | E27: Оптовая торговля2
A28: Мотор майын чекене сатуу | B28: 2,053.2 | C28: =B28/B24*100 -> 14.8 | D28: 115.8 | E28: Розничная торговля моторным топливом
A29: Чекене соода3 | B29: 7,988.7 | C29: =B29/B24*100 -> 57.4 | D29: 115.4 | E29: Розничная торговля3
B30: Ысык-Көл облусу
A31: Бардыгы | B31: 5,583.2 | C31: 1.8 | D31: 122.0 | E31: Всего
A32: Автоунааларды жана мотоциклдерди, тетиктерин жана шаймандарын сатуу | B32: 72.1 | C32: 1.3 | D32: 121.5 | E32: Торговля автомобилями и мотоциклами, автодеталями, узлами и принадлежностями
A33: Автоунааны техникалык жактан тейлөө жана оңдоо | B33: 6.2 | C33: 0.1 | D33: 126.8 | E33: Техническое обслуживание и ремонт автомобилей
A34: Дүң сода2 | B34: 955.2 | C34: 17.1 | D34: 117.0 | E34: Оптовая торговля2
A35: Мотор майын чекене сатуу | B35: 2,268.1 | C35: 40.6 | D35: 120.8 | E35: Розничная торговля моторным топливом
A36: Чекене соода3 | B36: 2,281.6 | C36: 40.9 | D36: 125.5 | E36: Розничная торговля3
B37: Нарын облусу
A38: Бардыгы | B38: 2,413.3 | C38: =B38/B10*100 -> 0.8 | D38: 112.6 | E38: Всего
A39: Автоунааларды жана мотоциклдерди, тетиктерин жана шаймандарын сатуу | B39: 10.5 | C39: =B39/B38*100 -> 0.4 | D39: 166.0 | E39: Торговля автомобилями и мотоциклами, автодеталями, узлами и принадлежностями
A40: Автоунааны техникалык жактан тейлөө жана оңдоо | B40: 6.2 | C40: =B40/B38*100 -> 0.3 | D40: 149.7 | E40: Техническое обслуживание и ремонт автомобилей
A41: Дүң сода2 | B41: 246.7 | C41: =B41/B38*100 -> 10.2 | D41: 130.9 | E41: Оптовая торговля2
A42: Мотор майын чекене сатуу | B42: 739.7 | C42: =B42/B38*100 -> 30.7 | D42: 81.6 | E42: Розничная торговля моторным топливом
A43: Чекене соода3 | B43: 1,410.2 | C43: =B43/B38*100 -> 58.4 | D43: 133.7 | E43: Розничная торговля3
A44: Ош облусу
A45: Бардыгы | B45: 16,096.0 | C45: =B45/B10*100 -> 5.3 | D45: 118.3 | E45: Всего
A46: Автоунааларды жана мотоциклдерди, тетиктерин жана шаймандарын сатуу | B46: 45.6 | C46: =B46/B45*100 -> 0.3 | D46: 103.3 | E46: Торговля автомобилями и мотоциклами, автодеталями, узлами и принадлежностями
A47: Автоунааны техникалык жактан тейлөө жана оңдоо | B47: 48.4 | C47: =B47/B45*100 -> 0.3 | D47: 102.0 | E47: Техническое обслуживание и ремонт автомобилей
A48: Дүң сода2 | B48: 2,522.4 | C48: =B48/B45*100 -> 15.7 | D48: 197.0 | E48: Оптовая торговля2
A49: Мотор майын чекене сатуу | B49: 2,799.8 | C49: =B49/B45*100 -> 17.4 | D49: 138.7 | E49: Розничная торговля моторным топливом
A50: Чекене соода3 | B50: 10,679.8 | C50: =B50/B45*100 -> 66.4 | D50: 104.7 | E50: Розничная торговля3
B51: Талас облусу
A52: Бардыгы | B52: 2,744.5 | C52: =B52/B10*100 -> 0.9 | D52: 114.2 | E52: Всего
A53: Автоунааларды жана мотоциклдерди, тетиктерин жана шаймандарын сатуу | B53: 10.7 | C53: =B53/B52*100 -> 0.4 | D53: 107.0 | E53: Торговля автомобилями и мотоциклами, автодеталями, узлами и принадлежностями
A54: Автоунааны техникалык жактан тейлөө жана оңдоо | B54: 6.2 | C54: =B54/B52*100 -> 0.2 | D54: 106.4 | E54: Техническое обслуживание и ремонт автомобилей
A55: Дүң сода2 | B55: 797.2 | C55: =B55/B52*100 -> 29.0 | D55: 114.7 | E55: Оптовая торговля2
A56: Мотор майын чекене сатуу | B56: 430.0 | C56: =B56/B52*100 -> 15.7 | D56: 112.5 | E56: Розничная торговля моторным топливом
A57: Чекене соода3 | B57: 1,500.4 | C57: =B57/B52*100 -> 54.7 | D57: 114.4 | E57: Розничная торговля3
B58: Чуй облусу
A59: Бардыгы | B59: 33,374.1 | C59: =B59/B10*100 -> 11.0 | D59: 65.6 | E59: Всего
A60: Автоунааларды жана мотоциклдерди, тетиктерин жана шаймандарын сатуу | B60: 752.6 | C60: =B60/B59*100 -> 2.3 | D60: 142.6 | E60: Торговля автомобилями и мотоциклами, автодеталями, узлами и принадлежностями
A61: Автоунааны техникалык жактан тейлөө жана оңдоо | B61: 296.9 | C61: =B61/B59*100 -> 0.9 | D61: 102.4 | E61: Техническое обслуживание и ремонт автомобилей
A62: Дүң сода2 | B62: 10,084.2 | C62: =B62/B59*100 -> 30.2 | D62: 33.9 | E62: Оптовая торговля2
A63: Мотор майын чекене сатуу | B63: 7,366.8 | C63: =B63/B59*100 -> 22.1 | D63: 101.1 | E63: Розничная торговля моторным топливом
A64: Чекене соода3 | B64: 14,873.7 | C64: =B64/B59*100 -> 44.6 | D64: 115.3 | E64: Розничная торговля3
B65: Бишкек шаары
A66: Бардыгы | B66: 203,093.2 | C66: =B66/B10*100 -> 66.9 | D66: 121.8 | E66: Всего
A67: Автоунааларды жана мотоциклдерди, тетиктерин жана шаймандарын сатуу | B67: 7,713.9 | C67: =B67/B66*100 -> 3.8 | D67: 127.6 | E67: Торговля автомобилями и мотоциклами, автодеталями, узлами и принадлежностями
A68: Автоунааны техникалык жактан тейлөө жана оңдоо | B68: 366.1 | C68: =B68/B66*100 -> 0.2 | D68: 167.7 | E68: Техническое обслуживание и ремонт автомобилей
A69: Дүң сода2 | B69: 145,709.9 | C69: =B69/B66*100 -> 71.7 | D69: 123.3 | E69: Оптовая торговля2
A70: Мотор майын чекене сатуу | B70: 9,534.0 | C70: =B70/B66*100 -> 4.7 | D70: 117.7 | E70: Розничная торговля моторным топливом
A71: Чекене соода3 | B71: 39,769.3 | C71: =B71/B66*100 -> 19.6 | D71: 116.2 | E71: Розничная торговля3
B72: Ош шаары
A73: Бардыгы | B73: 21,396.9 | C73: =B73/B10*100 -> 7.1 | D73: 124.8 | E73: Всего
A74: Автоунааларды жана мотоциклдерди, тетиктерин жана шаймандарын сатуу | B74: 252.4 | C74: =B74/B73*100 -> 1.2 | D74: 110.3 | E74: Торговля автомобилями и мотоциклами, автодеталями, узлами и принадлежностями
A75: Автоунааны техникалык жактан тейлөө жана оңдоо | B75: 137.8 | C75: =B75/B73*100 -> 0.6 | D75: 101.0 | E75: Техническое обслуживание и ремонт автомобилей
A76: Дүң сода2 | B76: 7,002.7 | C76: =B76/B73*100 -> 32.7 | D76: 154.3 | E76: Оптовая торговля2
A77: Мотор майын чекене сатуу | B77: 2,564.5 | C77: =B77/B73*100 -> 12.0 | D77: 115.5 | E77: Розничная торговля моторным топливом
A78: Чекене соода3 | B78: 11,439.5 | C78: =B78/B73*100 -> 53.5 | D78: 114.0 | E78: Розничная торговля3
A79: 1 Республика боюнча сооданын жалпы жүгүртүү көлөмүнүн ичинде облустардагы соода жүгүртүү көлөмүнүн салыштырма салмагы, экономикалык ишмердиктин түрлөрү боюнча, облустардагы сооданын жалпы жүгүртүү көлмүнүн ичиндеги салыштырма салмагы
A80: Удельный вес оборота торговли в общем объеме республики, по видам экономической деятельности области в общем объеме оборота области
A81: 2Дүң соода - керектөө товарларынын соода жүгүртүүсү, буга автоунааларды жана мотоциклдерди сатуу кирбейт
A82: Оптовая торговля - оборот потребительских товаров, исключая оборот торговли автомобилями и мотоциклами
A83: 3 Чекене соода, буга автоунааларды жана мотоциклдерди сатуу кирбейт
A84: Розничная трговля, кроме торговли автомобилями и мотоциклами

Sheet таб 21
D1: Обратно в содержание
A2: 21-таблица: 2026-жылдын январь-февралында экономикалык ишмердиктин түрлөрү
A3: боюнча дүң жана чекене сооданын, автоунааларды жана мотоциклдерди
A4: оңдоонун аймактар боюнча жүгүртүлүшү
A5: Оборот оптовой и розничной торговли, ремонта автомобилей и
A6: мотоциклов по видам экономической деятельности
A7: в разрезе территорий в январе - феврале 2026г.
B8: Млн. сом | C8: Пайыз менен В процентах
C9: жыйынтыкка карата1 к итогу1 | D9: мурунку жылдын тийиштүү мезгилине карата к соответ-ствующему периоду предыдущего года
B11: Бардыгы Всего
A12: Кыргыз Республикасы | B12: 303,397.2 | C12: 100.0 | D12: 111.4 | E12: Кыргызская Республика
A13: Баткен облусу | B13: 4,781.4 | C13: 1.6 | D13: 113.0 | E13: Баткенская область
A14: Жалал-Абад облусу | B14: 13,914.6 | C14: 4.6 | D14: 131.1 | E14: Джалал-Абадская область
A15: Ысык-Көл облусу | B15: 5,583.2 | C15: 1.8 | D15: 122.0 | E15: Исcык-Кульская область
A16: Нарын облусу | B16: 2413.3 | C16: 0.8 | D16: 112.6 | E16: Нарынская область
A17: Ош облусу | B17: 16,096.0 | C17: 5.3 | D17: 118.3 | E17: Ошская область
A18: Талас облусу | B18: 2,744.5 | C18: 0.9 | D18: 114.2 | E18: Таласская область
A19: Чүй облусу | B19: 33,374.1 | C19: 11.0 | D19: 65.6 | E19: Чуйская область
A20: Бишкек ш. | B20: 203,093.2 | C20: 66.9 | D20: 121.8 | E20: г.Бишкек
A21: Ош ш. | B21: 21,396.9 | C21: 7.1 | D21: 124.8 | E21: г.Ош
A22: Автоунааларды, мотоциклдерди, тетиктерин жана шаймандарын сатуу Продажа автотранспорта и принадлежностей для него
A23: Кыргыз Республикасы | B23: 8,960.8 | C23: =B23/B12*100 -> 3.0 | D23: 126.6 | E23: Кыргызская Республика
A24: Баткен облусу | B24: 8.3 | C24: =B24/B23*100 -> 0.1 | D24: 102.9 | E24: Баткенская область
A25: Жалал-Абад облусу | B25: 94.7 | C25: =B25/B23*100 -> 1.1 | D25: 64.3 | E25: Джалал-Абадская область
A26: Ысык-Көл облусу | B26: 72.0 | C26: =B26/B23*100 -> 0.8 | D26: 121.5 | E26: Исcык-Кульская область
A27: Нарын облусу | B27: 10.5 | C27: =B27/B23*100 -> 0.1 | D27: 166.0 | E27: Нарынская область
A28: Ош облусу | B28: 45.6 | C28: =B28/B23*100 -> 0.5 | D28: 103.3 | E28: Ошская область
A29: Талас облусу | B29: 10.7 | C29: =B29/B23*100 -> 0.1 | D29: 107.0 | E29: Таласская область
A30: Чүй облусу | B30: 752.6 | C30: =B30/B23*100 -> 8.4 | D30: 142.6 | E30: Чуйская область
A31: Бишкек ш. | B31: 7,713.9 | C31: =B31/B23*100 -> 86.1 | D31: 127.6 | E31: г.Бишкек
A32: Ош ш. | B32: 252.5 | C32: =B32/B23*100 -> 2.8 | D32: 110.3 | E32: г.Ош
A33: Автоунааны техникалык жактан тейлоо Техническое обслуживание автомобилей
A34: Кыргыз Республикасы | B34: 948.8 | C34: =B34/B12*100 -> 0.3 | D34: 123.5 | E34: Кыргызская Республика
A35: Баткен облусу | B35: 31.0 | C35: =B35/B34*100 -> 3.3 | D35: 100.2 | E35: Баткенская область
A36: Жалал-Абад облусу | B36: 50 | C36: =B36/B34*100 -> 5.3 | D36: 122.9 | E36: Джалал-Абадская область
A37: Ысык-Көл облусу | B37: 6.2 | C37: =B37/B34*100 -> 0.7 | D37: 126.8 | E37: Исcык-Кульская область
A38: Нарын облусу | B38: 6.2 | C38: =B38/B34*100 -> 0.7 | D38: 149.7 | E38: Нарынская область
A39: Ош облусу | B39: 48.4 | C39: =B39/B34*100 -> 5.1 | D39: 102.0 | E39: Ошская область
A40: Талас облусу | B40: 6.2 | C40: =B40/B34*100 -> 0.7 | D40: 106.4 | E40: Таласская область
A41: Чүй облусу | B41: 296.9 | C41: =B41/B34*100 -> 31.3 | D41: 102.4 | E41: Чуйская область
A42: Бишкек ш. | B42: 366.1 | C42: =B42/B34*100 -> 38.6 | D42: 167.7 | E42: г.Бишкек
A43: Ош ш. | B43: 137.8 | C43: =B43/B34*100 -> 14.5 | D43: 101.0 | E43: г.Ош
B44: Оптовая торговля Дүң соода
A45: Кыргыз Республикасы | B45: 171,908.0 | C45: =B45/B12*100 -> 56.7 | D45: 109.1 | E45: Кыргызская Республика
A46: Баткен облусу | B46: 861.7 | C46: =B46/B45*100 -> 0.5 | D46: 222.6 | E46: Баткенская область
A47: Жалал-Абад облусу | B47: 3,728.0 | C47: =B47/B45*100 -> 2.2 | D47: 213.9 | E47: Джалал-Абадская область
A48: Ысык-Көл облусу | B48: 955.2 | C48: =B48/B45*100 -> 0.6 | D48: 117.0 | E48: Исcык-Кульская область
A49: Нарын облусу | B49: 246.7 | C49: =B49/B45*100 -> 0.1 | D49: 130.9 | E49: Нарынская область
A50: Ош облусу | B50: 2,522.4 | C50: =B50/B45*100 -> 1.5 | D50: 197.0 | E50: Ошская область
A51: Талас облусу | B51: 797.2 | C51: =B51/B45*100 -> 0.5 | D51: 114.7 | E51: Таласская область
A52: Чүй облусу | B52: 10,084.2 | C52: =B52/B45*100 -> 5.9 | D52: 33.9 | E52: Чуйская область
A53: Бишкек ш. | B53: 145,709.9 | C53: =B53/B45*100 -> 84.8 | D53: 123.3 | E53: г.Бишкек
A54: Ош ш. | B54: 7,002.7 | C54: =B54/B45*100 -> 4.1 | D54: 154.3 | E54: г.Ош
B55: Мотор майын чекене сатуу Розничная торговля моторным топливом
A56: Кыргыз Республикасы | B56: 29,512.3 | C56: =B56/B12*100 -> 9.7 | D56: 112.2 | E56: Кыргызская Республика
A57: Баткен облусу | B57: 1,756.3 | C57: =B57/B56*100 -> 6.0 | D57: 100.6 | E57: Баткенская область
A58: Жалал-Абад облусу | B58: 2,053.2 | C58: =B58/B56*100 -> 7.0 | D58: 115.8 | E58: Джалал-Абадская область
A59: Ысык-Көл облусу | B59: 2,268.1 | C59: =B59/B56*100 -> 7.7 | D59: 120.8 | E59: Исcык-Кульская область
A60: Нарын облусу | B60: 739.7 | C60: =B60/B56*100 -> 2.5 | D60: 81.6 | E60: Нарынская область
A61: Ош облусу | B61: 2,799.8 | C61: =B61/B56*100 -> 9.5 | D61: 138.7 | E61: Ошская область
A62: Талас облусу | B62: 430.0 | C62: =B62/B56*100 -> 1.5 | D62: 112.5 | E62: Таласская область
A63: Чүй облусу | B63: 7,366.8 | C63: =B63/B56*100 -> 25.0 | D63: 101.1 | E63: Чуйская область
A64: Бишкек ш. | B64: 9,534.0 | C64: =B64/B56*100 -> 32.3 | D64: 117.7 | E64: г.Бишкек
A65: Ош ш. | B65: 2,564.4 | C65: =B65/B56*100 -> 8.7 | D65: 115.5 | E65: г.Ош
B66: Чекене сода Розничная торговля
A68: Кыргыз Республикасы | B68: 92,067.3 | C68: =B68/B12*100 -> 30.3 | D68: 114.3 | E68: Кыргызская Республика
A69: Баткен облусу | B69: 2,124.1 | C69: =B69/B68*100 -> 2.3 | D69: 102.5 | E69: Баткенская область
A70: Жалал-Абад облусу | B70: 7,988.7 | C70: =B70/B68*100 -> 8.7 | D70: 115.4 | E70: Джалал-Абадская область
A71: Ысык-Көл облусу | B71: 2,281.6 | C71: =B71/B68*100 -> 2.5 | D71: 125.5 | E71: Исcык-Кульская область
A72: Нарын облусу | B72: 1,410.2 | C72: =B72/B68*100 -> 1.5 | D72: 133.7 | E72: Нарынская область
A73: Ош облусу | B73: 10,679.7 | C73: =B73/B68*100 -> 11.6 | D73: 104.7 | E73: Ошская область
A74: Талас облусу | B74: 1,500.4 | C74: =B74/B68*100 -> 1.6 | D74: 114.4 | E74: Таласская область
A75: Чүй облусу | B75: 14,873.7 | C75: =B75/B68*100 -> 16.2 | D75: 115.3 | E75: Чуйская область
A76: Бишкек ш. | B76: 39,769.4 | C76: =B76/B68*100 -> 43.2 | D76: 116.2 | E76: г.Бишкек
A77: Ош ш. | B77: 11,439.5 | C77: =B77/B68*100 -> 12.4 | D77: 114.0 | E77: г.Ош
A78: 1 Республика боюнча сооданын жалпы жүгүртүү көлөмүнүн ичинде облустардагы соода жүгүртүү көлөмүнүн салыштырма салмагы
A79: 1 Удельный вес объемов оборота торговли областей в общем объеме республики

Sheet таб22
D1: Обратно в содержание
A2: 22-таблица: 2026-жылдын январь-февралында мейманканалардын жана ресторандардын
A3: кызмат көрсөтүүлөрүнүн көлөмү
A4: Объем предоставленных услуг гостиницами и ресторанами
A5: в январе - феврале 2026г.
B6: Млн. сом | C6: Пайыз менен В процентах
C7: жыйынтыкка карата1 к итогу1 | D7: мурунку жылдын тийиштүү мезгилине карата к соответ-ствующему периоду предыдущего года
B9: Бардыгы Всего
A10: Кыргыз Республикасы | B10: 7,614.3 | C10: 100.0 | D10: 113.2 | E10: Кыргызская Республика
A11: Баткен облусу | B11: 325.8 | C11: 4.3 | D11: 101.9 | E11: Баткенская область
A12: Жалал-Абад облусу | B12: 280.9 | C12: 3.7 | D12: 91.4 | E12: Джалал-Абадская область
A13: Ысык-Көл облусу | B13: 308.7 | C13: 4.1 | D13: 150.3 | E13: Исcык-Кульская область
A14: Нарын облусу | B14: 28.4 | C14: 0.4 | D14: 133.1 | E14: Нарынская область
A15: Ош облусу | B15: 389.2 | C15: 5.1 | D15: 101.8 | E15: Ошская область
A16: Талас облусу | B16: 75.5 | C16: 1.0 | D16: 115.3 | E16: Таласская область
A17: Чүй облусу | B17: 544.3 | C17: 7.1 | D17: 103.2 | E17: Чуйская область
A18: Бишкек ш. | B18: 4,827.3 | C18: 63.4 | D18: 118.4 | E18: г.Бишкек
A19: Ош ш. | B19: 834.2 | C19: 11.0 | D19: 102.2 | E19: г.Ош
A20: Мейманканалардын кызмат көрсөтүүлөрү жана туристтик жашоо үчүн кызмат көрсөтүүлөр, кыска мөөнөткө жашоо үчүн ылайыкталган башка жайлардын кызмат көрсөтүүлөрү Предоставление услуг гостиницамии услуг для туристического проживания, а также прочими местами для кратковременного проживания
A21: Кыргыз Республикасы | B21: 1,006.0 | C21: =B21/B10*100 -> 13.2 | D21: 124.2 | E21: Кыргызская Республика
A22: Баткен облусу | B22: 5.2 | C22: =B22/B21*100 -> 0.5 | D22: 192.8 | E22: Баткенская область
A23: Жалал-Абад облусу | B23: 16.5 | C23: =B23/B21*100 -> 1.6 | D23: 66.6 | E23: Джалал-Абадская область
A24: Ысык-Көл облусу | B24: 204.4 | C24: =B24/B21*100 -> 20.3 | D24: 157.2 | E24: Исcык-Кульская область
A25: Нарын облусу | B25: 10.3 | C25: =B25/B21*100 -> 1.0 | D25: 154.9 | E25: Нарынская область
A26: Ош облусу | B26: 2.6 | C26: =B26/B21*100 -> 0.3 | D26: 104.0 | E26: Ошская область
A27: Талас облусу | B27: 1.6 | C27: =таб22!B27/таб22!B21*100 -> 0.2 | D27: 55.2 | E27: Таласская область
A28: Чүй облусу | B28: 29.6 | C28: =B28/B21*100 -> 2.9 | D28: 111.8 | E28: Чуйская область
A29: Бишкек ш. | B29: 662.0 | C29: =B29/B21*100 -> 65.8 | D29: 118.9 | E29: г.Бишкек
A30: Ош ш. | B30: 73.8 | C30: =B30/B21*100 -> 7.3 | D30: 117.3 | E30: г.Ош
A31: Ресторан, барлардын кызмат көрсөтүүлөрү жана даяр тамак-ашты камсыздоо боюнча мобилдүү жана башка кызмат көрсөтүүлөр Предоставление услуг ресторанами, мобильных и прочих услуг по обеспечению пищей
A32: Кыргыз Республикасы | B32: 6,608.3 | C32: =B32/B10*100 -> 86.8 | D32: 111.8 | E32: Кыргызская Республика
A33: Баткен облусу | B33: 320.5 | C33: =B33/B32*100 -> 4.8 | D33: 101.2 | E33: Баткенская область
A34: Жалал-Абад облусу | B34: 264.0 | C34: =B34/B32*100 -> 4.0 | D34: 92.6 | E34: Джалал-Абадская область
A35: Ысык-Көл облусу | B35: 104.3 | C35: =B35/B32*100 -> 1.6 | D35: 138 | E35: Исcык-Кульская область
A36: Нарын облусу | B36: 18.2 | C36: =B36/B32*100 -> 0.3 | D36: 122.9 | E36: Нарынская область
A37: Ош облусу | B37: 386.6 | C37: =B37/B32*100 -> 5.9 | D37: 101.8 | E37: Ошская область
A38: Талас облусу | B38: 73.9 | C38: =B38/B32*100 -> 1.1 | D38: 118.2 | E38: Таласская область
A39: Чүй облусу | B39: 514.7 | C39: =B39/B32*100 -> 7.8 | D39: 102.8 | E39: Чуйская область
A40: Бишкек ш. | B40: 4,165.5 | C40: =B40/B32*100 -> 63.0 | D40: 118.3 | E40: г.Бишкек
A41: Ош ш. | B41: 760.6 | C41: =B41/B32*100 -> 11.5 | D41: 101.0 | E41: г.Ош
A43: 1 Республика боюнча сооданын жалпы жүгүртүү көлөмүнүн ичинде облустардагы соода жүгүртүү көлөмүнүн салыштырма салмагы
A44: 1 Удельный вес объемов оборота торговли областей в общем объеме республики

Sheet таб 23.
D1: Обратно в содержание
A2: 23-таблица: 2026-жылдын январь-февралында тамактануу ишканаларынын жүгүртүүсүн
A3: кошкондогу сатуунун бардык каналдары боюнча чекене сооданын жүгүртүлүшү
A4: Оборот розничной торговли, включая оборот предприятий питания по всем
A5: каналам реализации в январе-феврале 2026г.
B6: Млн. сом | C6: Пайыз менен В процентах
C7: жыйынтыкка карата1 к итогу1 | D7: мурунку жылдын тийиштүү мезгилине карата к соответ-ствующему периоду предыдущего года
A10: Кыргыз Республикасы | B10: 137,148.7 | C10: 100.0 | D10: 114.5 | E10: Кыргызская Республика
A11: Баткен облусу | B11: 4,209.2 | C11: =B11/B10*100 -> 3.1 | D11: 101.6 | E11: Баткенская область
A12: Баткен | B12: 174.7 | C12: =B12/B11*100 -> 4.2 | D12: 106.2 | E12: Баткен
A13: Баткен ш. | B13: 485.7 | C13: =B13/B11*100 -> 11.5 | D13: 165.3 | E13: г.Баткен
A14: Кадамжай | B14: 1,066.7 | C14: =B14/B11*100 -> 25.3 | D14: 93.2 | E14: Кадамжайский
A15: Лейлек | B15: 815.8 | C15: =B15/B11*100 -> 19.4 | D15: 93.8 | E15: Лейлекский
A16: Сүлүктү ш. | B16: 167.4 | C16: =B16/B11*100 -> 4.0 | D16: 105.1 | E16: г.Сулюкта
A17: Кызыл-Кыя ш. | B17: 1,498.9 | C17: =B17/B11*100 -> 35.6 | D17: 99.3 | E17: г.Кызыл-Кия
A18: Жалал-Абад облусу | B18: 10,400.9 | C18: =B18/B10*100 -> 7.6 | D18: 113.9 | E18: Джалал-Абадская область
A19: Аксы | B19: 1,485.5 | C19: =B19/B18*100 -> 14.3 | D19: 106.4 | E19: Аксыйский
A20: Ала-Бука | B20: 109.0 | C20: =B20/B18*100 -> 1.0 | D20: 92.1 | E20: Ала-Букинский
A21: Базар-Коргон | B21: 2,043.7 | C21: =B21/B18*100 -> 19.6 | D21: 101.8 | E21: Базар-Коргонский
A22: Ноокен | B22: 570.2 | C22: =B22/B18*100 -> 5.5 | D22: 119.3 | E22: Ноокенский
A23: Сузак | B23: 670.5 | C23: =B23/B18*100 -> 6.4 | D23: 121.5 | E23: Сузакский
A24: Тогуз-Торо | B24: 128.6 | C24: =B24/B18*100 -> 1.2 | D24: 109.7 | E24: Тогуз-Тороуский
A25: Токтогул | B25: 676.5 | C25: =B25/B18*100 -> 6.5 | D25: 113.6 | E25: Токтогульский
A26: Чаткал | B26: 126.2 | C26: =B26/B18*100 -> 1.2 | D26: 108.8 | E26: Чаткалский
A27: Манас ш. | B27: 3,573.2 | C27: =B27/B18*100 -> 34.4 | D27: 128.4 | E27: г.Манас
A28: Кара-Көл ш. | B28: 164.2 | C28: =B28/B18*100 -> 1.6 | D28: 103.5 | E28: г.Кара-Куль
A29: Майлы-Суу ш. | B29: 344.1 | C29: =B29/B18*100 -> 3.3 | D29: 105.0 | E29: г.Майлуу-Суу
A30: Таш-Көмүр ш. | B30: 509.2 | C30: =B30/B18*100 -> 4.9 | D30: 105.2 | E30: г.Ташкумыр
A31: Ысык-Көл облусу | B31: 4,726.1 | C31: =B31/B10*100 -> 3.4 | D31: 123.4 | E31: Иссык-Кульская область
A32: Ак-Суу | B32: 251.4 | C32: =B32/B31*100 -> 5.3 | D32: 109.1 | E32: Ак-Суйский
A33: Каракол ш. | B33: 1,688.1 | C33: =B33/B31*100 -> 35.7 | D33: 111.8 | E33: г.Каракол
A34: Жети-өгүз | B34: 397.2 | C34: =B34/B31*100 -> 8.4 | D34: 145.6 | E34: Жети-Огүзский
A35: Ысык-Көл | B35: 547.8 | C35: =B35/B31*100 -> 11.6 | D35: 130.1 | E35: Иссык-Кульский
A36: Тон | B36: 180.4 | C36: =B36/B31*100 -> 3.8 | D36: 95.3 | E36: Тонский
A37: Түп | B37: 139.9 | C37: =B37/B31*100 -> 3.0 | D37: 117.2 | E37: Тюпский
A38: Балыкчы ш. | B38: 1,521.3 | C38: =B38/B31*100 -> 32.2 | D38: 140.0 | E38: г.Балыкчы
A39: Нарын облусу | B39: 2,178.6 | C39: =B39/B10*100 -> 1.6 | D39: 110.8 | E39: Нарынская область
A40: Ак-Талаа | B40: 98.8 | C40: =B40/B39*100 -> 4.5 | D40: 119.8 | E40: Ак-Талинский
A41: Ат-Башы | B41: 243.2 | C41: =B41/B39*100 -> 11.2 | D41: 96.6 | E41: Ат-Башынский
A42: Жумгал | B42: 187.5 | C42: =B42/B39*100 -> 8.6 | D42: 95.8 | E42: Жумгальский
A43: Кочкор | B43: 529.3 | C43: =B43/B39*100 -> 24.3 | D43: 102.9 | E43: Кочкорский
A44: Нарын | B44: 37.3 | C44: =B44/B39*100 -> 1.7 | D44: 92.6 | E44: Нарынский
A45: Нарын ш. | B45: 1,082.6 | C45: =B45/B39*100 -> 49.7 | D45: 122.5 | E45: г.Нарын
A46: Ош облусу | B46: 13,911.7 | C46: =B46/B10*100 -> 10.1 | D46: 109.8 | E46: Ошская область
A47: Алай | B47: 474.2 | C47: =B47/B46*100 -> 3.4 | D47: 130.1 | E47: Алайский
A48: Араван | B48: 559.5 | C48: =B48/B46*100 -> 4.0 | D48: 104.9 | E48: Араванский
A49: Кара-Кулжа | B49: 428.6 | C49: =B49/B46*100 -> 3.1 | D49: 101.6 | E49: Кара-Кулжинский
A50: Кара-Суу | B50: 6,855.6 | C50: =B50/B46*100 -> 49.3 | D50: 108.5 | E50: Кара-Сууский
A51: Ноокат | B51: 2,430.2 | C51: =B51/B46*100 -> 17.5 | D51: 108.5 | E51: Ноокатский
A52: Узгөн | B52: 2,778.0 | C52: =B52/B46*100 -> 20.0 | D52: 111.5 | E52: Узгенский
A53: Чоң-Алай | B53: 385.6 | C53: =B53/B46*100 -> 2.8 | D53: 131.0 | E53: Чоң-Алайский
A54: Талас облусу | B54: 2,014.9 | C54: =B54/B10*100 -> 1.5 | D54: 114.1 | E54: Таласская область
A55: Бакай-Ата | B55: 93.6 | C55: =B55/B54*100 -> 4.6 | D55: 115.8 | E55: Бакай-Атинский
A56: Айтматов | B56: 352.4 | C56: =B56/B54*100 -> 17.5 | D56: 110.4 | E56: Айтматовский
A57: Манас | B57: 113.6 | C57: =B57/B54*100 -> 5.6 | D57: 107.1 | E57: Манасский
A58: Талас | B58: 215.1 | C58: =B58/B54*100 -> 10.7 | D58: 103.7 | E58: Таласский
A59: Талас ш. | B59: 1,240.2 | C59: =B59/B54*100 -> 61.6 | D59: 117.8 | E59: г.Талас
A60: Чүй облусу | B60: 23,507.8 | C60: =B60/B10*100 -> 17.1 | D60: 111.0 | E60: Чүйская область
A61: Аламүдүн | B61: 1,532.4 | C61: =B61/B60*100 -> 6.5 | D61: 105.5 | E61: Аламүдүнский
A62: Жайыл | B62: 1,208.6 | C62: =B62/B60*100 -> 5.1 | D62: 153.8 | E62: Жайылский
A63: Кара-Балта ш. | B63: 2,094.9 | C63: =B63/B60*100 -> 8.9 | D63: 114.9 | E63: г. Кара-Балта
A64: Кемин | B64: 610.0 | C64: =B64/B60*100 -> 2.6 | D64: 85.7 | E64: Кеминский
A65: Москва | B65: 2,372.4 | C65: =B65/B60*100 -> 10.1 | D65: 104.1 | E65: Московский
A66: Панфилов | B66: 1,186.6 | C66: =B66/B60*100 -> 5.0 | D66: 72.7 | E66: Панфиловский
A67: Сокулук | B67: 2,579.3 | C67: =B67/B60*100 -> 11.0 | D67: 102.2 | E67: Сокулукский
A68: Ысык-Ата | B68: 1,028.1 | C68: =B68/B60*100 -> 4.4 | D68: 155.1 | E68: Ысык-Атинский
A69: Кант ш. | B69: 6,933.8 | C69: =B69/B60*100 -> 29.5 | D69: 116.7 | E69: г.Кант
A70: Чүй | B70: 511.0 | C70: =B70/B60*100 -> 2.2 | D70: 108.3 | E70: Чүйский
A71: Токмок ш. | B71: 3,450.7 | C71: =B71/B60*100 -> 14.7 | D71: 119.4 | E71: г.Токмок
A72: Бишкек ш. | B72: 61,182.5 | C72: =B72/B10*100 -> 44.6 | D72: 117.9 | E72: г.Бишкек
A73: Ленин | B73: 15,325.7 | C73: =B73/B72*100 -> 25.0 | D73: 115.5 | E73: Ленинский
A74: Октябрь | B74: 11,708.1 | C74: =B74/B72*100 -> 19.1 | D74: 97.9 | E74: Октябрьский
A75: Биринчи Май | B75: 15,994.0 | C75: =B75/B72*100 -> 26.1 | D75: 150.0 | E75: Первомайский
A76: Свердлов | B76: 18,154.7 | C76: =B76/B72*100 -> 29.7 | D76: 113.5 | E76: Свердловский
A77: Ош ш. | B77: 15,017.0 | C77: 10.9 | D77: 113.4 | E77: г.Ош
A79: 1 Облус боюнча чекене сооданын жалпы жүгүүртүү көлөмүнүн ичинде райондордогу чекене соода жүгүүртүү көлөмүнүн салыштырма салмагы
A80: 1 Удельный вес оборота розничной торговли районов в общем объеме оборота розничной торговли области.

Sheet таб 24.
D1: Обратно в содержание
A2: 24-таблица: 2026-жылдын январь-февралында буюм-терим, аралаш
A3: жана азык-түлүк базарлардын жүгүртүүсү
A4: Оборот вещевых, смешанных и продовольственных рынков
A5: в январе - феврале 2026г.
B6: Млн. сом | C6: Пайыз менен В процентах
C7: жыйынтыкка карата1 к итогу1 | D7: мурунку жылдын тийиштүү мезгилине карата к соответ-ствующему периоду предыдущего года
B9: Бардык базарларда На всех типах рынков
A10: Кыргыз Республикасы | B10: 34,089.1 | C10: 100.0 | D10: 90.5 | E10: Кыргызская Республика
A11: Баткен облусу | B11: 800.6 | C11: =B11/B10*100 -> 2.3 | D11: 92.5 | E11: Баткенская область
A12: Жалал-Абад облусу | B12: 3,873.5 | C12: =B12/B10*100 -> 11.4 | D12: 84.9 | E12: Джалал-Абадская область
A13: Ысык-Көл облусу | B13: 370.0 | C13: =B13/B10*100 -> 1.1 | D13: 184.1 | E13: Исcык-Кульская область
A14: Нарын облусу | B14: 1,074.8 | C14: =B14/B10*100 -> 3.2 | D14: 125.6 | E14: Нарынская область
A15: Ош облусу | B15: 9,920.2 | C15: =B15/B10*100 -> 29.1 | D15: 104.3 | E15: Ошская область
A16: Талас облусу | B16: 427.8 | C16: =B16/B10*100 -> 1.3 | D16: 118.2 | E16: Таласская область
A17: Чүй облусу | B17: 7,174.5 | C17: =B17/B10*100 -> 21.0 | D17: 112.3 | E17: Чуйская область
A18: Бишкек ш. | B18: 8,313.9 | C18: =B18/B10*100 -> 24.4 | D18: 90.2 | E18: г.Бишкек
A19: Ош ш. | B19: 2,133.7 | C19: =B19/B10*100 -> 6.3 | D19: 36.9 | E19: г.Ош
B20: Азык-түлүк базарларында На продовольственных рынках
A21: Кыргыз Республикасы | B21: 4,012.9 | C21: =B21/B10*100 -> 11.8 | D21: 92.7 | E21: Кыргызская Республика
A22: Баткен облусу | B22: 83.3 | C22: =B22/B21*100 -> 2.1 | D22: 92.1 | E22: Баткенская область
A23: Жалал-Абад облусу | B23: 286.5 | C23: =B23/B21*100 -> 7.1 | D23: 84.2 | E23: Джалал-Абадская область
A24: Ысык-Көл облусу | B24: 230.5 | C24: =B24/B21*100 -> 5.7 | D24: 180.6 | E24: Исcык-Кульская область
A25: Нарын облусу | B25: 60.3 | C25: =B25/B21*100 -> 1.5 | D25: 124.9 | E25: Нарынская область
A26: Ош облусу | B26: 352.3 | C26: =B26/B21*100 -> 8.8 | D26: 103.4 | E26: Ошская область
A27: Талас облусу | B27: 23.6 | C27: =B27/B21*100 -> 0.6 | D27: 121.0 | E27: Таласская область
A28: Чүй облусу | B28: 370.9 | C28: =B28/B21*100 -> 9.2 | D28: 116.1 | E28: Чуйская область
A29: Бишкек ш. | B29: 2,528.4 | C29: =B29/B21*100 -> 63.0 | D29: 89.4 | E29: г.Бишкек
A30: Ош ш. | B30: 77.1 | C30: =B30/B21*100 -> 1.9 | D30: 36.9 | E30: г.Ош
B31: Буюм-терим жана аралаш базарларында На вещевых и смешанных рынках
A32: Кыргыз Республикасы | B32: 30,076.2 | C32: =B32/B10*100 -> 88.2 | D32: 90.2 | E32: Кыргызская Республика
A33: Баткен облусу | B33: 717.3 | C33: =B33/B32*100 -> 2.4 | D33: 92.5 | E33: Баткенская область
A34: Жалал-Абад облусу | B34: 3,587.0 | C34: =B34/B32*100 -> 11.9 | D34: 84.9 | E34: Джалал-Абадская область
A35: Ысык-Көл облусу | B35: 139.5 | C35: =B35/B32*100 -> 0.5 | D35: 189.8 | E35: Исcык-Кульская область
A36: Нарын облусу | B36: 1,014.6 | C36: =B36/B32*100 -> 3.4 | D36: 125.7 | E36: Нарынская область
A37: Ош облусу | B37: 9,567.9 | C37: =B37/B32*100 -> 31.8 | D37: 104.4 | E37: Ошская область
A38: Талас облусу | B38: 404.2 | C38: =B38/B32*100 -> 1.3 | D38: 118.1 | E38: Таласская область
A39: Чүй облусу | B39: 6,803.6 | C39: =B39/B32*100 -> 22.6 | D39: 112.1 | E39: Чуйская область
A40: Бишкек ш. | B40: 5,785.5 | C40: =B40/B32*100 -> 19.2 | D40: 90.5 | E40: г.Бишкек
A41: Ош ш. | B41: 2,056.6 | C41: =B41/B32*100 -> 6.8 | D41: 36.9 | E41: г.Ош

Sheet таб 25.
D1: Обратно в содержание
A2: 25-таблица: 2026-жылдын январь-февралындагы тамактануу ишканаларын кошкондогу,
A3: сатуучу уюмдардын чекене соода жүгүртүүсү
A4: Оборот розничной торговли торгующих организаций, включая
A5: общественное питание в январе- феврале 2026г.
B6: Млн. сом | C6: Пайыз менен В процентах
C7: жыйынтыкка карата1 к итогу1 | D7: мурунку жылдын тийиштүү мезгилине карата к соответ-ствующему периоду предыдущего года
A10: Кыргыз Республикасы | B10: 103,059.6 | C10: 100.0 | D10: 127.1 | E10: Кыргызская Республика
A11: Баткен облусу | B11: 3,408.5 | C11: =B11/B10*100 -> 3.3 | D11: 108.1 | E11: Баткенская область
A12: Жалал-Абад облусу | B12: 6,527.4 | C12: =B12/B10*100 -> 6.3 | D12: 146.4 | E12: Джалал-Абадская область
A13: Ысык-Көл облусу | B13: 4,356.1 | C13: =B13/B10*100 -> 4.2 | D13: 120.9 | E13: Исcык-Кульская область
A14: Нарын облусу | B14: 1,103.7 | C14: =B14/B10*100 -> 1.1 | D14: 103.6 | E14: Нарынская область
A15: Ош облусу | B15: 3,991.6 | C15: =B15/B10*100 -> 3.9 | D15: 132.4 | E15: Ошская область
A16: Талас облусу | B16: 1,587.1 | C16: =B16/B10*100 -> 1.5 | D16: 115.1 | E16: Таласская область
A17: Чүй облусу | B17: 16,333.3 | C17: =B17/B10*100 -> 15.8 | D17: 113.0 | E17: Чуйская область
A18: Бишкек ш. | B18: 52,868.6 | C18: =B18/B10*100 -> 51.3 | D18: 124.2 | E18: г.Бишкек
A19: Ош ш. | B19: 12,883.3 | C19: =B19/B10*100 -> 12.5 | D19: 175.1 | E19: г.Ош

Sheet таб 26.
G1: Обратно в содержание
A2: 26-таблица: 2026-жылдын январь-февралында сооданын, мейманканалардын жана
A3: ресторандардын жүгүртүлүшүн кошпогондо, рыноктук кызмат
A4: көрсөтүүлөрдүн экономикалык ишмердигинин түрлөрү боюнча көлөмү
A5: Объем оказанных рыночных услуг, исключая оборот торговли,
A6: гостиниц и ресторанов по видам экономической деятельности
A7: в январе-феврале 2026г.
B8: Млн. сом | D8: Пайыз менен В процентах
B9: Бардыгы Всего | C9: анын ичинде калкка в том числе населе-нию | D9: мурунку жылдын тийиштүү мезгилине карата соответствующему периоду предыдущего года | F9: жыйынтыкка карата к итогу
D10: Бардыгы Всего | E10: анын ичинде калкка в том числе населению | F10: Бардыгы всего | G10: анын ичинде калкка в том числе населению
A12: Бардыгы | B12: 126,038.2 | C12: 59,285.1 | D12: 104.6 | E12: 109.8 | F12: 100.0 | G12: 100.0 | H12: Всего
